Body name,Directorate,Service Area Categorisation,Supplier Name,Payment Date,Card Transaction,Net Amount,Purpose of Spend,Procurement Classification: ProClass Label
Solihull MBC,Children's Services & Skills,Children & Education Services,24X7 Ltd (Warwickshire),09/02/2021,,1879.31,Transport-Contract Hire,Not Yet Classified
Solihull MBC,Children's Services & Skills,Children & Education Services,24X7 Staffordshire Ltd,09/02/2021,,1567.35,Transport-Contract Hire,Not Yet Classified
Solihull MBC,Children's Services & Skills,Children & Education Services,3 Sixty Property Services Ltd,22/02/2021,,1065,Contractors,171011 - Education - School Services
Solihull MBC,Children's Services & Skills,Children & Education Services,3PB Barristers,10/02/2021,,900,Other Fees,Not Yet Classified
Solihull MBC,Children's Services & Skills,Children & Education Services,3PB Barristers,10/02/2021,,675,Other Fees,Not Yet Classified
Solihull MBC,Children's Services & Skills,Children & Education Services,3PB Barristers,02/02/2021,,500,Other Fees,321100 - Social Community Care Supplies & Services - Children
Solihull MBC,Children's Services & Skills,Children & Education Services,3PB Barristers,02/02/2021,,1000,Other Fees,321100 - Social Community Care Supplies & Services - Children
Solihull MBC,Children's Services & Skills,Children & Education Services,3PB Barristers,02/02/2021,,500,Other Fees,Not Yet Classified
Solihull MBC,Children's Services & Skills,Children & Education Services,3PB Barristers,19/02/2021,,850,Other Fees,Not Yet Classified
Solihull MBC,Children's Services & Skills,Children & Education Services,A S C Birch,01/02/2021,,612,Clients Transport Costs,360000 - Public Transport
Solihull MBC,Children's Services & Skills,Children & Education Services,A Wilderness Way Ltd,05/02/2021,,18520.71,Other Contracted Services,Not Yet Classified
Solihull MBC,Children's Services & Skills,Children & Education Services,A Wilderness Way Ltd,05/02/2021,,-18520.71,Other Contracted Services,Not Yet Classified
Solihull MBC,Children's Services & Skills,Children & Education Services,A Wilderness Way Ltd,12/02/2021,,2526.86,Other Contracted Services,Not Yet Classified
Solihull MBC,Children's Services & Skills,Children & Education Services,A Wilderness Way Ltd,12/02/2021,,5052.86,Other Contracted Services,Not Yet Classified
Solihull MBC,Children's Services & Skills,Children & Education Services,A Wilderness Way Ltd,12/02/2021,,5052.86,Other Contracted Services,Not Yet Classified
Solihull MBC,Children's Services & Skills,Children & Education Services,A Wilderness Way Ltd,12/02/2021,,5894.98,Other Contracted Services,Not Yet Classified
Solihull MBC,Children's Services & Skills,Children & Education Services,A Wilderness Way Ltd,12/02/2021,,7586,Other Contracted Services,Not Yet Classified
Solihull MBC,Children's Services & Skills,Children & Education Services,A Wilderness Way Ltd,12/02/2021,,-5894.98,Other Contracted Services,Not Yet Classified
Solihull MBC,Children's Services & Skills,Children & Education Services,A1 Support Limited,05/02/2021,,1774.29,Supported Lodgings,Not Yet Classified
Solihull MBC,Children's Services & Skills,Children & Education Services,A1 Support Limited,05/02/2021,,2760,Supported Lodgings,Not Yet Classified
Solihull MBC,Children's Services & Skills,Children & Education Services,A1 Support Limited,05/02/2021,,2760,Supported Lodgings,Not Yet Classified
Solihull MBC,Children's Services & Skills,Children & Education Services,A1 Support Limited,05/02/2021,,2760,Supported Lodgings,Not Yet Classified
Solihull MBC,Public Health & Commissioning,Central Services to the Public,A2B Private Hire Driver,24/02/2021,,1000,Grant & Subscription (SCITT),Not Yet Classified
Solihull MBC,Public Health & Commissioning,Central Services to the Public,A2B Radio Cars,24/02/2021,,1000,Grant & Subscription (SCITT),Not Yet Classified
Solihull MBC,Public Health & Commissioning,Central Services to the Public,A2B Radio Cars Ltd,24/02/2021,,1000,Grant & Subscription (SCITT),Not Yet Classified
Solihull MBC,Children's Services - DSG Central.,Children & Education Services,Abable Ltd,05/02/2021,,1521,Professional Fees,Not Yet Classified
Solihull MBC,Adult Social Care,Adult Social Care,Abbey Healthcare Homes Ltd,25/02/2021,,4234.72,ASC - Nursing Care Permanent,321000 - Social Community Care Supplies & Services - Adult
Solihull MBC,Public Health & Commissioning,Central Services to the Public,Abz Cabz,24/02/2021,,1000,Grant & Subscription (SCITT),Not Yet Classified
Solihull MBC,Children's Services - DSG Central.,Children & Education Services,AC Education Ltd,02/02/2021,,1100,Professional Fees,Not Yet Classified
Solihull MBC,Children's Services & Skills,Children & Education Services,Accalia Care Services Ltd,05/02/2021,,30200,Other Contracted Services,Not Yet Classified
Solihull MBC,Covid-19,Central Services to the Public,Accomplish Group,09/02/2021,,3400.1,ASC - Residential Care Permanent,Not Yet Classified
Solihull MBC,Covid-19,Central Services to the Public,Accomplish Group,09/02/2021,,3400.1,ASC - Residential Care Permanent,Not Yet Classified
Solihull MBC,Adult Social Care,Adult Social Care,Accomplish Group Lifestyles Ltd,25/02/2021,,9351.16,ASC - Residential Care Permanent,Not Yet Classified
Solihull MBC,Adult Social Care,Adult Social Care,Accomplish Group Lifestyles Ltd,25/02/2021,,6936,ASC - Residential Care Permanent,Not Yet Classified
Solihull MBC,Adult Social Care,Adult Social Care,Accomplish Group Lifestyles Ltd,25/02/2021,,5547.64,ASC - Residential Care Permanent,Not Yet Classified
Solihull MBC,Adult Social Care,Adult Social Care,Accora,17/02/2021,,1081,Furniture & Equipment,Not Yet Classified
Solihull MBC,Adult Social Care,Adult Social Care,Accora,26/02/2021,,326,Furniture & Equipment,Not Yet Classified
Solihull MBC,Adult Social Care,Adult Social Care,Accord Housing Association,11/02/2021,,430.83,Block Contracts,321000 - Social Community Care Supplies & Services - Adult
Solihull MBC,Adult Social Care,Adult Social Care,Accord Housing Association,02/02/2021,,29521.02,Block Contracts,321000 - Social Community Care Supplies & Services - Adult
Solihull MBC,Adult Social Care,Other Housing Services,Accord Housing Association,23/02/2021,,14155.41,Other Contracted Services,321000 - Social Community Care Supplies & Services - Adult
Solihull MBC,Covid-19,Central Services to the Public,Accord Housing Association,09/02/2021,,1275.04,ASC - Residential Care Permanent,321000 - Social Community Care Supplies & Services - Adult
Solihull MBC,Adult Social Care,Adult Social Care,Accord Housing Asssociation,25/02/2021,,2480.52,ASC - Residential Care Respite,321000 - Social Community Care Supplies & Services - Adult
Solihull MBC,Adult Social Care,Adult Social Care,Accord Housing Asssociation,25/02/2021,,1151.67,ASC - Residential Care Permanent,321000 - Social Community Care Supplies & Services - Adult
Solihull MBC,Adult Social Care,Adult Social Care,Accord Housing Asssociation,25/02/2021,,1328.85,ASC - Residential Care Respite,321000 - Social Community Care Supplies & Services - Adult
Solihull MBC,Adult Social Care,Adult Social Care,Accord Housing Asssociation,25/02/2021,,2480.52,ASC - Residential Care Respite,321000 - Social Community Care Supplies & Services - Adult
Solihull MBC,Adult Social Care,Adult Social Care,Accord Housing Asssociation,25/02/2021,,2480.52,ASC - Residential Care Permanent,321000 - Social Community Care Supplies & Services - Adult
Solihull MBC,Adult Social Care,Adult Social Care,Accord Housing Asssociation,25/02/2021,,2480.52,ASC - Residential Care Permanent,321000 - Social Community Care Supplies & Services - Adult
Solihull MBC,Adult Social Care,Adult Social Care,Accord Housing Asssociation,25/02/2021,,2480.52,ASC - Residential Care Permanent,321000 - Social Community Care Supplies & Services - Adult
Solihull MBC,Adult Social Care,Adult Social Care,Accord Housing Asssociation,25/02/2021,,2480.52,ASC - Residential Care Permanent,321000 - Social Community Care Supplies & Services - Adult
Solihull MBC,Adult Social Care,Adult Social Care,Accord Housing Asssociation,25/02/2021,,2480.52,ASC - Residential Care Permanent,321000 - Social Community Care Supplies & Services - Adult
Solihull MBC,Adult Social Care,Adult Social Care,Accord Housing Asssociation,25/02/2021,,2480.52,ASC - Residential Care Permanent,321000 - Social Community Care Supplies & Services - Adult
Solihull MBC,Adult Social Care,Adult Social Care,Accord Housing Asssociation,25/02/2021,,2480.52,ASC - Residential Care Permanent,321000 - Social Community Care Supplies & Services - Adult
Solihull MBC,Adult Social Care,Adult Social Care,Accord Housing Asssociation,25/02/2021,,2480.52,ASC - Residential Care Permanent,321000 - Social Community Care Supplies & Services - Adult
Solihull MBC,Adult Social Care,Adult Social Care,Accord Housing Asssociation,25/02/2021,,2480.52,ASC - Residential Care Permanent,321000 - Social Community Care Supplies & Services - Adult
Solihull MBC,Adult Social Care,Adult Social Care,Accord Housing Asssociation,25/02/2021,,-797.31,ASC - Residential Care Permanent,321000 - Social Community Care Supplies & Services - Adult
Solihull MBC,Adult Social Care,Adult Social Care,Accord Housing Asssociation,25/02/2021,,2480.52,ASC - Residential Care Permanent,321000 - Social Community Care Supplies & Services - Adult
Solihull MBC,Adult Social Care,Adult Social Care,Accord Housing Asssociation,25/02/2021,,2480.52,ASC - Residential Care Permanent,321000 - Social Community Care Supplies & Services - Adult
Solihull MBC,Adult Social Care,Adult Social Care,Accord Housing Asssociation,25/02/2021,,2480.52,ASC - Residential Care Permanent,321000 - Social Community Care Supplies & Services - Adult
Solihull MBC,Adult Social Care,Adult Social Care,Accord Housing Asssociation,25/02/2021,,2480.52,ASC - Residential Care Permanent,321000 - Social Community Care Supplies & Services - Adult
Solihull MBC,Adult Social Care,Adult Social Care,Accord Housing Asssociation,25/02/2021,,2480.52,ASC - Residential Care Permanent,321000 - Social Community Care Supplies & Services - Adult
Solihull MBC,Adult Social Care,Adult Social Care,Accord Housing Asssociation,25/02/2021,,2480.52,ASC - Residential Care Permanent,321000 - Social Community Care Supplies & Services - Adult
Solihull MBC,Adult Social Care,Adult Social Care,Accord Housing Asssociation,25/02/2021,,2480.52,ASC - Residential Care Permanent,321000 - Social Community Care Supplies & Services - Adult
Solihull MBC,Adult Social Care,Adult Social Care,Accord Housing Asssociation,25/02/2021,,2480.52,ASC - Residential Care Permanent,321000 - Social Community Care Supplies & Services - Adult
Solihull MBC,Adult Social Care,Adult Social Care,Accord Housing Asssociation,25/02/2021,,2480.52,ASC - Residential Care Permanent,321000 - Social Community Care Supplies & Services - Adult
Solihull MBC,Adult Social Care,Adult Social Care,Accord Housing Asssociation,25/02/2021,,2480.52,ASC - Residential Care Permanent,321000 - Social Community Care Supplies & Services - Adult
Solihull MBC,Adult Social Care,Adult Social Care,Accord Housing Asssociation,25/02/2021,,2480.52,ASC - Residential Care Respite,321000 - Social Community Care Supplies & Services - Adult
Solihull MBC,Adult Social Care,Adult Social Care,Accord Housing Asssociation,25/02/2021,,2480.52,ASC - Residential Care Permanent,321000 - Social Community Care Supplies & Services - Adult
Solihull MBC,Adult Social Care,Adult Social Care,Accord Housing Asssociation,25/02/2021,,2480.52,ASC - Residential Care Permanent,321000 - Social Community Care Supplies & Services - Adult
Solihull MBC,Adult Social Care,Adult Social Care,Accord Housing Asssociation,25/02/2021,,2480.52,ASC - Residential Care Permanent,321000 - Social Community Care Supplies & Services - Adult
Solihull MBC,Adult Social Care,Adult Social Care,Accord Housing Asssociation,25/02/2021,,2480.52,ASC - Residential Care Permanent,321000 - Social Community Care Supplies & Services - Adult
Solihull MBC,Adult Social Care,Adult Social Care,Accord Housing Asssociation,25/02/2021,,2480.52,ASC - Residential Care Permanent,321000 - Social Community Care Supplies & Services - Adult
Solihull MBC,Adult Social Care,Adult Social Care,Accord Housing Asssociation,25/02/2021,,2480.52,ASC - Residential Care Respite,321000 - Social Community Care Supplies & Services - Adult
Solihull MBC,Adult Social Care,Adult Social Care,Accord Housing Asssociation,25/02/2021,,2480.52,ASC - Residential Care Permanent,321000 - Social Community Care Supplies & Services - Adult
Solihull MBC,Adult Social Care,Adult Social Care,Accord Housing Asssociation,25/02/2021,,2480.52,ASC - Residential Care Respite,321000 - Social Community Care Supplies & Services - Adult
Solihull MBC,Adult Social Care,Adult Social Care,Accord Housing Asssociation,25/02/2021,,2480.52,ASC - Residential Care Permanent,321000 - Social Community Care Supplies & Services - Adult
Solihull MBC,Adult Social Care,Adult Social Care,Accord Housing Asssociation,25/02/2021,,2480.52,ASC - Residential Care Respite,321000 - Social Community Care Supplies & Services - Adult
Solihull MBC,Adult Social Care,Adult Social Care,Accord Housing Asssociation,25/02/2021,,2480.52,ASC - Residential Care Permanent,321000 - Social Community Care Supplies & Services - Adult
Solihull MBC,Covid-19,Central Services to the Public,Accord Housing Asssociation,09/02/2021,,21250.62,ASC - Residential Care Permanent,321000 - Social Community Care Supplies & Services - Adult
Solihull MBC,Children's Services - DSG Central.,Children & Education Services,Acorn Care & Education Ltd,17/02/2021,,12198.63,Other Contracted Services,Not Yet Classified
Solihull MBC,Covid-19,Central Services to the Public,Act On Energy,01/02/2021,,80000,Other Contracted Services,Not Yet Classified
Solihull MBC,Economy and Infrastructure,Highways & Transport Services,Action Graphics (Bham) Ltd,08/02/2021,,890,Materials,"391111 - Works - Construction, Repair & Maintenance - Buildings - Repair & Maintenance"
Solihull MBC,Resources,Central Services to the Public,Activate Enterprise,05/02/2021,,738,Training,Not Yet Classified
Solihull MBC,Adult Social Care,Adult Social Care,Active Design Ltd,12/02/2021,,15,Furniture & Equipment,Not Yet Classified
Solihull MBC,Adult Social Care,Adult Social Care,Active Design Ltd,12/02/2021,,288,Furniture & Equipment,Not Yet Classified
Solihull MBC,Economy and Infrastructure,Planning & Development Services,Adecoe Ltd,10/02/2021,,5150,Professional Fees,Not Yet Classified
Solihull MBC,Public Health & Commissioning,Central Services to the Public,Adrian Court T/A Clippers Barbers,08/02/2021,,4000,Grant & Subscription (SCITT),Not Yet Classified
Solihull MBC,Public Health & Commissioning,Central Services to the Public,Adrian Court T/A Clippers Barbers,08/02/2021,,2001,Grant & Subscription (SCITT),Not Yet Classified
Solihull MBC,Public Health & Commissioning,Central Services to the Public,Adrianswheels,24/02/2021,,2001,Grant & Subscription (SCITT),Not Yet Classified
Solihull MBC,Resources,Central Services to the Public,ADT Fire & Security PLC,12/02/2021,,1293.89,Other Premise Costs,192200 - Facilities & Management Services - Security
Solihull MBC,Adult Social Care,Adult Social Care,Advanced Caring Ltd,25/02/2021,,6439.72,ASC - Residential Care Permanent,Not Yet Classified
Solihull MBC,Public Health & Commissioning,Central Services to the Public,Aerospa Revive Ltd,05/02/2021,,2001,Grant & Subscription (SCITT),Not Yet Classified
Solihull MBC,Public Health & Commissioning,Central Services to the Public,AFH Stores UK Ltd,17/02/2021,,3000,Grant & Subscription (SCITT),Not Yet Classified
Solihull MBC,Economy and Infrastructure,Highways & Transport Services,AFI Group Of Companies,03/02/2021,,345,Transport-Contract Hire,Not Yet Classified
Solihull MBC,Economy and Infrastructure,Highways & Transport Services,AFI Group Of Companies,15/02/2021,,2842.8,Transport-Contract Hire,Not Yet Classified
Solihull MBC,Economy and Infrastructure,Highways & Transport Services,AFI Group Of Companies,15/02/2021,,-2497.8,Transport-Contract Hire,Not Yet Classified
Solihull MBC,Adult Social Care,Adult Social Care,Age UK Solihull,04/02/2021,,37513.26,Other Contracted Services,321000 - Social Community Care Supplies & Services - Adult
Solihull MBC,Adult Social Care,Adult Social Care,Age UK Solihull,04/02/2021,,169850.49,Other Contracted Services,321000 - Social Community Care Supplies & Services - Adult
Solihull MBC,Adult Social Care,Adult Social Care,Age UK Solihull,04/02/2021,,20250,Other Contracted Services,321000 - Social Community Care Supplies & Services - Adult
Solihull MBC,Public Health & Commissioning,Adult Social Care,Age UK Solihull,12/02/2021,,1125,Other Contracted Services,321000 - Social Community Care Supplies & Services - Adult
Solihull MBC,Public Health & Commissioning,Adult Social Care,Age UK Solihull,26/02/2021,,1125,Other Contracted Services,321000 - Social Community Care Supplies & Services - Adult
Solihull MBC,Adult Social Care,Adult Social Care,Aidapt Bathrooms Ltd,05/02/2021,,596,Furniture & Equipment,321000 - Social Community Care Supplies & Services - Adult
Solihull MBC,Adult Social Care,Adult Social Care,Aidapt Bathrooms Ltd,05/02/2021,,596,Furniture & Equipment,321000 - Social Community Care Supplies & Services - Adult
Solihull MBC,Adult Social Care,Adult Social Care,Aidapt Bathrooms Ltd,16/02/2021,,380,Furniture & Equipment,321000 - Social Community Care Supplies & Services - Adult
Solihull MBC,Adult Social Care,Adult Social Care,Aidapt Bathrooms Ltd,16/02/2021,,4690,Furniture & Equipment,321000 - Social Community Care Supplies & Services - Adult
Solihull MBC,Adult Social Care,Adult Social Care,Aidapt Bathrooms Ltd,16/02/2021,,2500,Furniture & Equipment,321000 - Social Community Care Supplies & Services - Adult
Solihull MBC,Adult Social Care,Adult Social Care,Aidapt Bathrooms Ltd,16/02/2021,,776,Furniture & Equipment,321000 - Social Community Care Supplies & Services - Adult
Solihull MBC,Adult Social Care,Adult Social Care,Aidapt Bathrooms Ltd,16/02/2021,,1699,Furniture & Equipment,321000 - Social Community Care Supplies & Services - Adult
Solihull MBC,Adult Social Care,Adult Social Care,Aidapt Bathrooms Ltd,19/02/2021,,1210,Furniture & Equipment,321000 - Social Community Care Supplies & Services - Adult
Solihull MBC,Adult Social Care,Adult Social Care,Aidapt Bathrooms Ltd,19/02/2021,,1150,Furniture & Equipment,321000 - Social Community Care Supplies & Services - Adult
Solihull MBC,Adult Social Care,Adult Social Care,Aidapt Bathrooms Ltd,26/02/2021,,441,Furniture & Equipment,321000 - Social Community Care Supplies & Services - Adult
Solihull MBC,Adult Social Care,Adult Social Care,Aidapt Bathrooms Ltd,26/02/2021,,416,Furniture & Equipment,321000 - Social Community Care Supplies & Services - Adult
Solihull MBC,Public Health & Commissioning,Central Services to the Public,Akamba,01/02/2021,,1334,Grant & Subscription (SCITT),Not Yet Classified
Solihull MBC,Public Health & Commissioning,Central Services to the Public,Akamba,08/02/2021,,4000,Grant & Subscription (SCITT),Not Yet Classified
Solihull MBC,Public Health & Commissioning,Central Services to the Public,Akamba,08/02/2021,,2001,Grant & Subscription (SCITT),Not Yet Classified
Solihull MBC,Adult Social Care,Adult Social Care,Akari Care Ltd,25/02/2021,,2779.28,ASC - Nursing Care Permanent,Not Yet Classified
Solihull MBC,Adult Social Care,Adult Social Care,Akari Care Ltd,25/02/2021,,2779.28,ASC - Nursing Care Permanent,Not Yet Classified
Solihull MBC,Adult Social Care,Adult Social Care,Akari Care Ltd,25/02/2021,,2468,ASC - Nursing Care Permanent,Not Yet Classified
Solihull MBC,Adult Social Care,Adult Social Care,Akari Care Ltd,25/02/2021,,2779.28,ASC - Nursing Care Permanent,Not Yet Classified
Solihull MBC,Children's Services - DSG Central.,Children & Education Services,Alderbrook School,04/02/2021,,9905,Other Contracted Services,171011 - Education - School Services
Solihull MBC,Children's Services - DSG Central.,Children & Education Services,Alderbrook School,10/02/2021,,800,Other Contracted Services,171011 - Education - School Services
Solihull MBC,Public Health & Commissioning,Central Services to the Public,Ale Hub Limited,01/02/2021,,1334,Grant & Subscription (SCITT),Not Yet Classified
Solihull MBC,Public Health & Commissioning,Central Services to the Public,Ale Hub Limited,01/02/2021,,1334,Grant & Subscription (SCITT),Not Yet Classified
Solihull MBC,Adult Social Care,Adult Social Care,Alexandra House - SJMT,25/02/2021,,2380,ASC - Residential Care Permanent,Not Yet Classified
Solihull MBC,Adult Social Care,Adult Social Care,Alexandra House - SJMT,25/02/2021,,-2380,ASC - Residential Care Permanent,Not Yet Classified
Solihull MBC,Adult Social Care,Adult Social Care,Alexandra House - SJMT,25/02/2021,,-1360,ASC - Residential Care Permanent,Not Yet Classified
Solihull MBC,Adult Social Care,Adult Social Care,Alexandra House - SJMT,25/02/2021,,2197.19,ASC - Residential Care Respite,Not Yet Classified
Solihull MBC,Adult Social Care,Adult Social Care,Alexandra House - SJMT,25/02/2021,,2292.72,ASC - Residential Care Respite,Not Yet Classified
Solihull MBC,Adult Social Care,Adult Social Care,Alexandra House - SJMT,25/02/2021,,1190,ASC - Residential Care Permanent,Not Yet Classified
Solihull MBC,Adult Social Care,Adult Social Care,Alexandra House - SJMT,25/02/2021,,1528.48,ASC - Residential Care Respite,Not Yet Classified
Solihull MBC,Adult Social Care,Adult Social Care,Alexandra House - SJMT,25/02/2021,,2388.25,ASC - Residential Care Respite,Not Yet Classified
Solihull MBC,Adult Social Care,Adult Social Care,Alexandra House - SJMT,25/02/2021,,-1530,ASC - Residential Care Permanent,Not Yet Classified
Solihull MBC,Adult Social Care,Adult Social Care,Alexandra House - SJMT,25/02/2021,,-2380,ASC - Residential Care Permanent,Not Yet Classified
Solihull MBC,Adult Social Care,Adult Social Care,Alexandra House - SJMT,25/02/2021,,2391.2,ASC - Residential Care Permanent,Not Yet Classified
Solihull MBC,Adult Social Care,Adult Social Care,Alexandra House - SJMT,25/02/2021,,2331,ASC - Residential Care Permanent,Not Yet Classified
Solihull MBC,Adult Social Care,Adult Social Care,Alexandra House - SJMT,25/02/2021,,2374.68,ASC - Residential Care Permanent,Not Yet Classified
Solihull MBC,Adult Social Care,Adult Social Care,Alexandra House - SJMT,25/02/2021,,2380,ASC - Residential Care Permanent,Not Yet Classified
Solihull MBC,Adult Social Care,Adult Social Care,Alexandra House - SJMT,25/02/2021,,2347.24,ASC - Residential Care Permanent,Not Yet Classified
Solihull MBC,Adult Social Care,Adult Social Care,Alexandra House - SJMT,25/02/2021,,765,ASC - Residential Care Permanent,Not Yet Classified
Solihull MBC,Adult Social Care,Adult Social Care,Alexandra House - SJMT,25/02/2021,,765,ASC - Residential Care Permanent,Not Yet Classified
Solihull MBC,Covid-19,Central Services to the Public,Alexandra House - SJMT,09/02/2021,,15300.45,ASC - Residential Care Permanent,Not Yet Classified
Solihull MBC,Economy and Infrastructure,Environmental and Regulatory Services,Alexandra PLC,15/02/2021,,25.75,Materials,To be classified individually
Solihull MBC,Economy and Infrastructure,Environmental and Regulatory Services,Alexandra PLC,15/02/2021,,58.59,Materials,To be classified individually
Solihull MBC,Economy and Infrastructure,Environmental and Regulatory Services,Alexandra PLC,15/02/2021,,47.49,Materials,To be classified individually
Solihull MBC,Economy and Infrastructure,Environmental and Regulatory Services,Alexandra PLC,15/02/2021,,80.45,Materials,To be classified individually
Solihull MBC,Public Health & Commissioning,Central Services to the Public,Alexi Promotions,17/02/2021,,934,Grant & Subscription (SCITT),Not Yet Classified
Solihull MBC,Adult Social Care,Adult Social Care,Alophonsus Services Ltd,25/02/2021,,11056.08,ASC - Residential Care Permanent,321000 - Social Community Care Supplies & Services - Adult
Solihull MBC,Children's Services & Skills,Children & Education Services,Alpha Biolaboratories Ltd,19/02/2021,,569,Professional Fees,Not Yet Classified
Solihull MBC,Children's Services & Skills,Children & Education Services,Alpha Biolaboratories Ltd,19/02/2021,,449,Professional Fees,Not Yet Classified
Solihull MBC,Children's Services & Skills,Children & Education Services,Alpha Biolaboratories Ltd,26/02/2021,,724,Professional Fees,Not Yet Classified
Solihull MBC,Children's Services & Skills,Children & Education Services,Alpha Biolaboratories Ltd,19/02/2021,,468,Professional Fees,Not Yet Classified
Solihull MBC,Adult Social Care,Adult Social Care,Alphabet GB Ltd,05/02/2021,,163.37,Transport-Contract Hire,Not Yet Classified
Solihull MBC,Adult Social Care,Adult Social Care,Alphabet GB Ltd,05/02/2021,,328.91,Transport-Contract Hire,Not Yet Classified
Solihull MBC,Adult Social Care,Adult Social Care,Alphabet GB Ltd,05/02/2021,,159.03,Transport-Contract Hire,Not Yet Classified
Solihull MBC,Adult Social Care,Adult Social Care,Amberley Court Nursing Home,25/02/2021,,4404.4,ASC - Nursing Care Permanent,321000 - Social Community Care Supplies & Services - Adult
Solihull MBC,Public Health & Commissioning,Central Services to the Public,Ambleside Bistro And Garden Centre Limited,17/02/2021,,2000,Grant & Subscription (SCITT),Not Yet Classified
Solihull MBC,Economy and Infrastructure,Highways & Transport Services,Amelio Group,10/02/2021,,3800,Other Contracted Services,Not Yet Classified
Solihull MBC,Resources,Central Services to the Public,Amznmktplace,24/02/2021,Card Transaction,359.6,Purchase Card Statement Summary,161000 - Domestic Goods - Commercial
Solihull MBC,Children's Services & Skills,Children & Education Services,Anchor Fostercare,19/02/2021,,1980.96,External Fostering,Not Yet Classified
Solihull MBC,Children's Services & Skills,Children & Education Services,Anchor Fostercare,19/02/2021,,2950.2,External Fostering,Not Yet Classified
Solihull MBC,Adult Social Care,Adult Social Care,Anchor Trust,25/02/2021,,2789.24,ASC - Residential Care Permanent,321000 - Social Community Care Supplies & Services - Adult
Solihull MBC,Adult Social Care,Adult Social Care,Anchor Trust,25/02/2021,,3200,ASC - Residential Care Permanent,321000 - Social Community Care Supplies & Services - Adult
Solihull MBC,Adult Social Care,Adult Social Care,Angels Healthcare Ltd,02/02/2021,,1133.64,ASC - Domiciliary Care,321000 - Social Community Care Supplies & Services - Adult
Solihull MBC,Adult Social Care,Adult Social Care,Angels Healthcare Ltd,02/02/2021,,947.52,ASC - Domiciliary Care,321000 - Social Community Care Supplies & Services - Adult
Solihull MBC,Adult Social Care,Adult Social Care,Angels Healthcare Ltd,02/02/2021,,710.64,ASC - Domiciliary Care,321000 - Social Community Care Supplies & Services - Adult
Solihull MBC,Adult Social Care,Adult Social Care,Angels Healthcare Ltd,02/02/2021,,338.4,ASC - Domiciliary Care,321000 - Social Community Care Supplies & Services - Adult
Solihull MBC,Adult Social Care,Adult Social Care,Angels Healthcare Ltd,02/02/2021,,964.44,ASC - Domiciliary Care,321000 - Social Community Care Supplies & Services - Adult
Solihull MBC,Adult Social Care,Adult Social Care,Angels Healthcare Ltd,02/02/2021,,964.44,ASC - Domiciliary Care,321000 - Social Community Care Supplies & Services - Adult
Solihull MBC,Adult Social Care,Adult Social Care,Angels Healthcare Ltd,02/02/2021,,2131.92,ASC - Domiciliary Care,321000 - Social Community Care Supplies & Services - Adult
Solihull MBC,Adult Social Care,Adult Social Care,Angels Healthcare Ltd,02/02/2021,,592.2,ASC - Domiciliary Care,321000 - Social Community Care Supplies & Services - Adult
Solihull MBC,Adult Social Care,Adult Social Care,Angels Healthcare Ltd,02/02/2021,,473.76,ASC - Domiciliary Care,321000 - Social Community Care Supplies & Services - Adult
Solihull MBC,Adult Social Care,Adult Social Care,Angels Healthcare Ltd,02/02/2021,,947.52,ASC - Domiciliary Care,321000 - Social Community Care Supplies & Services - Adult
Solihull MBC,Adult Social Care,Adult Social Care,Angels Healthcare Ltd,02/02/2021,,947.52,ASC - Domiciliary Care,321000 - Social Community Care Supplies & Services - Adult
Solihull MBC,Adult Social Care,Adult Social Care,Angels Healthcare Ltd,02/02/2021,,592.2,ASC - Domiciliary Care,321000 - Social Community Care Supplies & Services - Adult
Solihull MBC,Adult Social Care,Adult Social Care,Angels Healthcare Ltd,02/02/2021,,355.32,ASC - Domiciliary Care,321000 - Social Community Care Supplies & Services - Adult
Solihull MBC,Adult Social Care,Adult Social Care,Angels Healthcare Ltd,02/02/2021,,710.64,ASC - Domiciliary Care,321000 - Social Community Care Supplies & Services - Adult
Solihull MBC,Adult Social Care,Adult Social Care,Angels Healthcare Ltd,02/02/2021,,507.6,ASC - Domiciliary Care,321000 - Social Community Care Supplies & Services - Adult
Solihull MBC,Adult Social Care,Adult Social Care,Angels Healthcare Ltd,02/02/2021,,947.52,ASC - Domiciliary Care,321000 - Social Community Care Supplies & Services - Adult
Solihull MBC,Adult Social Care,Adult Social Care,Angels Healthcare Ltd,02/02/2021,,947.52,ASC - Domiciliary Care,321000 - Social Community Care Supplies & Services - Adult
Solihull MBC,Adult Social Care,Adult Social Care,Angels Healthcare Ltd,02/02/2021,,626.04,ASC - Domiciliary Care,321000 - Social Community Care Supplies & Services - Adult
Solihull MBC,Adult Social Care,Adult Social Care,Angels Healthcare Ltd,02/02/2021,,626.04,ASC - Domiciliary Care,321000 - Social Community Care Supplies & Services - Adult
Solihull MBC,Adult Social Care,Adult Social Care,Angels Healthcare Ltd,02/02/2021,,829.08,ASC - Domiciliary Care,321000 - Social Community Care Supplies & Services - Adult
Solihull MBC,Adult Social Care,Adult Social Care,Angels Healthcare Ltd,02/02/2021,,1895.04,ASC - Domiciliary Care,321000 - Social Community Care Supplies & Services - Adult
Solihull MBC,Adult Social Care,Adult Social Care,Angels Healthcare Ltd,02/02/2021,,592.2,ASC - Domiciliary Care,321000 - Social Community Care Supplies & Services - Adult
Solihull MBC,Adult Social Care,Adult Social Care,Angels Healthcare Ltd,02/02/2021,,710.64,ASC - Domiciliary Care,321000 - Social Community Care Supplies & Services - Adult
Solihull MBC,Adult Social Care,Adult Social Care,Angels Healthcare Ltd,02/02/2021,,2047.32,ASC - Domiciliary Care,321000 - Social Community Care Supplies & Services - Adult
Solihull MBC,Adult Social Care,Adult Social Care,Angels Healthcare Ltd,02/02/2021,,947.52,ASC - Domiciliary Care,321000 - Social Community Care Supplies & Services - Adult
Solihull MBC,Adult Social Care,Adult Social Care,Angels Healthcare Ltd,02/02/2021,,1015.2,ASC - Domiciliary Care,321000 - Social Community Care Supplies & Services - Adult
Solihull MBC,Adult Social Care,Adult Social Care,Anita Stone Court,25/02/2021,,2996.28,ASC - Nursing Care Permanent,Not Yet Classified
Solihull MBC,Public Health & Commissioning,Central Services to the Public,Annora House Guest House,01/02/2021,,934,Grant & Subscription (SCITT),Not Yet Classified
Solihull MBC,Children's Services & Skills,Children & Education Services,Apollo Home Healthcare Ltd,24/02/2021,,364.8,Clients Expenses,Not Yet Classified
Solihull MBC,Children's Services & Skills,Children & Education Services,Apollo Home Healthcare Ltd,24/02/2021,,328.32,Clients Expenses,Not Yet Classified
Solihull MBC,Children's Services & Skills,Children & Education Services,Apollo Home Healthcare Ltd,24/02/2021,,474.24,Clients Expenses,Not Yet Classified
Solihull MBC,Children's Services & Skills,Children & Education Services,Apollo Home Healthcare Ltd,24/02/2021,,547.2,Clients Expenses,Not Yet Classified
Solihull MBC,Children's Services & Skills,Children & Education Services,Apollo Home Healthcare Ltd,24/02/2021,,474.24,Clients Expenses,Not Yet Classified
Solihull MBC,Children's Services & Skills,Children & Education Services,Apollo Home Healthcare Ltd,24/02/2021,,474.24,Clients Expenses,Not Yet Classified
Solihull MBC,Public Health & Commissioning,Central Services to the Public,Aquasport Midlands,04/02/2021,,934,Grant & Subscription (SCITT),Not Yet Classified
Solihull MBC,Children's Services - DSG Central.,Children & Education Services,Archbishop Ilsley Catholic Technology College & Sixth Form Centre,10/02/2021,,400,Other Contracted Services,Not Yet Classified
Solihull MBC,Children's Services & Skills,Children & Education Services,Archways Care Ltd,26/02/2021,,11003.14,Other Contracted Services,Not Yet Classified
Solihull MBC,Children's Services & Skills,Children & Education Services,Archways Care Ltd,26/02/2021,,17116,Other Contracted Services,Not Yet Classified
Solihull MBC,Children's Services - DSG Central.,Children & Education Services,Arden School,10/02/2021,,400,Other Contracted Services,Not Yet Classified
Solihull MBC,Adult Social Care,Adult Social Care,Ardenlea Court,25/02/2021,,2503.2,ASC - Nursing Care Permanent,321000 - Social Community Care Supplies & Services - Adult
Solihull MBC,Adult Social Care,Adult Social Care,Ardenlea Court,25/02/2021,,2503.2,ASC - Nursing Care Permanent,321000 - Social Community Care Supplies & Services - Adult
Solihull MBC,Adult Social Care,Adult Social Care,Ardenlea Court,25/02/2021,,2052.54,ASC - Nursing Care Permanent,321000 - Social Community Care Supplies & Services - Adult
Solihull MBC,Adult Social Care,Adult Social Care,Ardenlea Court,25/02/2021,,1081.59,ASC - Residential Care Permanent,321000 - Social Community Care Supplies & Services - Adult
Solihull MBC,Adult Social Care,Adult Social Care,Ardenlea Court,25/02/2021,,2736.72,ASC - Nursing Care Permanent,321000 - Social Community Care Supplies & Services - Adult
Solihull MBC,Covid-19,Central Services to the Public,Ardenlea Court,09/02/2021,,25500.75,ASC - Residential Care Permanent,321000 - Social Community Care Supplies & Services - Adult
Solihull MBC,Adult Social Care,Adult Social Care,Ardenlea Grove Nursing Home,25/02/2021,,535.71,ASC - Nursing Care Permanent,321000 - Social Community Care Supplies & Services - Adult
Solihull MBC,Adult Social Care,Adult Social Care,Ardenlea Grove Nursing Home,25/02/2021,,2503.2,ASC - Nursing Care Permanent,321000 - Social Community Care Supplies & Services - Adult
Solihull MBC,Adult Social Care,Adult Social Care,Ardenlea Grove Nursing Home,25/02/2021,,3421.6,ASC - Nursing Care Permanent,321000 - Social Community Care Supplies & Services - Adult
Solihull MBC,Adult Social Care,Adult Social Care,Ardenlea Grove Nursing Home,25/02/2021,,3734.08,ASC - Nursing Care Permanent,321000 - Social Community Care Supplies & Services - Adult
Solihull MBC,Adult Social Care,Adult Social Care,Ardenlea Grove Nursing Home,25/02/2021,,3026.24,ASC - Nursing Care Permanent,321000 - Social Community Care Supplies & Services - Adult
Solihull MBC,Adult Social Care,Adult Social Care,Ardenlea Grove Nursing Home,25/02/2021,,3993.44,ASC - Nursing Care Permanent,321000 - Social Community Care Supplies & Services - Adult
Solihull MBC,Covid-19,Central Services to the Public,Ardenlea Grove Nursing Home,09/02/2021,,25500.75,ASC - Residential Care Permanent,321000 - Social Community Care Supplies & Services - Adult
Solihull MBC,Children's Services & Skills,Children & Education Services,Argos Ltd,24/02/2021,Card Transaction,248.95,Purchase Card Statement Summary,169999 - Domestic Goods - Not Elsewhere Classified
Solihull MBC,Children's Services & Skills,Children & Education Services,Argos Ltd,24/02/2021,Card Transaction,376.95,Purchase Card Statement Summary,169999 - Domestic Goods - Not Elsewhere Classified
Solihull MBC,Children's Services & Skills,Children & Education Services,Argos Ltd,02/02/2021,Card Transaction,386.65,Client Leaving Care Grant,169999 - Domestic Goods - Not Elsewhere Classified
Solihull MBC,Resources,Planning & Development Services,Argus Software (UK) Ltd,17/02/2021,,6600,IT Equipment & Software,Not Yet Classified
Solihull MBC,Adult Social Care,Adult Social Care,Arjo Ltd,22/02/2021,,5238,Furniture & Equipment,321000 - Social Community Care Supplies & Services - Adult
Solihull MBC,Adult Social Care,Adult Social Care,Arjo Ltd,22/02/2021,,6621,Furniture & Equipment,321000 - Social Community Care Supplies & Services - Adult
Solihull MBC,Adult Social Care,Adult Social Care,Arjo Ltd,04/02/2021,,7160.8,Furniture & Equipment,321000 - Social Community Care Supplies & Services - Adult
Solihull MBC,Adult Social Care,Adult Social Care,Arjo Ltd,23/02/2021,,7086.8,Furniture & Equipment,321000 - Social Community Care Supplies & Services - Adult
Solihull MBC,Children's Services - DSG Central.,Children & Education Services,Arrow County Supplies,02/02/2021,,170.2,Cleaning,130000 - Cleaning & Janitorial
Solihull MBC,Children's Services - DSG Central.,Children & Education Services,Arrow County Supplies,02/02/2021,,43.5,Cleaning,130000 - Cleaning & Janitorial
Solihull MBC,Children's Services - DSG Central.,Children & Education Services,Arrow County Supplies,02/02/2021,,344.25,Cleaning,130000 - Cleaning & Janitorial
Solihull MBC,Children's Services - DSG Central.,Children & Education Services,Arrow County Supplies,02/02/2021,,193.8,Cleaning,130000 - Cleaning & Janitorial
Solihull MBC,Children's Services - DSG Central.,Children & Education Services,Arrow County Supplies,02/02/2021,,288,Cleaning,130000 - Cleaning & Janitorial
Solihull MBC,Children's Services - DSG Central.,Children & Education Services,Arrow County Supplies,02/02/2021,,112,Cleaning,130000 - Cleaning & Janitorial
Solihull MBC,Children's Services - DSG Central.,Children & Education Services,Arrow County Supplies,08/02/2021,,88.56,Cleaning,130000 - Cleaning & Janitorial
Solihull MBC,Children's Services - DSG Central.,Children & Education Services,Arrow County Supplies,08/02/2021,,214.2,Cleaning,130000 - Cleaning & Janitorial
Solihull MBC,Children's Services - DSG Central.,Children & Education Services,Arrow County Supplies,08/02/2021,,222,Cleaning,130000 - Cleaning & Janitorial
Solihull MBC,Children's Services - DSG Central.,Children & Education Services,Arrow County Supplies,08/02/2021,,21,Cleaning,130000 - Cleaning & Janitorial
Solihull MBC,Children's Services - DSG Central.,Children & Education Services,Arrow County Supplies,08/02/2021,,60.2,Cleaning,130000 - Cleaning & Janitorial
Solihull MBC,Children's Services - DSG Central.,Children & Education Services,Arrow County Supplies,08/02/2021,,170.2,Cleaning,130000 - Cleaning & Janitorial
Solihull MBC,Children's Services - DSG Central.,Children & Education Services,Arrow County Supplies,08/02/2021,,141,Cleaning,130000 - Cleaning & Janitorial
Solihull MBC,Children's Services - DSG Central.,Children & Education Services,Arrow County Supplies,08/02/2021,,133.6,Cleaning,130000 - Cleaning & Janitorial
Solihull MBC,Children's Services - DSG Central.,Children & Education Services,Arrow County Supplies,08/02/2021,,58,Cleaning,130000 - Cleaning & Janitorial
Solihull MBC,Children's Services - DSG Central.,Children & Education Services,Arrow County Supplies,08/02/2021,,51.36,Cleaning,130000 - Cleaning & Janitorial
Solihull MBC,Children's Services - DSG Central.,Children & Education Services,Arrow County Supplies,08/02/2021,,81.4,Cleaning,130000 - Cleaning & Janitorial
Solihull MBC,Children's Services - DSG Central.,Children & Education Services,Arrow County Supplies,08/02/2021,,51.96,Cleaning,130000 - Cleaning & Janitorial
Solihull MBC,Children's Services - DSG Central.,Children & Education Services,Arrow County Supplies,08/02/2021,,55.8,Cleaning,130000 - Cleaning & Janitorial
Solihull MBC,Children's Services - DSG Central.,Children & Education Services,Arrow County Supplies,08/02/2021,,36.24,Cleaning,130000 - Cleaning & Janitorial
Solihull MBC,Children's Services - DSG Central.,Children & Education Services,Arrow County Supplies,08/02/2021,,94.4,Cleaning,130000 - Cleaning & Janitorial
Solihull MBC,Children's Services - DSG Central.,Children & Education Services,Arrow County Supplies,08/02/2021,,288,Cleaning,130000 - Cleaning & Janitorial
Solihull MBC,Children's Services - DSG Central.,Children & Education Services,Arrow County Supplies,08/02/2021,,72.8,Cleaning,130000 - Cleaning & Janitorial
Solihull MBC,Children's Services - DSG Central.,Children & Education Services,Arrow County Supplies,10/02/2021,,280.84,Cleaning,130000 - Cleaning & Janitorial
Solihull MBC,Children's Services - DSG Central.,Children & Education Services,Arrow County Supplies,12/02/2021,,26.9,Cleaning,130000 - Cleaning & Janitorial
Solihull MBC,Children's Services - DSG Central.,Children & Education Services,Arrow County Supplies,12/02/2021,,212,Cleaning,130000 - Cleaning & Janitorial
Solihull MBC,Children's Services - DSG Central.,Children & Education Services,Arrow County Supplies,12/02/2021,,147.6,Cleaning,130000 - Cleaning & Janitorial
Solihull MBC,Children's Services - DSG Central.,Children & Education Services,Arrow County Supplies,12/02/2021,,424,Cleaning,130000 - Cleaning & Janitorial
Solihull MBC,Adult Social Care,Adult Social Care,Ashbourne Care Ltd,25/02/2021,,2191.28,ASC - Residential Care Permanent,Not Yet Classified
Solihull MBC,Adult Social Care,Adult Social Care,Ashdale Care Homes Ltd,25/02/2021,,2554.72,ASC - Residential Care Permanent,321000 - Social Community Care Supplies & Services - Adult
Solihull MBC,Adult Social Care,Adult Social Care,Ashdale Care Homes Ltd,25/02/2021,,2954.84,ASC - Residential Care Permanent,321000 - Social Community Care Supplies & Services - Adult
Solihull MBC,Resources,Central Services to the Public,Asite Solutions Ltd,09/02/2021,,2409,IT Equipment & Software,Not Yet Classified
Solihull MBC,Economy and Infrastructure,Cultural & Related Services,Askews Library Services Ltd,23/02/2021,,96.54,Materials,170000 - Education
Solihull MBC,Economy and Infrastructure,Cultural & Related Services,Askews Library Services Ltd,23/02/2021,,145.97,Materials,170000 - Education
Solihull MBC,Economy and Infrastructure,Cultural & Related Services,Askews Library Services Ltd,23/02/2021,,19.02,Materials,170000 - Education
Solihull MBC,Adult Social Care,Adult Social Care,Aspects Care Ltd,03/02/2021,,989.52,ASC - Supported Living Care Costs,Not Yet Classified
Solihull MBC,Adult Social Care,Adult Social Care,Aspects Care Ltd,03/02/2021,,1979.04,ASC - Supported Living Care Costs,Not Yet Classified
Solihull MBC,Adult Social Care,Adult Social Care,Aspects Care Ltd,03/02/2021,,280,ASC - Supported Living Care Costs,Not Yet Classified
Solihull MBC,Adult Social Care,Adult Social Care,Aspects Care Ltd,03/02/2021,,1468.32,ASC - Supported Living Care Costs,Not Yet Classified
Solihull MBC,Adult Social Care,Adult Social Care,Aspects Care Ltd,03/02/2021,,1340.64,ASC - Supported Living Care Costs,Not Yet Classified
Solihull MBC,Adult Social Care,Adult Social Care,Aspects Care Ltd,03/02/2021,,1324.68,ASC - Supported Living Care Costs,Not Yet Classified
Solihull MBC,Adult Social Care,Adult Social Care,Aspects Care Ltd,03/02/2021,,1881.6,ASC - Domiciliary Care,Not Yet Classified
Solihull MBC,Adult Social Care,Adult Social Care,Aspects Care Ltd,03/02/2021,,2298.24,ASC - Supported Living Care Costs,Not Yet Classified
Solihull MBC,Adult Social Care,Adult Social Care,Aspects Care Ltd,03/02/2021,,845.88,ASC - Supported Living Care Costs,Not Yet Classified
Solihull MBC,Adult Social Care,Adult Social Care,Aspects Care Ltd,03/02/2021,,989.52,ASC - Supported Living Care Costs,Not Yet Classified
Solihull MBC,Adult Social Care,Adult Social Care,Aspects Care Ltd,03/02/2021,,1596,ASC - Supported Living Care Costs,Not Yet Classified
Solihull MBC,Adult Social Care,Adult Social Care,Aspects Care Ltd,03/02/2021,,989.52,ASC - Supported Living Care Costs,Not Yet Classified
Solihull MBC,Adult Social Care,Adult Social Care,Aspects Care Ltd,03/02/2021,,3798.48,ASC - Supported Living Care Costs,Not Yet Classified
Solihull MBC,Adult Social Care,Adult Social Care,Aspects Care Ltd,03/02/2021,,280,ASC - Supported Living Care Costs,Not Yet Classified
Solihull MBC,Adult Social Care,Adult Social Care,Aspects Care Ltd,03/02/2021,,1212.96,ASC - Supported Living Care Costs,Not Yet Classified
Solihull MBC,Adult Social Care,Adult Social Care,Aspects Care Ltd,03/02/2021,,6703.2,ASC - Supported Living Care Costs,Not Yet Classified
Solihull MBC,Adult Social Care,Adult Social Care,Aspects Care Ltd,03/02/2021,,4021.92,ASC - Supported Living Care Costs,Not Yet Classified
Solihull MBC,Adult Social Care,Adult Social Care,Aspects Care Ltd,22/02/2021,,319.2,ASC - Supported Living Care Costs,Not Yet Classified
Solihull MBC,Adult Social Care,Adult Social Care,Aspects Care Ltd,22/02/2021,,-319.2,ASC - Supported Living Care Costs,Not Yet Classified
Solihull MBC,Adult Social Care,Adult Social Care,Aspects Care Ltd,22/02/2021,,13210.89,ASC - Supported Living Care Costs,Not Yet Classified
Solihull MBC,Adult Social Care,Adult Social Care,Aspects Care Ltd,03/02/2021,,500.08,ASC - Supported Living Care Costs,Not Yet Classified
Solihull MBC,Adult Social Care,Adult Social Care,Aspects Care Ltd,03/02/2021,,1883.28,ASC - Supported Living Care Costs,Not Yet Classified
Solihull MBC,Adult Social Care,Adult Social Care,Aspects Care Ltd,03/02/2021,,2170.56,ASC - Supported Living Care Costs,Not Yet Classified
Solihull MBC,Adult Social Care,Adult Social Care,Aspects Care Ltd,03/02/2021,,446.88,ASC - Out of hospital,Not Yet Classified
Solihull MBC,Adult Social Care,Adult Social Care,Aspects Care Ltd,03/02/2021,,1117.2,ASC - Out of hospital,Not Yet Classified
Solihull MBC,Adult Social Care,Adult Social Care,Aspects Care Ltd,03/02/2021,,925.68,ASC - Supported Living Care Costs,Not Yet Classified
Solihull MBC,Adult Social Care,Adult Social Care,Aspects Care Ltd,03/02/2021,,414.96,ASC - Supported Living Care Costs,Not Yet Classified
Solihull MBC,Adult Social Care,Adult Social Care,Aspects Care Ltd,03/02/2021,,1117.2,ASC - Supported Living Care Costs,Not Yet Classified
Solihull MBC,Adult Social Care,Adult Social Care,Aspects Care Ltd,03/02/2021,,1021.44,ASC - Supported Living Care Costs,Not Yet Classified
Solihull MBC,Adult Social Care,Adult Social Care,Aspects Care Ltd,03/02/2021,,829.92,ASC - Supported Living Care Costs,Not Yet Classified
Solihull MBC,Adult Social Care,Adult Social Care,Aspects Care Ltd,03/02/2021,,1436.4,ASC - Supported Living Care Costs,Not Yet Classified
Solihull MBC,Adult Social Care,Adult Social Care,Aspects Care Ltd,03/02/2021,,500.08,ASC - Supported Living Care Costs,Not Yet Classified
Solihull MBC,Adult Social Care,Adult Social Care,Aspects Care Ltd,03/02/2021,,3814.44,ASC - Supported Living Care Costs,Not Yet Classified
Solihull MBC,Adult Social Care,Adult Social Care,Aspects Care Ltd,03/02/2021,,766.08,ASC - Supported Living Care Costs,Not Yet Classified
Solihull MBC,Adult Social Care,Adult Social Care,Aspects Care Ltd,03/02/2021,,1340.64,ASC - Supported Living Care Costs,Not Yet Classified
Solihull MBC,Adult Social Care,Adult Social Care,Aspects Care Ltd,03/02/2021,,500.08,ASC - Supported Living Care Costs,Not Yet Classified
Solihull MBC,Adult Social Care,Adult Social Care,Aspects Care Ltd,03/02/2021,,3016.44,ASC - Supported Living Care Costs,Not Yet Classified
Solihull MBC,Adult Social Care,Adult Social Care,Aspects Care Ltd,03/02/2021,,1340.64,ASC - Supported Living Care Costs,Not Yet Classified
Solihull MBC,Adult Social Care,Adult Social Care,Aspects Care Ltd,03/02/2021,,2298.24,ASC - Supported Living Care Costs,Not Yet Classified
Solihull MBC,Adult Social Care,Adult Social Care,Aspects Care Ltd,03/02/2021,,989.52,ASC - Supported Living Care Costs,Not Yet Classified
Solihull MBC,Adult Social Care,Adult Social Care,Aspects Care Ltd,03/02/2021,,989.52,ASC - Supported Living Care Costs,Not Yet Classified
Solihull MBC,Adult Social Care,Adult Social Care,Aspects Care Ltd,03/02/2021,,845.88,ASC - Supported Living Care Costs,Not Yet Classified
Solihull MBC,Adult Social Care,Adult Social Care,Aspects Care Ltd,03/02/2021,,2042.88,ASC - Supported Living Care Costs,Not Yet Classified
Solihull MBC,Adult Social Care,Adult Social Care,Aspects Care Ltd,03/02/2021,,989.52,ASC - Supported Living Care Costs,Not Yet Classified
Solihull MBC,Adult Social Care,Adult Social Care,Aspects Care Ltd,04/02/2021,,885.78,ASC - Supported Living Care Costs,Not Yet Classified
Solihull MBC,Children's Services & Skills,Children & Education Services,Aspire Supported Living CIC,05/02/2021,,3200,Supported Lodgings,Not Yet Classified
Solihull MBC,Children's Services & Skills,Children & Education Services,Aspire Supported Living CIC,05/02/2021,,3200,Supported Lodgings,Not Yet Classified
Solihull MBC,Children's Services & Skills,Children & Education Services,Aston Childrens Care,26/02/2021,,1113.86,Other Contracted Services,Not Yet Classified
Solihull MBC,Children's Services & Skills,Children & Education Services,Aston Childrens Care,26/02/2021,,3071.43,Other Contracted Services,Not Yet Classified
Solihull MBC,Children's Services & Skills,Children & Education Services,Aston Childrens Care,26/02/2021,,14128.57,Other Contracted Services,Not Yet Classified
Solihull MBC,Children's Services & Skills,Children & Education Services,Aston Childrens Care,26/02/2021,,6237.6,Other Contracted Services,Not Yet Classified
Solihull MBC,Children's Services & Skills,Children & Education Services,Aston Childrens Care,19/02/2021,,16800,Other Contracted Services,Not Yet Classified
Solihull MBC,Children's Services & Skills,Children & Education Services,Aston Childrens Care,26/02/2021,,-13800,Other Contracted Services,Not Yet Classified
Solihull MBC,Children's Services & Skills,Children & Education Services,Aston Childrens Care,26/02/2021,,-16800,Other Contracted Services,Not Yet Classified
Solihull MBC,Children's Services & Skills,Children & Education Services,Aston Childrens Care,26/02/2021,,-16800,Other Contracted Services,Not Yet Classified
Solihull MBC,Children's Services & Skills,Children & Education Services,Aston Childrens Care,26/02/2021,,-16800,Other Contracted Services,Not Yet Classified
Solihull MBC,Children's Services & Skills,Children & Education Services,Aston Childrens Care,26/02/2021,,-16800,Other Contracted Services,Not Yet Classified
Solihull MBC,Children's Services & Skills,Children & Education Services,Aston Childrens Care,26/02/2021,,-16800,Other Contracted Services,Not Yet Classified
Solihull MBC,Children's Services & Skills,Children & Education Services,Aston Childrens Care,26/02/2021,,-16800,Other Contracted Services,Not Yet Classified
Solihull MBC,Children's Services & Skills,Children & Education Services,Aston Childrens Care,26/02/2021,,-16800,Other Contracted Services,Not Yet Classified
Solihull MBC,Children's Services & Skills,Children & Education Services,Aston Childrens Care,26/02/2021,,13800,Other Contracted Services,Not Yet Classified
Solihull MBC,Children's Services & Skills,Children & Education Services,Aston Childrens Care,26/02/2021,,16800,Other Contracted Services,Not Yet Classified
Solihull MBC,Children's Services & Skills,Children & Education Services,Aston Childrens Care,26/02/2021,,16800,Other Contracted Services,Not Yet Classified
Solihull MBC,Children's Services & Skills,Children & Education Services,Aston Childrens Care,26/02/2021,,16800,Other Contracted Services,Not Yet Classified
Solihull MBC,Children's Services & Skills,Children & Education Services,Aston Childrens Care,26/02/2021,,16800,Other Contracted Services,Not Yet Classified
Solihull MBC,Children's Services & Skills,Children & Education Services,Aston Childrens Care,26/02/2021,,16800,Other Contracted Services,Not Yet Classified
Solihull MBC,Children's Services & Skills,Children & Education Services,Aston Childrens Care,26/02/2021,,16800,Other Contracted Services,Not Yet Classified
Solihull MBC,Children's Services & Skills,Children & Education Services,Aston Childrens Care,26/02/2021,,16800,Other Contracted Services,Not Yet Classified
Solihull MBC,Children's Services & Skills,Children & Education Services,Aston Childrens Care,26/02/2021,,16800,Other Contracted Services,Not Yet Classified
Solihull MBC,Children's Services & Skills,Children & Education Services,Aston Childrens Care,19/02/2021,,16800,Other Contracted Services,Not Yet Classified
Solihull MBC,Children's Services & Skills,Children & Education Services,Aston Childrens Care,26/02/2021,,-13800,Other Contracted Services,Not Yet Classified
Solihull MBC,Children's Services & Skills,Children & Education Services,Aston Childrens Care,26/02/2021,,-16800,Other Contracted Services,Not Yet Classified
Solihull MBC,Children's Services & Skills,Children & Education Services,Aston Childrens Care,26/02/2021,,-16800,Other Contracted Services,Not Yet Classified
Solihull MBC,Children's Services & Skills,Children & Education Services,Aston Childrens Care,26/02/2021,,-16800,Other Contracted Services,Not Yet Classified
Solihull MBC,Children's Services & Skills,Children & Education Services,Aston Childrens Care,26/02/2021,,-16800,Other Contracted Services,Not Yet Classified
Solihull MBC,Children's Services & Skills,Children & Education Services,Aston Childrens Care,26/02/2021,,-16800,Other Contracted Services,Not Yet Classified
Solihull MBC,Children's Services & Skills,Children & Education Services,Aston Childrens Care,26/02/2021,,-16800,Other Contracted Services,Not Yet Classified
Solihull MBC,Children's Services & Skills,Children & Education Services,Aston Childrens Care,26/02/2021,,-16800,Other Contracted Services,Not Yet Classified
Solihull MBC,Children's Services & Skills,Children & Education Services,Aston Childrens Care,26/02/2021,,13800,Other Contracted Services,Not Yet Classified
Solihull MBC,Children's Services & Skills,Children & Education Services,Aston Childrens Care,26/02/2021,,16800,Other Contracted Services,Not Yet Classified
Solihull MBC,Children's Services & Skills,Children & Education Services,Aston Childrens Care,26/02/2021,,16800,Other Contracted Services,Not Yet Classified
Solihull MBC,Children's Services & Skills,Children & Education Services,Aston Childrens Care,26/02/2021,,16800,Other Contracted Services,Not Yet Classified
Solihull MBC,Children's Services & Skills,Children & Education Services,Aston Childrens Care,26/02/2021,,16800,Other Contracted Services,Not Yet Classified
Solihull MBC,Children's Services & Skills,Children & Education Services,Aston Childrens Care,26/02/2021,,16800,Other Contracted Services,Not Yet Classified
Solihull MBC,Children's Services & Skills,Children & Education Services,Aston Childrens Care,26/02/2021,,16800,Other Contracted Services,Not Yet Classified
Solihull MBC,Children's Services & Skills,Children & Education Services,Aston Childrens Care,26/02/2021,,16800,Other Contracted Services,Not Yet Classified
Solihull MBC,Children's Services & Skills,Children & Education Services,Aston Childrens Care,26/02/2021,,16800,Other Contracted Services,Not Yet Classified
Solihull MBC,Economy and Infrastructure,Planning & Development Services,Atkins,04/02/2021,,29400,Professional Fees,150000 - Consultancy
Solihull MBC,Economy and Infrastructure,Highways & Transport Services,Atkins,18/02/2021,,5377.91,Agency Staff,150000 - Consultancy
Solihull MBC,Resources,Central Services to the Public,Atkins,26/02/2021,,4474.3,Contractors,150000 - Consultancy
Solihull MBC,Economy and Infrastructure,Planning & Development Services,Atkins Ltd,02/02/2021,,5368.66,Professional Fees,150000 - Consultancy
Solihull MBC,Economy and Infrastructure,Planning & Development Services,Atkins Ltd,04/02/2021,,2846.28,Professional Fees,150000 - Consultancy
Solihull MBC,Economy and Infrastructure,Planning & Development Services,Atkins Ltd,04/02/2021,,2846.28,Professional Fees,150000 - Consultancy
Solihull MBC,Economy and Infrastructure,Planning & Development Services,Atkins Ltd,04/02/2021,,8610,Professional Fees,150000 - Consultancy
Solihull MBC,Economy and Infrastructure,Planning & Development Services,Atkins Ltd,04/02/2021,,1616.96,Professional Fees,150000 - Consultancy
Solihull MBC,Economy and Infrastructure,Planning & Development Services,Atkins Ltd,04/02/2021,,1616.96,Professional Fees,150000 - Consultancy
Solihull MBC,Economy and Infrastructure,Planning & Development Services,Atkins Ltd,04/02/2021,,1616.96,Professional Fees,150000 - Consultancy
Solihull MBC,Economy and Infrastructure,Planning & Development Services,Atkins Ltd,04/02/2021,,1616.96,Professional Fees,150000 - Consultancy
Solihull MBC,Economy and Infrastructure,Planning & Development Services,Atkins Ltd,04/02/2021,,450.98,Professional Fees,150000 - Consultancy
Solihull MBC,Economy and Infrastructure,Planning & Development Services,Atkins Ltd,04/02/2021,,450.98,Professional Fees,150000 - Consultancy
Solihull MBC,Economy and Infrastructure,Planning & Development Services,Atkins Ltd,04/02/2021,,450.98,Professional Fees,150000 - Consultancy
Solihull MBC,Economy and Infrastructure,Planning & Development Services,Atkins Ltd,04/02/2021,,450.98,Professional Fees,150000 - Consultancy
Solihull MBC,Economy and Infrastructure,Planning & Development Services,Atkins Ltd,04/02/2021,,1826.37,Professional Fees,150000 - Consultancy
Solihull MBC,Economy and Infrastructure,Planning & Development Services,Atkins Ltd,04/02/2021,,1826.37,Professional Fees,150000 - Consultancy
Solihull MBC,Economy and Infrastructure,Planning & Development Services,Atkins Ltd,04/02/2021,,1826.37,Professional Fees,150000 - Consultancy
Solihull MBC,Economy and Infrastructure,Planning & Development Services,Atkins Ltd,04/02/2021,,1826.37,Professional Fees,150000 - Consultancy
Solihull MBC,Economy and Infrastructure,Planning & Development Services,Atkins Ltd,15/02/2021,,13350,Professional Fees,150000 - Consultancy
Solihull MBC,Public Health & Commissioning,Central Services to the Public,Atlas Hotels (Birmingham) Limited,01/02/2021,,3000,Grant & Subscription (SCITT),Not Yet Classified
Solihull MBC,Resources,Other Housing Services,Auriga Services Ltd,15/02/2021,,7841.6,Clients Expenses,Not Yet Classified
Solihull MBC,Resources,Other Housing Services,Auriga Services Ltd,15/02/2021,,-3920.8,Clients Expenses,Not Yet Classified
Solihull MBC,Adult Social Care,Adult Social Care,Autism West Midlands,25/02/2021,,6312.88,ASC - Residential Care Permanent,321000 - Social Community Care Supplies & Services - Adult
Solihull MBC,Adult Social Care,Adult Social Care,Autism West Midlands,10/02/2021,,2482.2,ASC - Supported Living Care Costs,321000 - Social Community Care Supplies & Services - Adult
Solihull MBC,Adult Social Care,Adult Social Care,Autism West Midlands,10/02/2021,,13641.6,ASC - Supported Living Care Costs,321000 - Social Community Care Supplies & Services - Adult
Solihull MBC,Adult Social Care,Adult Social Care,Autism West Midlands,10/02/2021,,2482.2,ASC - Supported Living Care Costs,321000 - Social Community Care Supplies & Services - Adult
Solihull MBC,Adult Social Care,Adult Social Care,Autism West Midlands,10/02/2021,,13641.6,ASC - Supported Living Care Costs,321000 - Social Community Care Supplies & Services - Adult
Solihull MBC,Adult Social Care,Adult Social Care,Autism West Midlands,25/02/2021,,6588.68,ASC - Residential Care Permanent,321000 - Social Community Care Supplies & Services - Adult
Solihull MBC,Adult Social Care,Adult Social Care,Autism West Midlands,10/02/2021,,3316.32,ASC - Domiciliary Care,321000 - Social Community Care Supplies & Services - Adult
Solihull MBC,Adult Social Care,Adult Social Care,Autism West Midlands,10/02/2021,,3316.32,ASC - Domiciliary Care,321000 - Social Community Care Supplies & Services - Adult
Solihull MBC,Adult Social Care,Adult Social Care,Autism West Midlands,25/02/2021,,5123.16,ASC - Residential Care Permanent,321000 - Social Community Care Supplies & Services - Adult
Solihull MBC,Covid-19,Central Services to the Public,Autism West Midlands,09/02/2021,,5950.17,ASC - Residential Care Permanent,321000 - Social Community Care Supplies & Services - Adult
Solihull MBC,Covid-19,Central Services to the Public,Autism West Midlands,09/02/2021,,1700.05,ASC - Residential Care Permanent,321000 - Social Community Care Supplies & Services - Adult
Solihull MBC,Economy and Infrastructure,Highways & Transport Services,Automotive Leasing (Orders),18/02/2021,,210.8,Transport-Contract Hire,360000 - Public Transport
Solihull MBC,Adult Social Care,Adult Social Care,Auxilio Care Ltd,17/02/2021,,295.96,ASC - Supported Living Care Costs,Not Yet Classified
Solihull MBC,Adult Social Care,Adult Social Care,Auxilio Care Ltd,17/02/2021,,7401.8,ASC - Supported Living Care Costs,Not Yet Classified
Solihull MBC,Adult Social Care,Adult Social Care,Auxilio Care Ltd,17/02/2021,,295.96,ASC - Supported Living Care Costs,Not Yet Classified
Solihull MBC,Adult Social Care,Adult Social Care,Auxilio Care Ltd,17/02/2021,,5287,ASC - Supported Living Care Costs,Not Yet Classified
Solihull MBC,Adult Social Care,Adult Social Care,Auxilio Care Ltd,17/02/2021,,295.96,ASC - Supported Living Care Costs,Not Yet Classified
Solihull MBC,Adult Social Care,Adult Social Care,Auxilio Care Ltd,17/02/2021,,3871.95,ASC - Supported Living Care Costs,Not Yet Classified
Solihull MBC,Adult Social Care,Adult Social Care,Auxilio Care Ltd,17/02/2021,,544.25,ASC - Supported Living Care Costs,Not Yet Classified
Solihull MBC,Adult Social Care,Adult Social Care,Auxilio Care Ltd,17/02/2021,,295.96,ASC - Supported Living Care Costs,Not Yet Classified
Solihull MBC,Adult Social Care,Adult Social Care,Auxilio Care Ltd,17/02/2021,,3483.2,ASC - Supported Living Care Costs,Not Yet Classified
Solihull MBC,Adult Social Care,Adult Social Care,Auxilio Care Ltd,17/02/2021,,-9240.48,ASC - Supported Living Care Costs,Not Yet Classified
Solihull MBC,Adult Social Care,Adult Social Care,Auxilio Care Ltd,17/02/2021,,-9240.48,ASC - Supported Living Care Costs,Not Yet Classified
Solihull MBC,Adult Social Care,Adult Social Care,Auxilio Care Ltd,17/02/2021,,-9240.48,ASC - Supported Living Care Costs,Not Yet Classified
Solihull MBC,Adult Social Care,Adult Social Care,Auxilio Care Ltd,17/02/2021,,-9240.48,ASC - Supported Living Care Costs,Not Yet Classified
Solihull MBC,Adult Social Care,Adult Social Care,Auxilio Care Ltd,17/02/2021,,-9240.48,ASC - Supported Living Care Costs,Not Yet Classified
Solihull MBC,Adult Social Care,Adult Social Care,Auxilio Care Ltd,17/02/2021,,-9656.55,ASC - Supported Living Care Costs,Not Yet Classified
Solihull MBC,Adult Social Care,Adult Social Care,Auxilio Care Ltd,17/02/2021,,-9240.48,ASC - Supported Living Care Costs,Not Yet Classified
Solihull MBC,Adult Social Care,Adult Social Care,Auxilio Care Ltd,17/02/2021,,-9656.55,ASC - Supported Living Care Costs,Not Yet Classified
Solihull MBC,Adult Social Care,Adult Social Care,Auxilio Care Ltd,17/02/2021,,-9240.48,ASC - Supported Living Care Costs,Not Yet Classified
Solihull MBC,Adult Social Care,Adult Social Care,Auxilio Care Ltd,17/02/2021,,-4225.92,ASC - Supported Living Care Costs,Not Yet Classified
Solihull MBC,Adult Social Care,Adult Social Care,Auxilio Care Ltd,17/02/2021,,-4225.92,ASC - Supported Living Care Costs,Not Yet Classified
Solihull MBC,Adult Social Care,Adult Social Care,Auxilio Care Ltd,17/02/2021,,-4225.92,ASC - Supported Living Care Costs,Not Yet Classified
Solihull MBC,Adult Social Care,Adult Social Care,Auxilio Care Ltd,17/02/2021,,-4225.92,ASC - Supported Living Care Costs,Not Yet Classified
Solihull MBC,Adult Social Care,Adult Social Care,Auxilio Care Ltd,17/02/2021,,-4225.92,ASC - Supported Living Care Costs,Not Yet Classified
Solihull MBC,Adult Social Care,Adult Social Care,Auxilio Care Ltd,17/02/2021,,-4416.2,ASC - Supported Living Care Costs,Not Yet Classified
Solihull MBC,Adult Social Care,Adult Social Care,Auxilio Care Ltd,17/02/2021,,-4225.92,ASC - Supported Living Care Costs,Not Yet Classified
Solihull MBC,Adult Social Care,Adult Social Care,Auxilio Care Ltd,17/02/2021,,-4416.2,ASC - Supported Living Care Costs,Not Yet Classified
Solihull MBC,Adult Social Care,Adult Social Care,Auxilio Care Ltd,17/02/2021,,-4225.92,ASC - Supported Living Care Costs,Not Yet Classified
Solihull MBC,Adult Social Care,Adult Social Care,Auxilio Care Ltd,17/02/2021,,-1280.15,ASC - Supported Living Care Costs,Not Yet Classified
Solihull MBC,Adult Social Care,Adult Social Care,Auxilio Care Ltd,17/02/2021,,-8961.03,ASC - Supported Living Care Costs,Not Yet Classified
Solihull MBC,Adult Social Care,Adult Social Care,Auxilio Care Ltd,17/02/2021,,-585.45,ASC - Supported Living Care Costs,Not Yet Classified
Solihull MBC,Adult Social Care,Adult Social Care,Auxilio Care Ltd,17/02/2021,,-4098.12,ASC - Supported Living Care Costs,Not Yet Classified
Solihull MBC,Adult Social Care,Adult Social Care,Auxilio Care Ltd,17/02/2021,,585.45,ASC - Supported Living Care Costs,Not Yet Classified
Solihull MBC,Adult Social Care,Adult Social Care,Auxilio Care Ltd,17/02/2021,,-3169.44,ASC - Supported Living Care Costs,Not Yet Classified
Solihull MBC,Adult Social Care,Adult Social Care,Auxilio Care Ltd,17/02/2021,,1280.15,ASC - Supported Living Care Costs,Not Yet Classified
Solihull MBC,Adult Social Care,Adult Social Care,Auxilio Care Ltd,17/02/2021,,-6930.36,ASC - Supported Living Care Costs,Not Yet Classified
Solihull MBC,Adult Social Care,Adult Social Care,Auxilio Care Ltd,17/02/2021,,3312.15,ASC - Supported Living Care Costs,Not Yet Classified
Solihull MBC,Adult Social Care,Adult Social Care,Auxilio Care Ltd,17/02/2021,,3785.31,ASC - Supported Living Care Costs,Not Yet Classified
Solihull MBC,Adult Social Care,Adult Social Care,Auxilio Care Ltd,17/02/2021,,4098.12,ASC - Supported Living Care Costs,Not Yet Classified
Solihull MBC,Adult Social Care,Adult Social Care,Auxilio Care Ltd,17/02/2021,,4416.2,ASC - Supported Living Care Costs,Not Yet Classified
Solihull MBC,Adult Social Care,Adult Social Care,Auxilio Care Ltd,17/02/2021,,4416.2,ASC - Supported Living Care Costs,Not Yet Classified
Solihull MBC,Adult Social Care,Adult Social Care,Auxilio Care Ltd,17/02/2021,,4416.2,ASC - Supported Living Care Costs,Not Yet Classified
Solihull MBC,Adult Social Care,Adult Social Care,Auxilio Care Ltd,17/02/2021,,4416.2,ASC - Supported Living Care Costs,Not Yet Classified
Solihull MBC,Adult Social Care,Adult Social Care,Auxilio Care Ltd,17/02/2021,,4416.2,ASC - Supported Living Care Costs,Not Yet Classified
Solihull MBC,Adult Social Care,Adult Social Care,Auxilio Care Ltd,17/02/2021,,4416.2,ASC - Supported Living Care Costs,Not Yet Classified
Solihull MBC,Adult Social Care,Adult Social Care,Auxilio Care Ltd,17/02/2021,,630.89,ASC - Supported Living Care Costs,Not Yet Classified
Solihull MBC,Adult Social Care,Adult Social Care,Auxilio Care Ltd,17/02/2021,,4416.2,ASC - Supported Living Care Costs,Not Yet Classified
Solihull MBC,Adult Social Care,Adult Social Care,Auxilio Care Ltd,17/02/2021,,4416.2,ASC - Supported Living Care Costs,Not Yet Classified
Solihull MBC,Adult Social Care,Adult Social Care,Auxilio Care Ltd,17/02/2021,,7242.41,ASC - Supported Living Care Costs,Not Yet Classified
Solihull MBC,Adult Social Care,Adult Social Care,Auxilio Care Ltd,17/02/2021,,8277.04,ASC - Supported Living Care Costs,Not Yet Classified
Solihull MBC,Adult Social Care,Adult Social Care,Auxilio Care Ltd,17/02/2021,,8961.03,ASC - Supported Living Care Costs,Not Yet Classified
Solihull MBC,Adult Social Care,Adult Social Care,Auxilio Care Ltd,17/02/2021,,9656.55,ASC - Supported Living Care Costs,Not Yet Classified
Solihull MBC,Adult Social Care,Adult Social Care,Auxilio Care Ltd,17/02/2021,,9656.55,ASC - Supported Living Care Costs,Not Yet Classified
Solihull MBC,Adult Social Care,Adult Social Care,Auxilio Care Ltd,17/02/2021,,9656.55,ASC - Supported Living Care Costs,Not Yet Classified
Solihull MBC,Adult Social Care,Adult Social Care,Auxilio Care Ltd,17/02/2021,,9656.55,ASC - Supported Living Care Costs,Not Yet Classified
Solihull MBC,Adult Social Care,Adult Social Care,Auxilio Care Ltd,17/02/2021,,9656.55,ASC - Supported Living Care Costs,Not Yet Classified
Solihull MBC,Adult Social Care,Adult Social Care,Auxilio Care Ltd,17/02/2021,,9656.55,ASC - Supported Living Care Costs,Not Yet Classified
Solihull MBC,Adult Social Care,Adult Social Care,Auxilio Care Ltd,17/02/2021,,1379.51,ASC - Supported Living Care Costs,Not Yet Classified
Solihull MBC,Adult Social Care,Adult Social Care,Auxilio Care Ltd,17/02/2021,,9656.55,ASC - Supported Living Care Costs,Not Yet Classified
Solihull MBC,Adult Social Care,Adult Social Care,Auxilio Care Ltd,17/02/2021,,9656.55,ASC - Supported Living Care Costs,Not Yet Classified
Solihull MBC,Adult Social Care,Adult Social Care,Auxilio Care Ltd,17/02/2021,,-8961.03,ASC - Supported Living Care Costs,Not Yet Classified
Solihull MBC,Adult Social Care,Adult Social Care,Auxilio Care Ltd,17/02/2021,,-4098.12,ASC - Supported Living Care Costs,Not Yet Classified
Solihull MBC,Adult Social Care,Adult Social Care,Auxilio Care Ltd,17/02/2021,,4098.12,ASC - Supported Living Care Costs,Not Yet Classified
Solihull MBC,Adult Social Care,Adult Social Care,Auxilio Care Ltd,17/02/2021,,4416.2,ASC - Supported Living Care Costs,Not Yet Classified
Solihull MBC,Adult Social Care,Adult Social Care,Auxilio Care Ltd,17/02/2021,,8961.03,ASC - Supported Living Care Costs,Not Yet Classified
Solihull MBC,Adult Social Care,Adult Social Care,Auxilio Care Ltd,17/02/2021,,9656.55,ASC - Supported Living Care Costs,Not Yet Classified
Solihull MBC,Adult Social Care,Adult Social Care,Auxilio Care Ltd,17/02/2021,,4416.2,ASC - Supported Living Care Costs,Not Yet Classified
Solihull MBC,Adult Social Care,Adult Social Care,Auxilio Care Ltd,17/02/2021,,9656.55,ASC - Supported Living Care Costs,Not Yet Classified
Solihull MBC,Adult Social Care,Adult Social Care,Auxilio Care Ltd,17/02/2021,,9656.55,ASC - Supported Living Care Costs,Not Yet Classified
Solihull MBC,Adult Social Care,Adult Social Care,Auxilio Care Ltd,17/02/2021,,4416.2,ASC - Supported Living Care Costs,Not Yet Classified
Solihull MBC,Adult Social Care,Adult Social Care,Auxilio Care Ltd,17/02/2021,,295.96,ASC - Supported Living Care Costs,Not Yet Classified
Solihull MBC,Adult Social Care,Adult Social Care,Auxilio Care Ltd,17/02/2021,,1306.2,ASC - Supported Living Care Costs,Not Yet Classified
Solihull MBC,Adult Social Care,Adult Social Care,Auxilio Care Ltd,17/02/2021,,6531,ASC - Supported Living Care Costs,Not Yet Classified
Solihull MBC,Adult Social Care,Adult Social Care,Auxilio Care Ltd,17/02/2021,,3918.6,ASC - Supported Living Care Costs,Not Yet Classified
Solihull MBC,Adult Social Care,Adult Social Care,Avery Health Care,25/02/2021,,2480.52,ASC - Residential Care Permanent,Not Yet Classified
Solihull MBC,Adult Social Care,Adult Social Care,Avery Health Care,25/02/2021,,2140.6,ASC - Residential Care Permanent,Not Yet Classified
Solihull MBC,Adult Social Care,Adult Social Care,Avery Health Care,25/02/2021,,2736.72,ASC - Nursing Care Respite,Not Yet Classified
Solihull MBC,Adult Social Care,Adult Social Care,Avery Health Care,25/02/2021,,2736.72,ASC - Nursing Care Permanent,Not Yet Classified
Solihull MBC,Adult Social Care,Adult Social Care,Avery Health Care,25/02/2021,,3674.72,ASC - Residential Care Permanent,Not Yet Classified
Solihull MBC,Adult Social Care,Adult Social Care,Avery Health Care,25/02/2021,,4059.72,ASC - Nursing Care Permanent,Not Yet Classified
Solihull MBC,Adult Social Care,Adult Social Care,Avery Health Care,25/02/2021,,4954.88,ASC - Residential Care Permanent,Not Yet Classified
Solihull MBC,Adult Social Care,Adult Social Care,Avery Health Care,25/02/2021,,2503.2,ASC - Nursing Care Respite,Not Yet Classified
Solihull MBC,Adult Social Care,Adult Social Care,Avery Health Care,25/02/2021,,348.57,ASC - Residential Care Permanent,Not Yet Classified
Solihull MBC,Adult Social Care,Adult Social Care,Avery Health Care,25/02/2021,,2480.52,ASC - Residential Care Permanent,Not Yet Classified
Solihull MBC,Covid-19,Central Services to the Public,Avery Health Care,09/02/2021,,25500.75,ASC - Residential Care Permanent,Not Yet Classified
Solihull MBC,Adult Social Care,Adult Social Care,Avery Homes (Nelson) Ltd,25/02/2021,,2500,ASC - Residential Care Respite,Not Yet Classified
Solihull MBC,Adult Social Care,Adult Social Care,Avery Homes (Nelson) Ltd,25/02/2021,,535.71,ASC - Residential Care Respite,Not Yet Classified
Solihull MBC,Adult Social Care,Adult Social Care,Avery Homes (Nelson) Ltd,25/02/2021,,1600,ASC - Nursing Care Respite,Not Yet Classified
Solihull MBC,Adult Social Care,Adult Social Care,Avery Homes (Nelson) Ltd,25/02/2021,,2500,ASC - Residential Care Respite,Not Yet Classified
Solihull MBC,Adult Social Care,Adult Social Care,Avery Homes (Nelson) Ltd,25/02/2021,,892.86,ASC - Residential Care Respite,Not Yet Classified
Solihull MBC,Adult Social Care,Adult Social Care,Avery Homes (Nelson) Ltd,25/02/2021,,357.14,ASC - Residential Care Respite,Not Yet Classified
Solihull MBC,Adult Social Care,Adult Social Care,Avery Homes (Nelson) Ltd,25/02/2021,,1875,ASC - Residential Care Respite,Not Yet Classified
Solihull MBC,Adult Social Care,Adult Social Care,Avery Homes (Nelson) Ltd,25/02/2021,,2500,ASC - Residential Care Permanent,Not Yet Classified
Solihull MBC,Adult Social Care,Adult Social Care,Avery Homes (Nelson) Ltd,25/02/2021,,-400,ASC - Nursing Care Respite,Not Yet Classified
Solihull MBC,Adult Social Care,Adult Social Care,Avery Homes (Nelson) Ltd,25/02/2021,,2503.2,ASC - Nursing Care Permanent,Not Yet Classified
Solihull MBC,Adult Social Care,Adult Social Care,Avery Homes (Nelson) Ltd,25/02/2021,,2500,ASC - Residential Care Respite,Not Yet Classified
Solihull MBC,Adult Social Care,Adult Social Care,Avery Homes (Nelson) Ltd,25/02/2021,,1160.71,ASC - Residential Care Respite,Not Yet Classified
Solihull MBC,Adult Social Care,Adult Social Care,Avery Homes (Nelson) Ltd,25/02/2021,,1428.57,ASC - Residential Care Respite,Not Yet Classified
Solihull MBC,Adult Social Care,Adult Social Care,Avery Homes (Nelson) Ltd,25/02/2021,,2736.72,ASC - Nursing Care Permanent,Not Yet Classified
Solihull MBC,Adult Social Care,Adult Social Care,Avery Homes (Nelson) Ltd,25/02/2021,,2800,ASC - Nursing Care Respite,Not Yet Classified
Solihull MBC,Adult Social Care,Adult Social Care,Avery Homes (Nelson) Ltd,25/02/2021,,2500,ASC - Nursing Care Respite,Not Yet Classified
Solihull MBC,Adult Social Care,Adult Social Care,Avery Homes (Nelson) Ltd,25/02/2021,,800,ASC - Nursing Care Respite,Not Yet Classified
Solihull MBC,Adult Social Care,Adult Social Care,Avery Homes (Nelson) Ltd,25/02/2021,,-894,ASC - Nursing Care Permanent,Not Yet Classified
Solihull MBC,Adult Social Care,Adult Social Care,Avery Homes (Nelson) Ltd,25/02/2021,,-1788,ASC - Nursing Care Permanent,Not Yet Classified
Solihull MBC,Adult Social Care,Adult Social Care,Avery Homes (Nelson) Ltd,25/02/2021,,2480.52,ASC - Residential Care Permanent,Not Yet Classified
Solihull MBC,Adult Social Care,Adult Social Care,Avery Homes (Nelson) Ltd,25/02/2021,,3888.64,ASC - Nursing Care Permanent,Not Yet Classified
Solihull MBC,Adult Social Care,Adult Social Care,Avery Homes (Nelson) Ltd,25/02/2021,,3283.84,ASC - Nursing Care Permanent,Not Yet Classified
Solihull MBC,Adult Social Care,Adult Social Care,Avery Homes (Nelson) Ltd,25/02/2021,,1071.43,ASC - Residential Care Respite,Not Yet Classified
Solihull MBC,Adult Social Care,Adult Social Care,Avery Homes (Nelson) Ltd,25/02/2021,,1600,ASC - Nursing Care Respite,Not Yet Classified
Solihull MBC,Adult Social Care,Adult Social Care,Avery Homes (Nelson) Ltd,25/02/2021,,1000,ASC - Nursing Care Respite,Not Yet Classified
Solihull MBC,Adult Social Care,Adult Social Care,Avery Homes (Nelson) Ltd,25/02/2021,,3400,ASC - Nursing Care Permanent,Not Yet Classified
Solihull MBC,Adult Social Care,Adult Social Care,Avery Homes (Nelson) Ltd,25/02/2021,,2500,ASC - Residential Care Permanent,Not Yet Classified
Solihull MBC,Adult Social Care,Adult Social Care,Avery Homes (Nelson) Ltd,25/02/2021,,3200,ASC - Residential Care Permanent,Not Yet Classified
Solihull MBC,Adult Social Care,Adult Social Care,Avery Homes (Nelson) Ltd,25/02/2021,,3283.84,ASC - Nursing Care Respite,Not Yet Classified
Solihull MBC,Adult Social Care,Adult Social Care,Avery Homes (Nelson) Ltd,25/02/2021,,2731.68,ASC - Nursing Care Permanent,Not Yet Classified
Solihull MBC,Adult Social Care,Adult Social Care,Avery Homes (Nelson) Ltd,25/02/2021,,2736.72,ASC - Nursing Care Permanent,Not Yet Classified
Solihull MBC,Adult Social Care,Adult Social Care,Avery Homes (Nelson) Ltd,25/02/2021,,2480.52,ASC - Residential Care Permanent,Not Yet Classified
Solihull MBC,Adult Social Care,Adult Social Care,Avery Homes (Nelson) Ltd,25/02/2021,,1368.36,ASC - Nursing Care Permanent,Not Yet Classified
Solihull MBC,Adult Social Care,Adult Social Care,Avery Homes (Nelson) Ltd,25/02/2021,,-1100,ASC - Nursing Care Respite,Not Yet Classified
Solihull MBC,Adult Social Care,Adult Social Care,Avery Homes (Nelson) Ltd,25/02/2021,,2500,ASC - Residential Care Permanent,Not Yet Classified
Solihull MBC,Adult Social Care,Adult Social Care,Avery Homes (Nelson) Ltd,25/02/2021,,2736.72,ASC - Nursing Care Permanent,Not Yet Classified
Solihull MBC,Adult Social Care,Adult Social Care,Avery Homes (Nelson) Ltd,25/02/2021,,1900,ASC - Nursing Care Respite,Not Yet Classified
Solihull MBC,Public Health & Commissioning,Central Services to the Public,B C Event Hire Ltd,24/02/2021,,934,Grant & Subscription (SCITT),Not Yet Classified
Solihull MBC,Public Health & Commissioning,Central Services to the Public,B Travels Ltd,24/02/2021,,1000,Grant & Subscription (SCITT),Not Yet Classified
Solihull MBC,Adult Social Care,Adult Social Care,B&M Investments Ltd (Reference:Tm0318),25/02/2021,,2749.04,ASC - Nursing Care Permanent,Not Yet Classified
Solihull MBC,Public Health & Commissioning,Central Services to the Public,Baby Lifeline Ltd,01/02/2021,,934,Grant & Subscription (SCITT),Not Yet Classified
Solihull MBC,Public Health & Commissioning,Central Services to the Public,Babyballet Stratford Solihull And Knowle,24/02/2021,,2001,Grant & Subscription (SCITT),Not Yet Classified
Solihull MBC,Economy and Infrastructure,Highways & Transport Services,Balfour Beatty Civil Engineering Ltd,25/02/2021,,30041.9,Contractors,"391400 - Works - Construction, Repair & Maintenance"
Solihull MBC,Children's Services & Skills,Children & Education Services,Balfour Beatty,05/02/2021,,37574.38,Contractors,Not Yet Classified
Solihull MBC,Economy and Infrastructure,Highways & Transport Services,Balfour Beatty,05/02/2021,,1478.49,Other Contracted Services,Not Yet Classified
Solihull MBC,Economy and Infrastructure,Highways & Transport Services,Balfour Beatty,05/02/2021,,573.46,Other Contracted Services,Not Yet Classified
Solihull MBC,Economy and Infrastructure,Highways & Transport Services,Balfour Beatty,05/02/2021,,808.24,Other Contracted Services,Not Yet Classified
Solihull MBC,Economy and Infrastructure,Highways & Transport Services,Balfour Beatty,05/02/2021,,1.98,Other Contracted Services,Not Yet Classified
Solihull MBC,Economy and Infrastructure,Highways & Transport Services,Balfour Beatty,05/02/2021,,6.19,Other Contracted Services,Not Yet Classified
Solihull MBC,Economy and Infrastructure,Highways & Transport Services,Balfour Beatty,05/02/2021,,10313.38,Other Contracted Services,Not Yet Classified
Solihull MBC,Economy and Infrastructure,Highways & Transport Services,Balfour Beatty,05/02/2021,,655.02,Other Contracted Services,Not Yet Classified
Solihull MBC,Economy and Infrastructure,Highways & Transport Services,Balfour Beatty,05/02/2021,,315.35,Other Contracted Services,Not Yet Classified
Solihull MBC,Economy and Infrastructure,Highways & Transport Services,Balfour Beatty,05/02/2021,,437.84,Other Contracted Services,Not Yet Classified
Solihull MBC,Economy and Infrastructure,Highways & Transport Services,Balfour Beatty,05/02/2021,,309.19,Other Contracted Services,Not Yet Classified
Solihull MBC,Economy and Infrastructure,Highways & Transport Services,Balfour Beatty,05/02/2021,,103.88,Other Contracted Services,Not Yet Classified
Solihull MBC,Economy and Infrastructure,Highways & Transport Services,Balfour Beatty,05/02/2021,,422.11,Other Contracted Services,Not Yet Classified
Solihull MBC,Economy and Infrastructure,Highways & Transport Services,Balfour Beatty,05/02/2021,,196.1,Other Contracted Services,Not Yet Classified
Solihull MBC,Economy and Infrastructure,Highways & Transport Services,Balfour Beatty,05/02/2021,,118.91,Other Contracted Services,Not Yet Classified
Solihull MBC,Economy and Infrastructure,Highways & Transport Services,Balfour Beatty,05/02/2021,,534.12,Other Contracted Services,Not Yet Classified
Solihull MBC,Economy and Infrastructure,Highways & Transport Services,Balfour Beatty,05/02/2021,,1228.64,Other Contracted Services,Not Yet Classified
Solihull MBC,Economy and Infrastructure,Highways & Transport Services,Balfour Beatty,05/02/2021,,442,Other Contracted Services,Not Yet Classified
Solihull MBC,Economy and Infrastructure,Highways & Transport Services,Balfour Beatty,05/02/2021,,452.18,Other Contracted Services,Not Yet Classified
Solihull MBC,Economy and Infrastructure,Highways & Transport Services,Balfour Beatty,05/02/2021,,1511.28,Other Contracted Services,Not Yet Classified
Solihull MBC,Economy and Infrastructure,Highways & Transport Services,Balfour Beatty,05/02/2021,,197.78,Other Contracted Services,Not Yet Classified
Solihull MBC,Economy and Infrastructure,Highways & Transport Services,Balfour Beatty,05/02/2021,,747.71,Other Contracted Services,Not Yet Classified
Solihull MBC,Economy and Infrastructure,Highways & Transport Services,Balfour Beatty,05/02/2021,,2000,Other Contracted Services,Not Yet Classified
Solihull MBC,Economy and Infrastructure,Highways & Transport Services,Balfour Beatty,05/02/2021,,1231.76,Other Contracted Services,Not Yet Classified
Solihull MBC,Economy and Infrastructure,Highways & Transport Services,Balfour Beatty,05/02/2021,,15613.13,Other Contracted Services,Not Yet Classified
Solihull MBC,Economy and Infrastructure,Highways & Transport Services,Balfour Beatty,05/02/2021,,2827.13,Other Contracted Services,Not Yet Classified
Solihull MBC,Economy and Infrastructure,Highways & Transport Services,Balfour Beatty,05/02/2021,,15080.96,Other Contracted Services,Not Yet Classified
Solihull MBC,Economy and Infrastructure,Highways & Transport Services,Balfour Beatty,05/02/2021,,39088.67,Other Contracted Services,Not Yet Classified
Solihull MBC,Economy and Infrastructure,Highways & Transport Services,Balfour Beatty,05/02/2021,,428.17,Other Contracted Services,Not Yet Classified
Solihull MBC,Economy and Infrastructure,Highways & Transport Services,Balfour Beatty,05/02/2021,,5001,Other Contracted Services,Not Yet Classified
Solihull MBC,Economy and Infrastructure,Highways & Transport Services,Balfour Beatty,05/02/2021,,191.5,Other Contracted Services,Not Yet Classified
Solihull MBC,Economy and Infrastructure,Highways & Transport Services,Balfour Beatty,05/02/2021,,184.87,Other Contracted Services,Not Yet Classified
Solihull MBC,Economy and Infrastructure,Highways & Transport Services,Balfour Beatty,05/02/2021,,153.95,Other Contracted Services,Not Yet Classified
Solihull MBC,Economy and Infrastructure,Highways & Transport Services,Balfour Beatty,05/02/2021,,123.03,Other Contracted Services,Not Yet Classified
Solihull MBC,Economy and Infrastructure,Highways & Transport Services,Balfour Beatty,05/02/2021,,468.73,Other Contracted Services,Not Yet Classified
Solihull MBC,Economy and Infrastructure,Highways & Transport Services,Balfour Beatty,05/02/2021,,581.98,Other Contracted Services,Not Yet Classified
Solihull MBC,Economy and Infrastructure,Highways & Transport Services,Balfour Beatty,05/02/2021,,130.75,Other Contracted Services,Not Yet Classified
Solihull MBC,Economy and Infrastructure,Highways & Transport Services,Balfour Beatty,05/02/2021,,266.62,Other Contracted Services,Not Yet Classified
Solihull MBC,Economy and Infrastructure,Highways & Transport Services,Balfour Beatty,05/02/2021,,323.56,Other Contracted Services,Not Yet Classified
Solihull MBC,Economy and Infrastructure,Highways & Transport Services,Balfour Beatty,05/02/2021,,260.55,Other Contracted Services,Not Yet Classified
Solihull MBC,Economy and Infrastructure,Highways & Transport Services,Balfour Beatty,05/02/2021,,20.75,Other Contracted Services,Not Yet Classified
Solihull MBC,Economy and Infrastructure,Highways & Transport Services,Balfour Beatty,05/02/2021,,2.77,Other Contracted Services,Not Yet Classified
Solihull MBC,Economy and Infrastructure,Highways & Transport Services,Balfour Beatty,05/02/2021,,153.95,Other Contracted Services,Not Yet Classified
Solihull MBC,Economy and Infrastructure,Highways & Transport Services,Balfour Beatty,05/02/2021,,37.27,Other Contracted Services,Not Yet Classified
Solihull MBC,Economy and Infrastructure,Highways & Transport Services,Balfour Beatty,05/02/2021,,144.95,Other Contracted Services,Not Yet Classified
Solihull MBC,Economy and Infrastructure,Highways & Transport Services,Balfour Beatty,05/02/2021,,143.96,Other Contracted Services,Not Yet Classified
Solihull MBC,Economy and Infrastructure,Highways & Transport Services,Balfour Beatty,05/02/2021,,113.45,Other Contracted Services,Not Yet Classified
Solihull MBC,Economy and Infrastructure,Highways & Transport Services,Balfour Beatty,05/02/2021,,113.45,Other Contracted Services,Not Yet Classified
Solihull MBC,Economy and Infrastructure,Highways & Transport Services,Balfour Beatty,05/02/2021,,5.17,Other Contracted Services,Not Yet Classified
Solihull MBC,Economy and Infrastructure,Highways & Transport Services,Balfour Beatty,05/02/2021,,390.66,Other Contracted Services,Not Yet Classified
Solihull MBC,Economy and Infrastructure,Highways & Transport Services,Balfour Beatty,05/02/2021,,414.48,Other Contracted Services,Not Yet Classified
Solihull MBC,Economy and Infrastructure,Highways & Transport Services,Balfour Beatty,05/02/2021,,349.82,Other Contracted Services,Not Yet Classified
Solihull MBC,Economy and Infrastructure,Highways & Transport Services,Balfour Beatty,05/02/2021,,153.95,Other Contracted Services,Not Yet Classified
Solihull MBC,Economy and Infrastructure,Highways & Transport Services,Balfour Beatty,05/02/2021,,5.17,Other Contracted Services,Not Yet Classified
Solihull MBC,Economy and Infrastructure,Highways & Transport Services,Balfour Beatty,05/02/2021,,125.23,Other Contracted Services,Not Yet Classified
Solihull MBC,Economy and Infrastructure,Highways & Transport Services,Balfour Beatty,05/02/2021,,700.98,Other Contracted Services,Not Yet Classified
Solihull MBC,Economy and Infrastructure,Highways & Transport Services,Balfour Beatty,05/02/2021,,195.33,Other Contracted Services,Not Yet Classified
Solihull MBC,Economy and Infrastructure,Highways & Transport Services,Balfour Beatty,05/02/2021,,53.99,Other Contracted Services,Not Yet Classified
Solihull MBC,Economy and Infrastructure,Highways & Transport Services,Balfour Beatty,05/02/2021,,267.04,Other Contracted Services,Not Yet Classified
Solihull MBC,Economy and Infrastructure,Highways & Transport Services,Balfour Beatty,05/02/2021,,181.78,Other Contracted Services,Not Yet Classified
Solihull MBC,Economy and Infrastructure,Highways & Transport Services,Balfour Beatty,05/02/2021,,153.95,Other Contracted Services,Not Yet Classified
Solihull MBC,Economy and Infrastructure,Highways & Transport Services,Balfour Beatty,05/02/2021,,729.8,Other Contracted Services,Not Yet Classified
Solihull MBC,Economy and Infrastructure,Highways & Transport Services,Balfour Beatty,05/02/2021,,195.33,Other Contracted Services,Not Yet Classified
Solihull MBC,Economy and Infrastructure,Highways & Transport Services,Balfour Beatty,05/02/2021,,136.82,Other Contracted Services,Not Yet Classified
Solihull MBC,Economy and Infrastructure,Highways & Transport Services,Balfour Beatty,05/02/2021,,195.33,Other Contracted Services,Not Yet Classified
Solihull MBC,Economy and Infrastructure,Highways & Transport Services,Balfour Beatty,05/02/2021,,5.17,Other Contracted Services,Not Yet Classified
Solihull MBC,Economy and Infrastructure,Highways & Transport Services,Balfour Beatty,05/02/2021,,5.82,Other Contracted Services,Not Yet Classified
Solihull MBC,Economy and Infrastructure,Highways & Transport Services,Balfour Beatty,05/02/2021,,113.45,Other Contracted Services,Not Yet Classified
Solihull MBC,Economy and Infrastructure,Highways & Transport Services,Balfour Beatty,05/02/2021,,143.96,Other Contracted Services,Not Yet Classified
Solihull MBC,Economy and Infrastructure,Highways & Transport Services,Balfour Beatty,05/02/2021,,31.09,Other Contracted Services,Not Yet Classified
Solihull MBC,Economy and Infrastructure,Highways & Transport Services,Balfour Beatty,05/02/2021,,113.45,Other Contracted Services,Not Yet Classified
Solihull MBC,Economy and Infrastructure,Highways & Transport Services,Balfour Beatty,05/02/2021,,453.27,Other Contracted Services,Not Yet Classified
Solihull MBC,Economy and Infrastructure,Highways & Transport Services,Balfour Beatty,05/02/2021,,54,Other Contracted Services,Not Yet Classified
Solihull MBC,Economy and Infrastructure,Highways & Transport Services,Balfour Beatty,05/02/2021,,53.99,Other Contracted Services,Not Yet Classified
Solihull MBC,Economy and Infrastructure,Highways & Transport Services,Balfour Beatty,05/02/2021,,30.92,Other Contracted Services,Not Yet Classified
Solihull MBC,Economy and Infrastructure,Highways & Transport Services,Balfour Beatty,05/02/2021,,33.13,Other Contracted Services,Not Yet Classified
Solihull MBC,Economy and Infrastructure,Highways & Transport Services,Balfour Beatty,05/02/2021,,43.66,Other Contracted Services,Not Yet Classified
Solihull MBC,Economy and Infrastructure,Highways & Transport Services,Balfour Beatty,05/02/2021,,30789.82,Contractors,Not Yet Classified
Solihull MBC,Economy and Infrastructure,Highways & Transport Services,Balfour Beatty,05/02/2021,,423.04,Contractors,Not Yet Classified
Solihull MBC,Economy and Infrastructure,Highways & Transport Services,Balfour Beatty,05/02/2021,,892.71,Contractors,Not Yet Classified
Solihull MBC,Economy and Infrastructure,Highways & Transport Services,Balfour Beatty,05/02/2021,,221.18,Contractors,Not Yet Classified
Solihull MBC,Economy and Infrastructure,Highways & Transport Services,Balfour Beatty,05/02/2021,,680.71,Contractors,Not Yet Classified
Solihull MBC,Economy and Infrastructure,Highways & Transport Services,Balfour Beatty,05/02/2021,,37.29,Contractors,Not Yet Classified
Solihull MBC,Economy and Infrastructure,Highways & Transport Services,Balfour Beatty,05/02/2021,,37.29,Contractors,Not Yet Classified
Solihull MBC,Economy and Infrastructure,Highways & Transport Services,Balfour Beatty,05/02/2021,,4.62,Contractors,Not Yet Classified
Solihull MBC,Economy and Infrastructure,Highways & Transport Services,Balfour Beatty,05/02/2021,,3.96,Contractors,Not Yet Classified
Solihull MBC,Economy and Infrastructure,Highways & Transport Services,Balfour Beatty,05/02/2021,,36.3,Contractors,Not Yet Classified
Solihull MBC,Economy and Infrastructure,Highways & Transport Services,Balfour Beatty,05/02/2021,,5.87,Contractors,Not Yet Classified
Solihull MBC,Economy and Infrastructure,Highways & Transport Services,Balfour Beatty,05/02/2021,,615.28,Contractors,Not Yet Classified
Solihull MBC,Economy and Infrastructure,Highways & Transport Services,Balfour Beatty,05/02/2021,,141.89,Contractors,Not Yet Classified
Solihull MBC,Economy and Infrastructure,Highways & Transport Services,Balfour Beatty,05/02/2021,,34.32,Contractors,Not Yet Classified
Solihull MBC,Economy and Infrastructure,Highways & Transport Services,Balfour Beatty,05/02/2021,,504.56,Contractors,Not Yet Classified
Solihull MBC,Economy and Infrastructure,Cultural & Related Services,Balfour Beatty,05/02/2021,,77.9,Other Contracted Services,Not Yet Classified
Solihull MBC,Economy and Infrastructure,Cultural & Related Services,Balfour Beatty,05/02/2021,,11499.23,Other Contracted Services,Not Yet Classified
Solihull MBC,Economy and Infrastructure,Highways & Transport Services,Balfour Beatty,05/02/2021,,450.63,Strategic Highways Contract,Not Yet Classified
Solihull MBC,Economy and Infrastructure,Highways & Transport Services,Balfour Beatty,05/02/2021,,1032.31,Strategic Highways Contract,Not Yet Classified
Solihull MBC,Economy and Infrastructure,Highways & Transport Services,Balfour Beatty,05/02/2021,,450.63,Strategic Highways Contract,Not Yet Classified
Solihull MBC,Economy and Infrastructure,Highways & Transport Services,Balfour Beatty,05/02/2021,,786.56,Strategic Highways Contract,Not Yet Classified
Solihull MBC,Resources,Planning & Development Services,Balfour Beatty,05/02/2021,,326.06,Other Contracted Services,Not Yet Classified
Solihull MBC,Public Health & Commissioning,Central Services to the Public,Banbury Club,01/02/2021,,2000,Grant & Subscription (SCITT),Not Yet Classified
Solihull MBC,Public Health & Commissioning,Central Services to the Public,Bannatyne Fitness,01/02/2021,,3000,Grant & Subscription (SCITT),Not Yet Classified
Solihull MBC,Economy and Infrastructure,Environmental and Regulatory Services,Bannocks Solihull,19/02/2021,,349,Materials,120000 - Cemetery & Crematorium 
Solihull MBC,Adult Social Care,Adult Social Care,Barchester Healthcare Homes Ltd,25/02/2021,,2480.52,ASC - Residential Care Permanent,321000 - Social Community Care Supplies & Services - Adult
Solihull MBC,Adult Social Care,Adult Social Care,Barchester Healthcare Homes Ltd,25/02/2021,,2600,ASC - Residential Care Permanent,321000 - Social Community Care Supplies & Services - Adult
Solihull MBC,Adult Social Care,Adult Social Care,Barchester Healthcare Homes Ltd,25/02/2021,,2347.52,ASC - Residential Care Permanent,321000 - Social Community Care Supplies & Services - Adult
Solihull MBC,Adult Social Care,Adult Social Care,Barchester Healthcare Homes Ltd,25/02/2021,,5194.84,ASC - Residential Care Permanent,321000 - Social Community Care Supplies & Services - Adult
Solihull MBC,Adult Social Care,Adult Social Care,Barchester Healthcare Homes Ltd,25/02/2021,,2503.2,ASC - Nursing Care Permanent,321000 - Social Community Care Supplies & Services - Adult
Solihull MBC,Adult Social Care,Adult Social Care,Barchester Healthcare Homes Ltd,25/02/2021,,2600,ASC - Residential Care Permanent,321000 - Social Community Care Supplies & Services - Adult
Solihull MBC,Adult Social Care,Adult Social Care,Barchester Healthcare Homes Ltd,25/02/2021,,2503.2,ASC - Nursing Care Permanent,321000 - Social Community Care Supplies & Services - Adult
Solihull MBC,Covid-19,Central Services to the Public,Barchester Healthcare Homes Ltd,09/02/2021,,34001,ASC - Residential Care Permanent,321000 - Social Community Care Supplies & Services - Adult
Solihull MBC,Adult Social Care,Cultural & Related Services,Barclaycard,10/02/2021,,25,Other Fees,Not Yet Classified
Solihull MBC,Adult Social Care,Cultural & Related Services,Barclaycard,10/02/2021,,6.08,Other Fees,Not Yet Classified
Solihull MBC,Resources,Central Services to the Public,Barclaycard,10/02/2021,,1531.39,Other Fees,Not Yet Classified
Solihull MBC,Resources,Central Services to the Public,Barclaycard,10/02/2021,,3329.06,Other Fees,Not Yet Classified
Solihull MBC,Resources,Central Services to the Public,Barclaycard,10/02/2021,,1812.33,Other Fees,Not Yet Classified
Solihull MBC,Resources,Children & Education Services,Barclaycard,10/02/2021,,25,IT Equipment & Software,Not Yet Classified
Solihull MBC,Adult Social Care,Cultural & Related Services,Barclaycard,10/02/2021,,50,Other Fees,Not Yet Classified
Solihull MBC,Adult Social Care,Cultural & Related Services,Barclaycard,10/02/2021,,30,Other Fees,Not Yet Classified
Solihull MBC,Adult Social Care,Cultural & Related Services,Barclaycard,10/02/2021,,-7.44,Other Fees,Not Yet Classified
Solihull MBC,Economy and Infrastructure,Environmental and Regulatory Services,Barclaycard,10/02/2021,,50,Other Fees,Not Yet Classified
Solihull MBC,Economy and Infrastructure,Environmental and Regulatory Services,Barclaycard,10/02/2021,,148.38,Other Fees,Not Yet Classified
Solihull MBC,Resources,Corporate & Democratic Core,Barclaycard,10/02/2021,,300,Other Contracted Services,Not Yet Classified
Solihull MBC,Children's Services & Skills,Children & Education Services,Barnardos Midlands,12/02/2021,,3642.32,External Fostering,321100 - Social Community Care Supplies & Services - Children
Solihull MBC,Children's Services & Skills,Children & Education Services,Barnardos Midlands,19/02/2021,,3267.68,External Fostering,321100 - Social Community Care Supplies & Services - Children
Solihull MBC,Children's Services & Skills,Children & Education Services,Barnardos Midlands,19/02/2021,,-3267.68,External Fostering,321100 - Social Community Care Supplies & Services - Children
Solihull MBC,Children's Services & Skills,Children & Education Services,Barnardos Midlands,19/02/2021,,2936.5,External Fostering,321100 - Social Community Care Supplies & Services - Children
Solihull MBC,Adult Social Care,Adult Social Care,BCOP-NH3,25/02/2021,,4712,ASC - Nursing Care Respite,Not Yet Classified
Solihull MBC,Public Health & Commissioning,Central Services to the Public,Beaconsfield Footwear Ltd,08/02/2021,,9000,Grant & Subscription (SCITT),Not Yet Classified
Solihull MBC,Public Health & Commissioning,Central Services to the Public,Beaconsfield Footwear Ltd,08/02/2021,,536,Grant & Subscription (SCITT),Not Yet Classified
Solihull MBC,Public Health & Commissioning,Central Services to the Public,Beaconsfield Footwear Ltd,08/02/2021,,4500,Grant & Subscription (SCITT),Not Yet Classified
Solihull MBC,Covid-19,Central Services to the Public,Bechtle Direct Ltd,19/02/2021,,8645.6,IT Equipment & Software,Not Yet Classified
Solihull MBC,Resources,Central Services to the Public,Bechtle Direct Ltd,26/02/2021,,40.95,IT Equipment & Software,Not Yet Classified
Solihull MBC,Resources,Central Services to the Public,Bechtle Direct Ltd,26/02/2021,,34.77,IT Equipment & Software,Not Yet Classified
Solihull MBC,Resources,Central Services to the Public,Bechtle Direct Ltd,26/02/2021,,63,IT Equipment & Software,Not Yet Classified
Solihull MBC,Resources,Central Services to the Public,Bechtle Direct Ltd,26/02/2021,,470.07,IT Equipment & Software,Not Yet Classified
Solihull MBC,Resources,Central Services to the Public,Bechtle Direct Ltd,26/02/2021,,5250.34,IT Equipment & Software,Not Yet Classified
Solihull MBC,Resources,Central Services to the Public,Bechtle Direct Ltd,26/02/2021,,1942.89,IT Equipment & Software,Not Yet Classified
Solihull MBC,Public Health & Commissioning,Central Services to the Public,Beehive Travel Solutions Ltd,24/02/2021,,2001,Grant & Subscription (SCITT),Not Yet Classified
Solihull MBC,Public Health & Commissioning,Central Services to the Public,Beehive Travel Solutions Ltd,16/02/2021,,934,Grant & Subscription (SCITT),Not Yet Classified
Solihull MBC,Public Health & Commissioning,Central Services to the Public,Belmont Healthcare Management Ltd,11/02/2021,,2001,Grant & Subscription (SCITT),Not Yet Classified
Solihull MBC,Children's Services - DSG Central.,Children & Education Services,Bentley West Primary School,10/02/2021,,400,Other Contracted Services,Not Yet Classified
Solihull MBC,Adult Social Care,Adult Social Care,Berrow Cottage Homes,11/02/2021,,805.83,Other Contracted Services,321000 - Social Community Care Supplies & Services - Adult
Solihull MBC,Adult Social Care,Adult Social Care,Bethphage,03/02/2021,,1944,ASC - Supported Living Care Costs,Not Yet Classified
Solihull MBC,Adult Social Care,Adult Social Care,Bethphage,03/02/2021,,777.6,ASC - Supported Living Care Costs,Not Yet Classified
Solihull MBC,Adult Social Care,Adult Social Care,Bethphage,16/02/2021,,2203.2,ASC - Supported Living Care Costs,Not Yet Classified
Solihull MBC,Adult Social Care,Adult Social Care,Bid Services For Deaf People,05/02/2021,,14984.75,Other Contracted Services,401401 - Social Community Care Supplies & Services - Children - Specialist Needs
Solihull MBC,Resources,Central Services to the Public,Big Blue Door,24/02/2021,,750,Software,Not Yet Classified
Solihull MBC,Resources,Central Services to the Public,Big Blue Door,24/02/2021,,2250,Software,Not Yet Classified
Solihull MBC,Public Health & Commissioning,Central Services to the Public,Bilash (Knowle) Limited,04/02/2021,,1334,Grant & Subscription (SCITT),Not Yet Classified
Solihull MBC,Public Health & Commissioning,Central Services to the Public,Bilash (Knowle) Limited,16/02/2021,,4000,Grant & Subscription (SCITT),Not Yet Classified
Solihull MBC,Public Health & Commissioning,Central Services to the Public,Bilash (Knowle) Limited,16/02/2021,,2001,Grant & Subscription (SCITT),Not Yet Classified
Solihull MBC,Economy and Infrastructure,Highways & Transport Services,Birchill Access Consultancy,25/02/2021,,1120,Other Contracted Services,Not Yet Classified
Solihull MBC,Adult Social Care,Adult Social Care,Birchmere Mews (Wt Opco3 Ltd),25/02/2021,,-1506.03,ASC - Residential Care Permanent,Not Yet Classified
Solihull MBC,Adult Social Care,Adult Social Care,Birchmere Mews (Wt Opco3 Ltd),25/02/2021,,-2480.52,ASC - Residential Care Permanent,Not Yet Classified
Solihull MBC,Adult Social Care,Adult Social Care,Birchmere Mews (Wt Opco3 Ltd),25/02/2021,,-2480.52,ASC - Residential Care Permanent,Not Yet Classified
Solihull MBC,Adult Social Care,Adult Social Care,Birchmere Mews (Wt Opco3 Ltd),25/02/2021,,-2480.52,ASC - Residential Care Permanent,Not Yet Classified
Solihull MBC,Adult Social Care,Adult Social Care,Birchmere Mews (Wt Opco3 Ltd),25/02/2021,,-2480.52,ASC - Residential Care Permanent,Not Yet Classified
Solihull MBC,Adult Social Care,Adult Social Care,Birchmere Mews (Wt Opco3 Ltd),25/02/2021,,1506.03,ASC - Residential Care Permanent,Not Yet Classified
Solihull MBC,Adult Social Care,Adult Social Care,Birchmere Mews (Wt Opco3 Ltd),25/02/2021,,2480.52,ASC - Residential Care Permanent,Not Yet Classified
Solihull MBC,Adult Social Care,Adult Social Care,Birchmere Mews (Wt Opco3 Ltd),25/02/2021,,2480.52,ASC - Residential Care Permanent,Not Yet Classified
Solihull MBC,Adult Social Care,Adult Social Care,Birchmere Mews (Wt Opco3 Ltd),25/02/2021,,2480.52,ASC - Residential Care Permanent,Not Yet Classified
Solihull MBC,Adult Social Care,Adult Social Care,Birchmere Mews (Wt Opco3 Ltd),25/02/2021,,2480.52,ASC - Residential Care Permanent,Not Yet Classified
Solihull MBC,Adult Social Care,Adult Social Care,Birchmere Mews (Wt Opco3 Ltd),25/02/2021,,2480.52,ASC - Residential Care Permanent,Not Yet Classified
Solihull MBC,Adult Social Care,Adult Social Care,Birchmere Mews (Wt Opco3 Ltd),25/02/2021,,268.2,ASC - Residential Care Respite,Not Yet Classified
Solihull MBC,Adult Social Care,Adult Social Care,Birchmere Mews (Wt Opco3 Ltd),25/02/2021,,2503.2,ASC - Residential Care Respite,Not Yet Classified
Solihull MBC,Adult Social Care,Adult Social Care,Birchmere Mews (Wt Opco3 Ltd),25/02/2021,,535.15,ASC - Residential Care Respite,Not Yet Classified
Solihull MBC,Adult Social Care,Adult Social Care,Birchmere Mews (Wt Opco3 Ltd),25/02/2021,,348.57,ASC - Residential Care Permanent,Not Yet Classified
Solihull MBC,Adult Social Care,Adult Social Care,Birchmere Mews (Wt Opco3 Ltd),25/02/2021,,4674.88,ASC - Residential Care Permanent,Not Yet Classified
Solihull MBC,Adult Social Care,Adult Social Care,Birchmere Mews (Wt Opco3 Ltd),25/02/2021,,348.57,ASC - Residential Care Permanent,Not Yet Classified
Solihull MBC,Adult Social Care,Adult Social Care,Birchmere Mews (Wt Opco3 Ltd),25/02/2021,,4691.4,ASC - Residential Care Permanent,Not Yet Classified
Solihull MBC,Adult Social Care,Adult Social Care,Birchmere Mews (Wt Opco3 Ltd),25/02/2021,,2480.52,ASC - Residential Care Permanent,Not Yet Classified
Solihull MBC,Covid-19,Central Services to the Public,Birchmere Mews (Wt Opco3 Ltd),09/02/2021,,26775.79,ASC - Residential Care Permanent,Not Yet Classified
Solihull MBC,Adult Social Care,Adult Social Care,Birmingham And Solihull Mental Health Trust,03/02/2021,,45286,Block Contracts,Not Yet Classified
Solihull MBC,Children's Services & Skills,Children & Education Services,Birmingham And Solihull Women's Aid,26/02/2021,,302.5,Clients Expenses,321000 - Social Community Care Supplies & Services - Adult
Solihull MBC,Resources,Court Services,Birmingham City Council,04/02/2021,,469923,Other Contracted Services,Not Yet Classified
Solihull MBC,Resources,Central Services to the Public,Birmingham City Council,18/02/2021,,3039.1,Postage & Courier Services,Not Yet Classified
Solihull MBC,Resources,Corporate & Democratic Core,Birmingham City Council,18/02/2021,,4408,Other Contracted Services,Not Yet Classified
Solihull MBC,Children's Services & Skills,Children & Education Services,Birmingham City Council Shared Services,08/02/2021,,6600,Transport-Contract Hire,Not Yet Classified
Solihull MBC,Adult Social Care,Adult Social Care,Birmingham Community Healthcare NHS,26/02/2021,,3935.71,Furniture & Equipment,Not Yet Classified
Solihull MBC,Adult Social Care,Adult Social Care,Birmingham Community Healthcare NHS,02/02/2021,,3818.02,Furniture & Equipment,Not Yet Classified
Solihull MBC,Adult Social Care,Adult Social Care,Birmingham Community Healthcare NHS,26/02/2021,,3935.71,Furniture & Equipment,Not Yet Classified
Solihull MBC,Public Health & Commissioning,Central Services to the Public,Birmingham Exiles RFC Ltd,08/02/2021,,6000,Grant & Subscription (SCITT),Not Yet Classified
Solihull MBC,Public Health & Commissioning,Central Services to the Public,Birmingham Exiles RFC Ltd,08/02/2021,,357,Grant & Subscription (SCITT),Not Yet Classified
Solihull MBC,Public Health & Commissioning,Central Services to the Public,Birmingham Exiles RFC Ltd,08/02/2021,,3000,Grant & Subscription (SCITT),Not Yet Classified
Solihull MBC,Adult Social Care,Adult Social Care,Birmingham Focus,09/02/2021,,392.85,ASC - Day Care,321000 - Social Community Care Supplies & Services - Adult
Solihull MBC,Adult Social Care,Adult Social Care,Birmingham Focus,09/02/2021,,1681.35,ASC - Day Care,321000 - Social Community Care Supplies & Services - Adult
Solihull MBC,Adult Social Care,Adult Social Care,Birmingham Focus,09/02/2021,,2241.8,ASC - Day Care,321000 - Social Community Care Supplies & Services - Adult
Solihull MBC,Adult Social Care,Adult Social Care,Birmingham Focus,09/02/2021,,2241.8,ASC - Day Care,321000 - Social Community Care Supplies & Services - Adult
Solihull MBC,Adult Social Care,Adult Social Care,Birmingham Focus,09/02/2021,,2241.8,ASC - Day Care,321000 - Social Community Care Supplies & Services - Adult
Solihull MBC,Adult Social Care,Adult Social Care,Birmingham Focus,09/02/2021,,1200.97,ASC - Day Care,321000 - Social Community Care Supplies & Services - Adult
Solihull MBC,Adult Social Care,Adult Social Care,Birmingham Focus,09/02/2021,,1040.83,ASC - Day Care,321000 - Social Community Care Supplies & Services - Adult
Solihull MBC,Adult Social Care,Adult Social Care,Birmingham Focus,09/02/2021,,2241.8,ASC - Day Care,321000 - Social Community Care Supplies & Services - Adult
Solihull MBC,Adult Social Care,Adult Social Care,Birmingham Focus,09/02/2021,,2241.8,ASC - Day Care,321000 - Social Community Care Supplies & Services - Adult
Solihull MBC,Adult Social Care,Adult Social Care,Birmingham Focus,09/02/2021,,2241.8,ASC - Day Care,321000 - Social Community Care Supplies & Services - Adult
Solihull MBC,Adult Social Care,Adult Social Care,Birmingham Focus,09/02/2021,,-2241.8,ASC - Day Care,321000 - Social Community Care Supplies & Services - Adult
Solihull MBC,Adult Social Care,Adult Social Care,Birmingham Focus,09/02/2021,,-392.85,ASC - Day Care,321000 - Social Community Care Supplies & Services - Adult
Solihull MBC,Adult Social Care,Adult Social Care,Birmingham Focus,09/02/2021,,392.85,ASC - Day Care,321000 - Social Community Care Supplies & Services - Adult
Solihull MBC,Adult Social Care,Adult Social Care,Birmingham Focus,09/02/2021,,2241.8,ASC - Day Care,321000 - Social Community Care Supplies & Services - Adult
Solihull MBC,Adult Social Care,Adult Social Care,Birmingham Focus,09/02/2021,,560.45,ASC - Day Care,321000 - Social Community Care Supplies & Services - Adult
Solihull MBC,Adult Social Care,Adult Social Care,Birmingham Mind,25/02/2021,,2900.8,ASC - Residential Care Permanent,Not Yet Classified
Solihull MBC,Adult Social Care,Adult Social Care,Birmingham Social Services,25/02/2021,,1200,ASC - Shared Lives,Not Yet Classified
Solihull MBC,Children's Services - DSG Central.,Children & Education Services,Birmingham Tuition Centre,04/02/2021,,2920,Professional Fees,Not Yet Classified
Solihull MBC,Resources,Planning & Development Services,BJ Unwin Forestry Consultancy,26/02/2021,,900,Professional Fees,Not Yet Classified
Solihull MBC,Adult Social Care,Adult Social Care,BJCC,25/02/2021,,2736.72,ASC - Nursing Care Permanent,Not Yet Classified
Solihull MBC,Children's Services & Skills,Children & Education Services,Blossoms Pre-School Limited,01/02/2021,,306,Clients Expenses,Not Yet Classified
Solihull MBC,Children's Services - DSG Central.,Children & Education Services,Blue Moose Dance Company,08/02/2021,,250,Professional Fees,Not Yet Classified
Solihull MBC,Economy and Infrastructure,Planning & Development Services,Blue Orchid,15/02/2021,,22083.33,Professional Fees,150000 - Consultancy
Solihull MBC,Economy and Infrastructure,Planning & Development Services,Blue Orchid,15/02/2021,,7448.33,Professional Fees,150000 - Consultancy
Solihull MBC,Adult Social Care,Adult Social Care,Bluebird Care (Solihull),04/02/2021,,1495.2,ASC - Domiciliary Care,Not Yet Classified
Solihull MBC,Adult Social Care,Adult Social Care,Bluebird Care (Solihull),04/02/2021,,683.52,ASC - Domiciliary Care,Not Yet Classified
Solihull MBC,Adult Social Care,Adult Social Care,Bluebird Care (Solihull),04/02/2021,,662.16,ASC - Domiciliary Care,Not Yet Classified
Solihull MBC,Adult Social Care,Adult Social Care,Bluebird Care (Solihull),04/02/2021,,843.72,ASC - Domiciliary Care,Not Yet Classified
Solihull MBC,Adult Social Care,Adult Social Care,Bluebird Care (Solihull),04/02/2021,,1249.56,ASC - Domiciliary Care,Not Yet Classified
Solihull MBC,Adult Social Care,Adult Social Care,Bluebird Care (Solihull),04/02/2021,,1249.56,ASC - Domiciliary Care,Not Yet Classified
Solihull MBC,Economy and Infrastructure,Environmental and Regulatory Services,Bluesky International Ltd,08/02/2021,,769,General Office Expenses,Not Yet Classified
Solihull MBC,Resources,Planning & Development Services,BNP Paribas Real Estate Property Management,23/02/2021,,266.72,Repair & Maintn Of Buildings,Not Yet Classified
Solihull MBC,Economy and Infrastructure,Cultural & Related Services,Bolinda UK Ltd,23/02/2021,,1024.85,Materials,Not Yet Classified
Solihull MBC,Adult Social Care,Adult Social Care,Bondcare (Bromford) Ltd,25/02/2021,,3451,ASC - Nursing Care Permanent,321000 - Social Community Care Supplies & Services - Adult
Solihull MBC,Adult Social Care,Adult Social Care,Bondcare (Bromford) Ltd,25/02/2021,,4000,ASC - Residential Care Permanent,321000 - Social Community Care Supplies & Services - Adult
Solihull MBC,Adult Social Care,Adult Social Care,Bondcare (Bromford) Ltd,25/02/2021,,2736.72,ASC - Nursing Care Permanent,321000 - Social Community Care Supplies & Services - Adult
Solihull MBC,Resources,Central Services to the Public,Boxxe Ltd,02/02/2021,,695.5,IT Equipment & Software,Not Yet Classified
Solihull MBC,Adult Social Care,Adult Social Care,Bracebridge Court (Runwood Homes),25/02/2021,,2266.6,ASC - Residential Care Permanent,Not Yet Classified
Solihull MBC,Public Health & Commissioning,Central Services to the Public,Bracebridge Holdings Ltd,01/02/2021,,3000,Grant & Subscription (SCITT),Not Yet Classified
Solihull MBC,Public Health & Commissioning,Central Services to the Public,Bradford Arms,03/02/2021,,3000,Grant & Subscription (SCITT),Not Yet Classified
Solihull MBC,Public Health & Commissioning,Central Services to the Public,Bradford Arms,16/02/2021,,9000,Grant & Subscription (SCITT),Not Yet Classified
Solihull MBC,Public Health & Commissioning,Central Services to the Public,Bradford Arms,16/02/2021,,536,Grant & Subscription (SCITT),Not Yet Classified
Solihull MBC,Public Health & Commissioning,Central Services to the Public,Bradford Arms,16/02/2021,,4500,Grant & Subscription (SCITT),Not Yet Classified
Solihull MBC,Resources,Children & Education Services,Brake Bros Foodservice Ltd,05/02/2021,,45.07,Catering Provisions,110000 - Catering
Solihull MBC,Resources,Children & Education Services,Brake Bros Foodservice Ltd,05/02/2021,,140.44,Catering Provisions,110000 - Catering
Solihull MBC,Resources,Children & Education Services,Brake Bros Foodservice Ltd,05/02/2021,,64.29,Catering Provisions,110000 - Catering
Solihull MBC,Resources,Children & Education Services,Brake Bros Foodservice Ltd,05/02/2021,,81.37,Catering Provisions,110000 - Catering
Solihull MBC,Resources,Children & Education Services,Brake Bros Foodservice Ltd,05/02/2021,,236.34,Catering Provisions,110000 - Catering
Solihull MBC,Resources,Children & Education Services,Brake Bros Foodservice Ltd,05/02/2021,,163.58,Catering Provisions,110000 - Catering
Solihull MBC,Resources,Children & Education Services,Brake Bros Foodservice Ltd,05/02/2021,,182.75,Catering Provisions,110000 - Catering
Solihull MBC,Resources,Children & Education Services,Brake Bros Foodservice Ltd,05/02/2021,,96.92,Catering Provisions,110000 - Catering
Solihull MBC,Resources,Children & Education Services,Brake Bros Foodservice Ltd,05/02/2021,,14.53,Catering Provisions,110000 - Catering
Solihull MBC,Resources,Children & Education Services,Brake Bros Foodservice Ltd,05/02/2021,,178.92,Catering Provisions,110000 - Catering
Solihull MBC,Resources,Children & Education Services,Brake Bros Foodservice Ltd,05/02/2021,,80,Catering Provisions,110000 - Catering
Solihull MBC,Resources,Children & Education Services,Brake Bros Foodservice Ltd,05/02/2021,,246.8,Catering Provisions,110000 - Catering
Solihull MBC,Resources,Children & Education Services,Brake Bros Foodservice Ltd,05/02/2021,,44.73,Catering Provisions,110000 - Catering
Solihull MBC,Resources,Children & Education Services,Brake Bros Foodservice Ltd,05/02/2021,,183.86,Catering Provisions,110000 - Catering
Solihull MBC,Resources,Children & Education Services,Brake Bros Foodservice Ltd,05/02/2021,,143.45,Catering Provisions,110000 - Catering
Solihull MBC,Resources,Children & Education Services,Brake Bros Foodservice Ltd,05/02/2021,,130.91,Catering Provisions,110000 - Catering
Solihull MBC,Resources,Children & Education Services,Brake Bros Foodservice Ltd,05/02/2021,,174.77,Catering Provisions,110000 - Catering
Solihull MBC,Resources,Children & Education Services,Brake Bros Foodservice Ltd,05/02/2021,,64.5,Catering Provisions,110000 - Catering
Solihull MBC,Resources,Children & Education Services,Brake Bros Foodservice Ltd,05/02/2021,,46.93,Catering Provisions,110000 - Catering
Solihull MBC,Resources,Children & Education Services,Brake Bros Foodservice Ltd,05/02/2021,,362.07,Catering Provisions,110000 - Catering
Solihull MBC,Resources,Children & Education Services,Brake Bros Foodservice Ltd,05/02/2021,,111.77,Catering Provisions,110000 - Catering
Solihull MBC,Resources,Children & Education Services,Brake Bros Foodservice Ltd,05/02/2021,,43.38,Catering Provisions,110000 - Catering
Solihull MBC,Resources,Children & Education Services,Brake Bros Foodservice Ltd,05/02/2021,,130.41,Catering Provisions,110000 - Catering
Solihull MBC,Resources,Children & Education Services,Brake Bros Foodservice Ltd,05/02/2021,,189.51,Catering Provisions,110000 - Catering
Solihull MBC,Resources,Children & Education Services,Brake Bros Foodservice Ltd,05/02/2021,,168.93,Catering Provisions,110000 - Catering
Solihull MBC,Resources,Children & Education Services,Brake Bros Foodservice Ltd,05/02/2021,,139.59,Catering Provisions,110000 - Catering
Solihull MBC,Resources,Children & Education Services,Brake Bros Foodservice Ltd,05/02/2021,,126.76,Catering Provisions,110000 - Catering
Solihull MBC,Resources,Children & Education Services,Brake Bros Foodservice Ltd,05/02/2021,,253.92,Catering Provisions,110000 - Catering
Solihull MBC,Resources,Children & Education Services,Brake Bros Foodservice Ltd,05/02/2021,,36.58,Catering Provisions,110000 - Catering
Solihull MBC,Resources,Children & Education Services,Brake Bros Foodservice Ltd,05/02/2021,,252.91,Catering Provisions,110000 - Catering
Solihull MBC,Resources,Children & Education Services,Brake Bros Foodservice Ltd,05/02/2021,,93.43,Catering Provisions,110000 - Catering
Solihull MBC,Resources,Children & Education Services,Brake Bros Foodservice Ltd,05/02/2021,,51.09,Catering Provisions,110000 - Catering
Solihull MBC,Resources,Children & Education Services,Brake Bros Foodservice Ltd,05/02/2021,,46.63,Catering Provisions,110000 - Catering
Solihull MBC,Resources,Children & Education Services,Brake Bros Foodservice Ltd,05/02/2021,,71.18,Catering Provisions,110000 - Catering
Solihull MBC,Resources,Children & Education Services,Brake Bros Foodservice Ltd,05/02/2021,,136.58,Catering Provisions,110000 - Catering
Solihull MBC,Resources,Children & Education Services,Brake Bros Foodservice Ltd,05/02/2021,,129.57,Catering Provisions,110000 - Catering
Solihull MBC,Resources,Children & Education Services,Brake Bros Foodservice Ltd,05/02/2021,,127.57,Catering Provisions,110000 - Catering
Solihull MBC,Resources,Children & Education Services,Brake Bros Foodservice Ltd,05/02/2021,,46.5,Catering Provisions,110000 - Catering
Solihull MBC,Resources,Children & Education Services,Brake Bros Foodservice Ltd,05/02/2021,,73.35,Catering Provisions,110000 - Catering
Solihull MBC,Resources,Children & Education Services,Brake Bros Foodservice Ltd,05/02/2021,,124.3,Catering Provisions,110000 - Catering
Solihull MBC,Resources,Children & Education Services,Brake Bros Foodservice Ltd,05/02/2021,,140.86,Catering Provisions,110000 - Catering
Solihull MBC,Resources,Children & Education Services,Brake Bros Foodservice Ltd,05/02/2021,,89.92,Catering Provisions,110000 - Catering
Solihull MBC,Resources,Children & Education Services,Brake Bros Foodservice Ltd,05/02/2021,,17.69,Catering Provisions,110000 - Catering
Solihull MBC,Resources,Children & Education Services,Brake Bros Foodservice Ltd,05/02/2021,,164.57,Catering Provisions,110000 - Catering
Solihull MBC,Resources,Children & Education Services,Brake Bros Foodservice Ltd,05/02/2021,,99.98,Catering Provisions,110000 - Catering
Solihull MBC,Resources,Children & Education Services,Brake Bros Foodservice Ltd,05/02/2021,,138.68,Catering Provisions,110000 - Catering
Solihull MBC,Resources,Children & Education Services,Brake Bros Foodservice Ltd,05/02/2021,,218.22,Catering Provisions,110000 - Catering
Solihull MBC,Resources,Children & Education Services,Brake Bros Foodservice Ltd,05/02/2021,,115.6,Catering Provisions,110000 - Catering
Solihull MBC,Resources,Children & Education Services,Brake Bros Foodservice Ltd,05/02/2021,,166.31,Catering Provisions,110000 - Catering
Solihull MBC,Resources,Children & Education Services,Brake Bros Foodservice Ltd,05/02/2021,,211.31,Catering Provisions,110000 - Catering
Solihull MBC,Resources,Children & Education Services,Brake Bros Foodservice Ltd,05/02/2021,,283.59,Catering Provisions,110000 - Catering
Solihull MBC,Resources,Children & Education Services,Brake Bros Foodservice Ltd,05/02/2021,,174.63,Catering Provisions,110000 - Catering
Solihull MBC,Resources,Children & Education Services,Brake Bros Foodservice Ltd,05/02/2021,,127.72,Catering Provisions,110000 - Catering
Solihull MBC,Resources,Children & Education Services,Brake Bros Foodservice Ltd,05/02/2021,,46.18,Catering Provisions,110000 - Catering
Solihull MBC,Resources,Children & Education Services,Brake Bros Foodservice Ltd,05/02/2021,,15.91,Catering Provisions,110000 - Catering
Solihull MBC,Resources,Children & Education Services,Brake Bros Foodservice Ltd,05/02/2021,,202.71,Catering Provisions,110000 - Catering
Solihull MBC,Resources,Children & Education Services,Brake Bros Foodservice Ltd,05/02/2021,,100,Catering Provisions,110000 - Catering
Solihull MBC,Resources,Children & Education Services,Brake Bros Foodservice Ltd,05/02/2021,,116.31,Catering Provisions,110000 - Catering
Solihull MBC,Resources,Children & Education Services,Brake Bros Foodservice Ltd,05/02/2021,,135.62,Catering Provisions,110000 - Catering
Solihull MBC,Resources,Children & Education Services,Brake Bros Foodservice Ltd,05/02/2021,,90.25,Catering Provisions,110000 - Catering
Solihull MBC,Resources,Children & Education Services,Brake Bros Foodservice Ltd,05/02/2021,,43.95,Catering Provisions,110000 - Catering
Solihull MBC,Resources,Children & Education Services,Brake Bros Foodservice Ltd,05/02/2021,,111.92,Catering Provisions,110000 - Catering
Solihull MBC,Resources,Children & Education Services,Brake Bros Foodservice Ltd,10/02/2021,,135.35,Catering Provisions,110000 - Catering
Solihull MBC,Resources,Children & Education Services,Brake Bros Foodservice Ltd,10/02/2021,,85.86,Catering Provisions,110000 - Catering
Solihull MBC,Resources,Children & Education Services,Brake Bros Foodservice Ltd,10/02/2021,,238.12,Catering Provisions,110000 - Catering
Solihull MBC,Resources,Children & Education Services,Brake Bros Foodservice Ltd,10/02/2021,,30.56,Catering Provisions,110000 - Catering
Solihull MBC,Resources,Children & Education Services,Brake Bros Foodservice Ltd,10/02/2021,,74.66,Catering Provisions,110000 - Catering
Solihull MBC,Resources,Children & Education Services,Brake Bros Foodservice Ltd,10/02/2021,,135.45,Catering Provisions,110000 - Catering
Solihull MBC,Resources,Children & Education Services,Brake Bros Foodservice Ltd,10/02/2021,,99.86,Catering Provisions,110000 - Catering
Solihull MBC,Resources,Children & Education Services,Brake Bros Foodservice Ltd,10/02/2021,,83.46,Catering Provisions,110000 - Catering
Solihull MBC,Resources,Children & Education Services,Brake Bros Foodservice Ltd,10/02/2021,,130.06,Catering Provisions,110000 - Catering
Solihull MBC,Resources,Children & Education Services,Brake Bros Foodservice Ltd,10/02/2021,,117.78,Catering Provisions,110000 - Catering
Solihull MBC,Resources,Children & Education Services,Brake Bros Foodservice Ltd,10/02/2021,,69.68,Catering Provisions,110000 - Catering
Solihull MBC,Resources,Adult Social Care,Brake Bros Foodservice Ltd,10/02/2021,,23.75,Catering Provisions,110000 - Catering
Solihull MBC,Resources,Children & Education Services,Brake Bros Foodservice Ltd,10/02/2021,,234.96,Catering Provisions,110000 - Catering
Solihull MBC,Resources,Children & Education Services,Brake Bros Foodservice Ltd,10/02/2021,,93.87,Catering Provisions,110000 - Catering
Solihull MBC,Resources,Children & Education Services,Brake Bros Foodservice Ltd,10/02/2021,,131.01,Catering Provisions,110000 - Catering
Solihull MBC,Resources,Children & Education Services,Brake Bros Foodservice Ltd,10/02/2021,,47.81,Catering Provisions,110000 - Catering
Solihull MBC,Resources,Children & Education Services,Brake Bros Foodservice Ltd,10/02/2021,,47.54,Catering Provisions,110000 - Catering
Solihull MBC,Resources,Children & Education Services,Brake Bros Foodservice Ltd,10/02/2021,,62.6,Catering Provisions,110000 - Catering
Solihull MBC,Resources,Children & Education Services,Brake Bros Foodservice Ltd,10/02/2021,,11.4,Catering Provisions,110000 - Catering
Solihull MBC,Resources,Children & Education Services,Brake Bros Foodservice Ltd,10/02/2021,,191.65,Catering Provisions,110000 - Catering
Solihull MBC,Resources,Children & Education Services,Brake Bros Foodservice Ltd,10/02/2021,,186.18,Catering Provisions,110000 - Catering
Solihull MBC,Resources,Children & Education Services,Brake Bros Foodservice Ltd,10/02/2021,,111.84,Catering Provisions,110000 - Catering
Solihull MBC,Resources,Children & Education Services,Brake Bros Foodservice Ltd,10/02/2021,,84.07,Catering Provisions,110000 - Catering
Solihull MBC,Resources,Children & Education Services,Brake Bros Foodservice Ltd,10/02/2021,,69.86,Catering Provisions,110000 - Catering
Solihull MBC,Resources,Children & Education Services,Brake Bros Foodservice Ltd,10/02/2021,,46.84,Catering Provisions,110000 - Catering
Solihull MBC,Resources,Children & Education Services,Brake Bros Foodservice Ltd,10/02/2021,,146.58,Catering Provisions,110000 - Catering
Solihull MBC,Resources,Children & Education Services,Brake Bros Foodservice Ltd,10/02/2021,,202.86,Catering Provisions,110000 - Catering
Solihull MBC,Resources,Children & Education Services,Brake Bros Foodservice Ltd,10/02/2021,,415.62,Catering Provisions,110000 - Catering
Solihull MBC,Resources,Children & Education Services,Brake Bros Foodservice Ltd,10/02/2021,,45.7,Catering Provisions,110000 - Catering
Solihull MBC,Resources,Children & Education Services,Brake Bros Foodservice Ltd,10/02/2021,,81.35,Catering Provisions,110000 - Catering
Solihull MBC,Resources,Children & Education Services,Brake Bros Foodservice Ltd,10/02/2021,,108.13,Catering Provisions,110000 - Catering
Solihull MBC,Resources,Children & Education Services,Brake Bros Foodservice Ltd,10/02/2021,,165.23,Catering Provisions,110000 - Catering
Solihull MBC,Resources,Children & Education Services,Brake Bros Foodservice Ltd,10/02/2021,,116.31,Catering Provisions,110000 - Catering
Solihull MBC,Resources,Children & Education Services,Brake Bros Foodservice Ltd,10/02/2021,,207.14,Catering Provisions,110000 - Catering
Solihull MBC,Resources,Children & Education Services,Brake Bros Foodservice Ltd,10/02/2021,,135.32,Catering Provisions,110000 - Catering
Solihull MBC,Resources,Children & Education Services,Brake Bros Foodservice Ltd,10/02/2021,,211.55,Catering Provisions,110000 - Catering
Solihull MBC,Resources,Children & Education Services,Brake Bros Foodservice Ltd,10/02/2021,,49.79,Catering Provisions,110000 - Catering
Solihull MBC,Resources,Children & Education Services,Brake Bros Foodservice Ltd,10/02/2021,,121.95,Catering Provisions,110000 - Catering
Solihull MBC,Resources,Children & Education Services,Brake Bros Foodservice Ltd,10/02/2021,,180.61,Catering Provisions,110000 - Catering
Solihull MBC,Resources,Children & Education Services,Brake Bros Foodservice Ltd,10/02/2021,,151.57,Catering Provisions,110000 - Catering
Solihull MBC,Resources,Children & Education Services,Brake Bros Foodservice Ltd,10/02/2021,,23.2,Catering Provisions,110000 - Catering
Solihull MBC,Resources,Children & Education Services,Brake Bros Foodservice Ltd,10/02/2021,,154.44,Catering Provisions,110000 - Catering
Solihull MBC,Resources,Children & Education Services,Brake Bros Foodservice Ltd,10/02/2021,,295.89,Catering Provisions,110000 - Catering
Solihull MBC,Resources,Children & Education Services,Brake Bros Foodservice Ltd,10/02/2021,,70.32,Catering Provisions,110000 - Catering
Solihull MBC,Resources,Children & Education Services,Brake Bros Foodservice Ltd,10/02/2021,,90.32,Catering Provisions,110000 - Catering
Solihull MBC,Resources,Children & Education Services,Brake Bros Foodservice Ltd,10/02/2021,,401.79,Catering Provisions,110000 - Catering
Solihull MBC,Resources,Children & Education Services,Brake Bros Foodservice Ltd,10/02/2021,,115.22,Catering Provisions,110000 - Catering
Solihull MBC,Resources,Children & Education Services,Brake Bros Foodservice Ltd,10/02/2021,,125.32,Catering Provisions,110000 - Catering
Solihull MBC,Resources,Children & Education Services,Brake Bros Foodservice Ltd,10/02/2021,,60.19,Catering Provisions,110000 - Catering
Solihull MBC,Resources,Children & Education Services,Brake Bros Foodservice Ltd,10/02/2021,,168.54,Catering Provisions,110000 - Catering
Solihull MBC,Resources,Children & Education Services,Brake Bros Foodservice Ltd,10/02/2021,,16.73,Catering Provisions,110000 - Catering
Solihull MBC,Resources,Children & Education Services,Brake Bros Foodservice Ltd,10/02/2021,,44.34,Catering Provisions,110000 - Catering
Solihull MBC,Resources,Children & Education Services,Brake Bros Foodservice Ltd,10/02/2021,,72.36,Catering Provisions,110000 - Catering
Solihull MBC,Resources,Children & Education Services,Brake Bros Foodservice Ltd,10/02/2021,,167.09,Catering Provisions,110000 - Catering
Solihull MBC,Resources,Children & Education Services,Brake Bros Foodservice Ltd,10/02/2021,,153.02,Catering Provisions,110000 - Catering
Solihull MBC,Resources,Children & Education Services,Brake Bros Foodservice Ltd,10/02/2021,,111.25,Catering Provisions,110000 - Catering
Solihull MBC,Resources,Children & Education Services,Brake Bros Foodservice Ltd,10/02/2021,,182.25,Catering Provisions,110000 - Catering
Solihull MBC,Resources,Children & Education Services,Brake Bros Foodservice Ltd,10/02/2021,,25.94,Catering Provisions,110000 - Catering
Solihull MBC,Resources,Children & Education Services,Brake Bros Foodservice Ltd,10/02/2021,,39.02,Catering Provisions,110000 - Catering
Solihull MBC,Resources,Children & Education Services,Brake Bros Foodservice Ltd,10/02/2021,,163.6,Catering Provisions,110000 - Catering
Solihull MBC,Resources,Children & Education Services,Brake Bros Foodservice Ltd,10/02/2021,,86.69,Catering Provisions,110000 - Catering
Solihull MBC,Resources,Children & Education Services,Brake Bros Foodservice Ltd,18/02/2021,,170.23,Catering Provisions,110000 - Catering
Solihull MBC,Resources,Children & Education Services,Brake Bros Foodservice Ltd,18/02/2021,,92.27,Catering Provisions,110000 - Catering
Solihull MBC,Resources,Children & Education Services,Brake Bros Foodservice Ltd,18/02/2021,,242.36,Catering Provisions,110000 - Catering
Solihull MBC,Resources,Children & Education Services,Brake Bros Foodservice Ltd,18/02/2021,,53.45,Catering Provisions,110000 - Catering
Solihull MBC,Resources,Children & Education Services,Brake Bros Foodservice Ltd,18/02/2021,,142.89,Catering Provisions,110000 - Catering
Solihull MBC,Resources,Children & Education Services,Brake Bros Foodservice Ltd,18/02/2021,,249.79,Catering Provisions,110000 - Catering
Solihull MBC,Resources,Children & Education Services,Brake Bros Foodservice Ltd,18/02/2021,,52.4,Catering Provisions,110000 - Catering
Solihull MBC,Resources,Children & Education Services,Brake Bros Foodservice Ltd,18/02/2021,,204.16,Catering Provisions,110000 - Catering
Solihull MBC,Resources,Children & Education Services,Brake Bros Foodservice Ltd,18/02/2021,,74.27,Catering Provisions,110000 - Catering
Solihull MBC,Resources,Children & Education Services,Brake Bros Foodservice Ltd,18/02/2021,,190.56,Catering Provisions,110000 - Catering
Solihull MBC,Resources,Children & Education Services,Brake Bros Foodservice Ltd,18/02/2021,,141.83,Catering Provisions,110000 - Catering
Solihull MBC,Resources,Children & Education Services,Brake Bros Foodservice Ltd,18/02/2021,,84.78,Catering Provisions,110000 - Catering
Solihull MBC,Resources,Children & Education Services,Brake Bros Foodservice Ltd,18/02/2021,,22.26,Catering Provisions,110000 - Catering
Solihull MBC,Resources,Children & Education Services,Brake Bros Foodservice Ltd,18/02/2021,,153.1,Catering Provisions,110000 - Catering
Solihull MBC,Resources,Children & Education Services,Brake Bros Foodservice Ltd,18/02/2021,,175.58,Catering Provisions,110000 - Catering
Solihull MBC,Resources,Children & Education Services,Brake Bros Foodservice Ltd,18/02/2021,,72.53,Catering Provisions,110000 - Catering
Solihull MBC,Resources,Children & Education Services,Brake Bros Foodservice Ltd,18/02/2021,,55.85,Catering Provisions,110000 - Catering
Solihull MBC,Resources,Children & Education Services,Brake Bros Foodservice Ltd,18/02/2021,,128.23,Catering Provisions,110000 - Catering
Solihull MBC,Resources,Children & Education Services,Brake Bros Foodservice Ltd,18/02/2021,,100.31,Catering Provisions,110000 - Catering
Solihull MBC,Resources,Children & Education Services,Brake Bros Foodservice Ltd,18/02/2021,,71.6,Catering Provisions,110000 - Catering
Solihull MBC,Resources,Children & Education Services,Brake Bros Foodservice Ltd,18/02/2021,,195.16,Catering Provisions,110000 - Catering
Solihull MBC,Resources,Children & Education Services,Brake Bros Foodservice Ltd,18/02/2021,,166.78,Catering Provisions,110000 - Catering
Solihull MBC,Resources,Children & Education Services,Brake Bros Foodservice Ltd,18/02/2021,,206.86,Catering Provisions,110000 - Catering
Solihull MBC,Resources,Children & Education Services,Brake Bros Foodservice Ltd,18/02/2021,,89.61,Catering Provisions,110000 - Catering
Solihull MBC,Resources,Children & Education Services,Brake Bros Foodservice Ltd,18/02/2021,,22.36,Catering Provisions,110000 - Catering
Solihull MBC,Resources,Children & Education Services,Brake Bros Foodservice Ltd,18/02/2021,,184.41,Catering Provisions,110000 - Catering
Solihull MBC,Resources,Children & Education Services,Brake Bros Foodservice Ltd,18/02/2021,,81.62,Catering Provisions,110000 - Catering
Solihull MBC,Resources,Children & Education Services,Brake Bros Foodservice Ltd,18/02/2021,,145.01,Catering Provisions,110000 - Catering
Solihull MBC,Resources,Children & Education Services,Brake Bros Foodservice Ltd,18/02/2021,,187.77,Catering Provisions,110000 - Catering
Solihull MBC,Resources,Children & Education Services,Brake Bros Foodservice Ltd,18/02/2021,,132.72,Catering Provisions,110000 - Catering
Solihull MBC,Resources,Children & Education Services,Brake Bros Foodservice Ltd,18/02/2021,,41.49,Catering Provisions,110000 - Catering
Solihull MBC,Resources,Children & Education Services,Brake Bros Foodservice Ltd,18/02/2021,,116.71,Catering Provisions,110000 - Catering
Solihull MBC,Resources,Children & Education Services,Brake Bros Foodservice Ltd,18/02/2021,,123.63,Catering Provisions,110000 - Catering
Solihull MBC,Resources,Children & Education Services,Brake Bros Foodservice Ltd,18/02/2021,,246.04,Catering Provisions,110000 - Catering
Solihull MBC,Resources,Children & Education Services,Brake Bros Foodservice Ltd,18/02/2021,,109.73,Catering Provisions,110000 - Catering
Solihull MBC,Resources,Children & Education Services,Brake Bros Foodservice Ltd,18/02/2021,,4.87,Catering Provisions,110000 - Catering
Solihull MBC,Resources,Children & Education Services,Brake Bros Foodservice Ltd,18/02/2021,,287.69,Catering Provisions,110000 - Catering
Solihull MBC,Resources,Children & Education Services,Brake Bros Foodservice Ltd,18/02/2021,,134.69,Catering Provisions,110000 - Catering
Solihull MBC,Resources,Children & Education Services,Brake Bros Foodservice Ltd,18/02/2021,,189.15,Catering Provisions,110000 - Catering
Solihull MBC,Resources,Children & Education Services,Brake Bros Foodservice Ltd,18/02/2021,,152.66,Catering Provisions,110000 - Catering
Solihull MBC,Resources,Children & Education Services,Brake Bros Foodservice Ltd,18/02/2021,,127.3,Catering Provisions,110000 - Catering
Solihull MBC,Resources,Children & Education Services,Brake Bros Foodservice Ltd,18/02/2021,,49.67,Catering Provisions,110000 - Catering
Solihull MBC,Resources,Children & Education Services,Brake Bros Foodservice Ltd,18/02/2021,,164.72,Catering Provisions,110000 - Catering
Solihull MBC,Resources,Children & Education Services,Brake Bros Foodservice Ltd,18/02/2021,,147.3,Catering Provisions,110000 - Catering
Solihull MBC,Resources,Children & Education Services,Brake Bros Foodservice Ltd,18/02/2021,,36.62,Catering Provisions,110000 - Catering
Solihull MBC,Resources,Children & Education Services,Brake Bros Foodservice Ltd,18/02/2021,,40.65,Catering Provisions,110000 - Catering
Solihull MBC,Resources,Children & Education Services,Brake Bros Foodservice Ltd,18/02/2021,,40.73,Catering Provisions,110000 - Catering
Solihull MBC,Resources,Children & Education Services,Brake Bros Foodservice Ltd,18/02/2021,,183.58,Catering Provisions,110000 - Catering
Solihull MBC,Resources,Children & Education Services,Brake Bros Foodservice Ltd,18/02/2021,,198.42,Catering Provisions,110000 - Catering
Solihull MBC,Resources,Children & Education Services,Brake Bros Foodservice Ltd,18/02/2021,,161.72,Catering Provisions,110000 - Catering
Solihull MBC,Resources,Children & Education Services,Brake Bros Foodservice Ltd,18/02/2021,,56.32,Catering Provisions,110000 - Catering
Solihull MBC,Resources,Children & Education Services,Brake Bros Foodservice Ltd,18/02/2021,,91.19,Catering Provisions,110000 - Catering
Solihull MBC,Resources,Children & Education Services,Brake Bros Foodservice Ltd,18/02/2021,,42.71,Catering Provisions,110000 - Catering
Solihull MBC,Resources,Children & Education Services,Brake Bros Foodservice Ltd,18/02/2021,,67.81,Catering Provisions,110000 - Catering
Solihull MBC,Resources,Children & Education Services,Brake Bros Foodservice Ltd,18/02/2021,,79.89,Catering Provisions,110000 - Catering
Solihull MBC,Resources,Children & Education Services,Brake Bros Foodservice Ltd,18/02/2021,,153.81,Catering Provisions,110000 - Catering
Solihull MBC,Resources,Children & Education Services,Brake Bros Foodservice Ltd,18/02/2021,,144.48,Catering Provisions,110000 - Catering
Solihull MBC,Resources,Children & Education Services,Brake Bros Foodservice Ltd,18/02/2021,,13.42,Catering Provisions,110000 - Catering
Solihull MBC,Resources,Children & Education Services,Brake Bros Foodservice Ltd,18/02/2021,,208.69,Catering Provisions,110000 - Catering
Solihull MBC,Resources,Children & Education Services,Brake Bros Foodservice Ltd,18/02/2021,,63.94,Catering Provisions,110000 - Catering
Solihull MBC,Resources,Children & Education Services,Brake Bros Foodservice Ltd,18/02/2021,,93.68,Catering Provisions,110000 - Catering
Solihull MBC,Resources,Children & Education Services,Brake Bros Foodservice Ltd,18/02/2021,,138.54,Catering Provisions,110000 - Catering
Solihull MBC,Resources,Children & Education Services,Brake Bros Foodservice Ltd,18/02/2021,,35.66,Catering Provisions,110000 - Catering
Solihull MBC,Resources,Children & Education Services,Brake Bros Foodservice Ltd,04/02/2021,,77.61,Catering Provisions,110000 - Catering
Solihull MBC,Resources,Children & Education Services,Brake Bros Foodservice Ltd,04/02/2021,,41.64,Catering Provisions,110000 - Catering
Solihull MBC,Resources,Children & Education Services,Brake Bros Foodservice Ltd,04/02/2021,,47.53,Catering Provisions,110000 - Catering
Solihull MBC,Resources,Children & Education Services,Brake Bros Foodservice Ltd,04/02/2021,,24.11,Catering Provisions,110000 - Catering
Solihull MBC,Resources,Children & Education Services,Brake Bros Foodservice Ltd,04/02/2021,,55.47,Catering Provisions,110000 - Catering
Solihull MBC,Resources,Children & Education Services,Brake Bros Foodservice Ltd,04/02/2021,,52.98,Catering Provisions,110000 - Catering
Solihull MBC,Resources,Children & Education Services,Brake Bros Foodservice Ltd,04/02/2021,,4.87,Catering Provisions,110000 - Catering
Solihull MBC,Resources,Children & Education Services,Brake Bros Foodservice Ltd,04/02/2021,,98,Catering Provisions,110000 - Catering
Solihull MBC,Resources,Children & Education Services,Brake Bros Foodservice Ltd,04/02/2021,,118.16,Catering Provisions,110000 - Catering
Solihull MBC,Resources,Children & Education Services,Brake Bros Foodservice Ltd,04/02/2021,,144.57,Catering Provisions,110000 - Catering
Solihull MBC,Resources,Children & Education Services,Brake Bros Foodservice Ltd,04/02/2021,,94.81,Catering Provisions,110000 - Catering
Solihull MBC,Resources,Children & Education Services,Brake Bros Foodservice Ltd,04/02/2021,,91.41,Catering Provisions,110000 - Catering
Solihull MBC,Resources,Children & Education Services,Brake Bros Foodservice Ltd,10/02/2021,,16.39,Catering Provisions,110000 - Catering
Solihull MBC,Resources,Children & Education Services,Brake Bros Foodservice Ltd,10/02/2021,,49.89,Catering Provisions,110000 - Catering
Solihull MBC,Resources,Children & Education Services,Brake Bros Foodservice Ltd,10/02/2021,,140.62,Catering Provisions,110000 - Catering
Solihull MBC,Resources,Children & Education Services,Brake Bros Foodservice Ltd,10/02/2021,,47.45,Catering Provisions,110000 - Catering
Solihull MBC,Resources,Children & Education Services,Brake Bros Foodservice Ltd,10/02/2021,,47.07,Catering Provisions,110000 - Catering
Solihull MBC,Resources,Children & Education Services,Brake Bros Foodservice Ltd,10/02/2021,,78.53,Catering Provisions,110000 - Catering
Solihull MBC,Resources,Children & Education Services,Brake Bros Foodservice Ltd,10/02/2021,,78.52,Catering Provisions,110000 - Catering
Solihull MBC,Resources,Children & Education Services,Brake Bros Foodservice Ltd,10/02/2021,,75.84,Catering Provisions,110000 - Catering
Solihull MBC,Resources,Children & Education Services,Brake Bros Foodservice Ltd,10/02/2021,,114.47,Catering Provisions,110000 - Catering
Solihull MBC,Resources,Children & Education Services,Brake Bros Foodservice Ltd,10/02/2021,,16.5,Catering Provisions,110000 - Catering
Solihull MBC,Resources,Children & Education Services,Brake Bros Foodservice Ltd,10/02/2021,,112.43,Catering Provisions,110000 - Catering
Solihull MBC,Resources,Children & Education Services,Brake Bros Foodservice Ltd,10/02/2021,,48.77,Catering Provisions,110000 - Catering
Solihull MBC,Resources,Children & Education Services,Brake Bros Foodservice Ltd,10/02/2021,,194.84,Catering Provisions,110000 - Catering
Solihull MBC,Resources,Children & Education Services,Brake Bros Foodservice Ltd,10/02/2021,,77.24,Catering Provisions,110000 - Catering
Solihull MBC,Resources,Children & Education Services,Brake Bros Foodservice Ltd,10/02/2021,,76.35,Catering Provisions,110000 - Catering
Solihull MBC,Resources,Children & Education Services,Brake Bros Foodservice Ltd,10/02/2021,,169.56,Catering Provisions,110000 - Catering
Solihull MBC,Resources,Children & Education Services,Brake Bros Foodservice Ltd,18/02/2021,,106.02,Catering Provisions,110000 - Catering
Solihull MBC,Resources,Children & Education Services,Brake Bros Foodservice Ltd,18/02/2021,,26.95,Catering Provisions,110000 - Catering
Solihull MBC,Resources,Children & Education Services,Brake Bros Foodservice Ltd,18/02/2021,,68.02,Catering Provisions,110000 - Catering
Solihull MBC,Resources,Children & Education Services,Brake Bros Foodservice Ltd,18/02/2021,,55.3,Catering Provisions,110000 - Catering
Solihull MBC,Resources,Children & Education Services,Brake Bros Foodservice Ltd,18/02/2021,,10.94,Catering Provisions,110000 - Catering
Solihull MBC,Resources,Children & Education Services,Brake Bros Foodservice Ltd,18/02/2021,,83.28,Catering Provisions,110000 - Catering
Solihull MBC,Resources,Children & Education Services,Brake Bros Foodservice Ltd,18/02/2021,,72.14,Catering Provisions,110000 - Catering
Solihull MBC,Resources,Children & Education Services,Brake Bros Foodservice Ltd,18/02/2021,,57.1,Catering Provisions,110000 - Catering
Solihull MBC,Resources,Children & Education Services,Brake Bros Foodservice Ltd,18/02/2021,,76.16,Catering Provisions,110000 - Catering
Solihull MBC,Resources,Children & Education Services,Brake Bros Foodservice Ltd,18/02/2021,,190.37,Catering Provisions,110000 - Catering
Solihull MBC,Resources,Children & Education Services,Brake Bros Foodservice Ltd,18/02/2021,,74.37,Catering Provisions,110000 - Catering
Solihull MBC,Resources,Children & Education Services,Brake Bros Foodservice Ltd,18/02/2021,,73.53,Catering Provisions,110000 - Catering
Solihull MBC,Resources,Children & Education Services,Brake Bros Foodservice Ltd,18/02/2021,,16.42,Catering Provisions,110000 - Catering
Solihull MBC,Resources,Children & Education Services,Brake Bros Foodservice Ltd,18/02/2021,,72.08,Catering Provisions,110000 - Catering
Solihull MBC,Resources,Children & Education Services,Brake Bros Foodservice Ltd,04/02/2021,,19.04,Catering Provisions,110000 - Catering
Solihull MBC,Resources,Children & Education Services,Brake Bros Foodservice Ltd,04/02/2021,,23.66,Catering Provisions,110000 - Catering
Solihull MBC,Resources,Children & Education Services,Brake Bros Foodservice Ltd,04/02/2021,,38.94,Catering Provisions,110000 - Catering
Solihull MBC,Resources,Children & Education Services,Brake Bros Foodservice Ltd,04/02/2021,,33.15,Catering Provisions,110000 - Catering
Solihull MBC,Resources,Children & Education Services,Brake Bros Foodservice Ltd,04/02/2021,,17.8,Catering Provisions,110000 - Catering
Solihull MBC,Resources,Children & Education Services,Brake Bros Foodservice Ltd,04/02/2021,,45.62,Catering Provisions,110000 - Catering
Solihull MBC,Resources,Children & Education Services,Brake Bros Foodservice Ltd,04/02/2021,,19.48,Catering Provisions,110000 - Catering
Solihull MBC,Resources,Children & Education Services,Brake Bros Foodservice Ltd,04/02/2021,,75.92,Catering Provisions,110000 - Catering
Solihull MBC,Resources,Children & Education Services,Brake Bros Foodservice Ltd,04/02/2021,,13.38,Catering Provisions,110000 - Catering
Solihull MBC,Resources,Children & Education Services,Brake Bros Foodservice Ltd,04/02/2021,,60.47,Catering Provisions,110000 - Catering
Solihull MBC,Resources,Children & Education Services,Brake Bros Foodservice Ltd,10/02/2021,,49.23,Catering Provisions,110000 - Catering
Solihull MBC,Resources,Children & Education Services,Brake Bros Foodservice Ltd,10/02/2021,,25.91,Catering Provisions,110000 - Catering
Solihull MBC,Resources,Children & Education Services,Brake Bros Foodservice Ltd,10/02/2021,,9.63,Catering Provisions,110000 - Catering
Solihull MBC,Resources,Children & Education Services,Brake Bros Foodservice Ltd,10/02/2021,,54.27,Catering Provisions,110000 - Catering
Solihull MBC,Resources,Children & Education Services,Brake Bros Foodservice Ltd,10/02/2021,,67.28,Catering Provisions,110000 - Catering
Solihull MBC,Resources,Children & Education Services,Brake Bros Foodservice Ltd,10/02/2021,,48.79,Catering Provisions,110000 - Catering
Solihull MBC,Resources,Children & Education Services,Brake Bros Foodservice Ltd,10/02/2021,,98.7,Catering Provisions,110000 - Catering
Solihull MBC,Resources,Children & Education Services,Brake Bros Foodservice Ltd,10/02/2021,,19.56,Catering Provisions,110000 - Catering
Solihull MBC,Resources,Children & Education Services,Brake Bros Foodservice Ltd,10/02/2021,,14.06,Catering Provisions,110000 - Catering
Solihull MBC,Resources,Children & Education Services,Brake Bros Foodservice Ltd,10/02/2021,,66.55,Catering Provisions,110000 - Catering
Solihull MBC,Resources,Children & Education Services,Brake Bros Foodservice Ltd,18/02/2021,,62.94,Catering Provisions,110000 - Catering
Solihull MBC,Resources,Children & Education Services,Brake Bros Foodservice Ltd,18/02/2021,,8.3,Catering Provisions,110000 - Catering
Solihull MBC,Resources,Children & Education Services,Brake Bros Foodservice Ltd,18/02/2021,,50.71,Catering Provisions,110000 - Catering
Solihull MBC,Resources,Children & Education Services,Brake Bros Foodservice Ltd,18/02/2021,,70.83,Catering Provisions,110000 - Catering
Solihull MBC,Resources,Children & Education Services,Brake Bros Foodservice Ltd,18/02/2021,,46.28,Catering Provisions,110000 - Catering
Solihull MBC,Resources,Children & Education Services,Brake Bros Foodservice Ltd,18/02/2021,,26.83,Catering Provisions,110000 - Catering
Solihull MBC,Resources,Children & Education Services,Brake Bros Foodservice Ltd,18/02/2021,,51.66,Catering Provisions,110000 - Catering
Solihull MBC,Resources,Children & Education Services,Brake Bros Foodservice Ltd,18/02/2021,,108.16,Catering Provisions,110000 - Catering
Solihull MBC,Resources,Children & Education Services,Brake Bros Foodservice Ltd,05/02/2021,,13.84,Catering Provisions,110000 - Catering
Solihull MBC,Resources,Children & Education Services,Brake Bros Foodservice Ltd,05/02/2021,,61.87,Catering Provisions,110000 - Catering
Solihull MBC,Resources,Children & Education Services,Brake Bros Foodservice Ltd,05/02/2021,,84.32,Catering Provisions,110000 - Catering
Solihull MBC,Resources,Children & Education Services,Brake Bros Foodservice Ltd,05/02/2021,,20.7,Catering Provisions,110000 - Catering
Solihull MBC,Resources,Children & Education Services,Brake Bros Foodservice Ltd,05/02/2021,,61.47,Catering Provisions,110000 - Catering
Solihull MBC,Resources,Children & Education Services,Brake Bros Foodservice Ltd,05/02/2021,,40.34,Catering Provisions,110000 - Catering
Solihull MBC,Resources,Children & Education Services,Brake Bros Foodservice Ltd,05/02/2021,,14.43,Catering Provisions,110000 - Catering
Solihull MBC,Resources,Children & Education Services,Brake Bros Foodservice Ltd,05/02/2021,,28.84,Catering Provisions,110000 - Catering
Solihull MBC,Resources,Children & Education Services,Brake Bros Foodservice Ltd,05/02/2021,,104.84,Catering Provisions,110000 - Catering
Solihull MBC,Resources,Children & Education Services,Brake Bros Foodservice Ltd,05/02/2021,,52.67,Catering Provisions,110000 - Catering
Solihull MBC,Resources,Children & Education Services,Brake Bros Foodservice Ltd,05/02/2021,,51.4,Catering Provisions,110000 - Catering
Solihull MBC,Resources,Children & Education Services,Brake Bros Foodservice Ltd,05/02/2021,,20.85,Catering Provisions,110000 - Catering
Solihull MBC,Resources,Children & Education Services,Brake Bros Foodservice Ltd,05/02/2021,,90.8,Catering Provisions,110000 - Catering
Solihull MBC,Resources,Children & Education Services,Brake Bros Foodservice Ltd,05/02/2021,,8.29,Catering Provisions,110000 - Catering
Solihull MBC,Resources,Children & Education Services,Brake Bros Foodservice Ltd,05/02/2021,,76.1,Catering Provisions,110000 - Catering
Solihull MBC,Resources,Children & Education Services,Brake Bros Foodservice Ltd,05/02/2021,,58.67,Catering Provisions,110000 - Catering
Solihull MBC,Resources,Children & Education Services,Brake Bros Foodservice Ltd,05/02/2021,,22.66,Catering Provisions,110000 - Catering
Solihull MBC,Resources,Children & Education Services,Brake Bros Foodservice Ltd,05/02/2021,,19.64,Catering Provisions,110000 - Catering
Solihull MBC,Resources,Children & Education Services,Brake Bros Foodservice Ltd,05/02/2021,,10.58,Catering Provisions,110000 - Catering
Solihull MBC,Resources,Children & Education Services,Brake Bros Foodservice Ltd,05/02/2021,,93.38,Catering Provisions,110000 - Catering
Solihull MBC,Resources,Children & Education Services,Brake Bros Foodservice Ltd,05/02/2021,,143.88,Catering Provisions,110000 - Catering
Solihull MBC,Resources,Children & Education Services,Brake Bros Foodservice Ltd,05/02/2021,,15.28,Catering Provisions,110000 - Catering
Solihull MBC,Resources,Children & Education Services,Brake Bros Foodservice Ltd,05/02/2021,,40.06,Catering Provisions,110000 - Catering
Solihull MBC,Resources,Children & Education Services,Brake Bros Foodservice Ltd,05/02/2021,,39.76,Catering Provisions,110000 - Catering
Solihull MBC,Resources,Children & Education Services,Brake Bros Foodservice Ltd,05/02/2021,,25.24,Catering Provisions,110000 - Catering
Solihull MBC,Resources,Children & Education Services,Brake Bros Foodservice Ltd,05/02/2021,,119.14,Catering Provisions,110000 - Catering
Solihull MBC,Resources,Children & Education Services,Brake Bros Foodservice Ltd,05/02/2021,,49.47,Catering Provisions,110000 - Catering
Solihull MBC,Resources,Children & Education Services,Brake Bros Foodservice Ltd,05/02/2021,,30.81,Catering Provisions,110000 - Catering
Solihull MBC,Resources,Children & Education Services,Brake Bros Foodservice Ltd,05/02/2021,,24.65,Catering Provisions,110000 - Catering
Solihull MBC,Resources,Children & Education Services,Brake Bros Foodservice Ltd,05/02/2021,,4.58,Catering Provisions,110000 - Catering
Solihull MBC,Resources,Children & Education Services,Brake Bros Foodservice Ltd,05/02/2021,,24.94,Catering Provisions,110000 - Catering
Solihull MBC,Resources,Children & Education Services,Brake Bros Foodservice Ltd,05/02/2021,,35.02,Catering Provisions,110000 - Catering
Solihull MBC,Resources,Children & Education Services,Brake Bros Foodservice Ltd,05/02/2021,,28.03,Catering Provisions,110000 - Catering
Solihull MBC,Resources,Children & Education Services,Brake Bros Foodservice Ltd,10/02/2021,,47.48,Catering Provisions,110000 - Catering
Solihull MBC,Resources,Children & Education Services,Brake Bros Foodservice Ltd,10/02/2021,,50.35,Catering Provisions,110000 - Catering
Solihull MBC,Resources,Children & Education Services,Brake Bros Foodservice Ltd,10/02/2021,,69.17,Catering Provisions,110000 - Catering
Solihull MBC,Resources,Children & Education Services,Brake Bros Foodservice Ltd,10/02/2021,,51.05,Catering Provisions,110000 - Catering
Solihull MBC,Resources,Children & Education Services,Brake Bros Foodservice Ltd,10/02/2021,,20.61,Catering Provisions,110000 - Catering
Solihull MBC,Resources,Adult Social Care,Brake Bros Foodservice Ltd,10/02/2021,,37.93,Catering Provisions,110000 - Catering
Solihull MBC,Resources,Children & Education Services,Brake Bros Foodservice Ltd,10/02/2021,,43.93,Catering Provisions,110000 - Catering
Solihull MBC,Resources,Children & Education Services,Brake Bros Foodservice Ltd,10/02/2021,,25.09,Catering Provisions,110000 - Catering
Solihull MBC,Resources,Children & Education Services,Brake Bros Foodservice Ltd,10/02/2021,,16.16,Catering Provisions,110000 - Catering
Solihull MBC,Resources,Children & Education Services,Brake Bros Foodservice Ltd,10/02/2021,,19.14,Catering Provisions,110000 - Catering
Solihull MBC,Resources,Children & Education Services,Brake Bros Foodservice Ltd,10/02/2021,,9.72,Catering Provisions,110000 - Catering
Solihull MBC,Resources,Children & Education Services,Brake Bros Foodservice Ltd,10/02/2021,,50.29,Catering Provisions,110000 - Catering
Solihull MBC,Resources,Children & Education Services,Brake Bros Foodservice Ltd,10/02/2021,,67.59,Catering Provisions,110000 - Catering
Solihull MBC,Resources,Children & Education Services,Brake Bros Foodservice Ltd,10/02/2021,,28.08,Catering Provisions,110000 - Catering
Solihull MBC,Resources,Children & Education Services,Brake Bros Foodservice Ltd,10/02/2021,,74.45,Catering Provisions,110000 - Catering
Solihull MBC,Resources,Children & Education Services,Brake Bros Foodservice Ltd,10/02/2021,,104.18,Catering Provisions,110000 - Catering
Solihull MBC,Resources,Children & Education Services,Brake Bros Foodservice Ltd,10/02/2021,,46.03,Catering Provisions,110000 - Catering
Solihull MBC,Resources,Children & Education Services,Brake Bros Foodservice Ltd,10/02/2021,,34.06,Catering Provisions,110000 - Catering
Solihull MBC,Resources,Children & Education Services,Brake Bros Foodservice Ltd,10/02/2021,,15.31,Catering Provisions,110000 - Catering
Solihull MBC,Resources,Children & Education Services,Brake Bros Foodservice Ltd,10/02/2021,,62.77,Catering Provisions,110000 - Catering
Solihull MBC,Resources,Children & Education Services,Brake Bros Foodservice Ltd,10/02/2021,,11.72,Catering Provisions,110000 - Catering
Solihull MBC,Resources,Children & Education Services,Brake Bros Foodservice Ltd,10/02/2021,,50.13,Catering Provisions,110000 - Catering
Solihull MBC,Resources,Children & Education Services,Brake Bros Foodservice Ltd,10/02/2021,,177.56,Catering Provisions,110000 - Catering
Solihull MBC,Resources,Children & Education Services,Brake Bros Foodservice Ltd,10/02/2021,,13.94,Catering Provisions,110000 - Catering
Solihull MBC,Resources,Children & Education Services,Brake Bros Foodservice Ltd,10/02/2021,,51.98,Catering Provisions,110000 - Catering
Solihull MBC,Resources,Children & Education Services,Brake Bros Foodservice Ltd,10/02/2021,,26.37,Catering Provisions,110000 - Catering
Solihull MBC,Resources,Children & Education Services,Brake Bros Foodservice Ltd,10/02/2021,,12.15,Catering Provisions,110000 - Catering
Solihull MBC,Resources,Children & Education Services,Brake Bros Foodservice Ltd,10/02/2021,,74.54,Catering Provisions,110000 - Catering
Solihull MBC,Resources,Children & Education Services,Brake Bros Foodservice Ltd,10/02/2021,,130.25,Catering Provisions,110000 - Catering
Solihull MBC,Resources,Children & Education Services,Brake Bros Foodservice Ltd,10/02/2021,,38.9,Catering Provisions,110000 - Catering
Solihull MBC,Resources,Children & Education Services,Brake Bros Foodservice Ltd,10/02/2021,,44.6,Catering Provisions,110000 - Catering
Solihull MBC,Resources,Children & Education Services,Brake Bros Foodservice Ltd,10/02/2021,,39.94,Catering Provisions,110000 - Catering
Solihull MBC,Resources,Children & Education Services,Brake Bros Foodservice Ltd,10/02/2021,,18.13,Catering Provisions,110000 - Catering
Solihull MBC,Resources,Children & Education Services,Brake Bros Foodservice Ltd,10/02/2021,,27.88,Catering Provisions,110000 - Catering
Solihull MBC,Resources,Children & Education Services,Brake Bros Foodservice Ltd,10/02/2021,,13.79,Catering Provisions,110000 - Catering
Solihull MBC,Resources,Children & Education Services,Brake Bros Foodservice Ltd,10/02/2021,,32.92,Catering Provisions,110000 - Catering
Solihull MBC,Resources,Children & Education Services,Brake Bros Foodservice Ltd,18/02/2021,,25.12,Catering Provisions,110000 - Catering
Solihull MBC,Resources,Children & Education Services,Brake Bros Foodservice Ltd,18/02/2021,,37.7,Catering Provisions,110000 - Catering
Solihull MBC,Resources,Children & Education Services,Brake Bros Foodservice Ltd,18/02/2021,,41.29,Catering Provisions,110000 - Catering
Solihull MBC,Resources,Children & Education Services,Brake Bros Foodservice Ltd,18/02/2021,,64.56,Catering Provisions,110000 - Catering
Solihull MBC,Resources,Children & Education Services,Brake Bros Foodservice Ltd,18/02/2021,,76.52,Catering Provisions,110000 - Catering
Solihull MBC,Resources,Children & Education Services,Brake Bros Foodservice Ltd,18/02/2021,,206.63,Catering Provisions,110000 - Catering
Solihull MBC,Resources,Children & Education Services,Brake Bros Foodservice Ltd,18/02/2021,,73.11,Catering Provisions,110000 - Catering
Solihull MBC,Resources,Children & Education Services,Brake Bros Foodservice Ltd,18/02/2021,,19.74,Catering Provisions,110000 - Catering
Solihull MBC,Resources,Children & Education Services,Brake Bros Foodservice Ltd,18/02/2021,,4.58,Catering Provisions,110000 - Catering
Solihull MBC,Resources,Children & Education Services,Brake Bros Foodservice Ltd,18/02/2021,,63.09,Catering Provisions,110000 - Catering
Solihull MBC,Resources,Children & Education Services,Brake Bros Foodservice Ltd,18/02/2021,,43.72,Catering Provisions,110000 - Catering
Solihull MBC,Resources,Children & Education Services,Brake Bros Foodservice Ltd,18/02/2021,,26.89,Catering Provisions,110000 - Catering
Solihull MBC,Resources,Children & Education Services,Brake Bros Foodservice Ltd,18/02/2021,,9.36,Catering Provisions,110000 - Catering
Solihull MBC,Resources,Children & Education Services,Brake Bros Foodservice Ltd,18/02/2021,,23.08,Catering Provisions,110000 - Catering
Solihull MBC,Resources,Children & Education Services,Brake Bros Foodservice Ltd,18/02/2021,,69.15,Catering Provisions,110000 - Catering
Solihull MBC,Resources,Children & Education Services,Brake Bros Foodservice Ltd,18/02/2021,,86.41,Catering Provisions,110000 - Catering
Solihull MBC,Resources,Children & Education Services,Brake Bros Foodservice Ltd,18/02/2021,,51.91,Catering Provisions,110000 - Catering
Solihull MBC,Resources,Children & Education Services,Brake Bros Foodservice Ltd,18/02/2021,,57.74,Catering Provisions,110000 - Catering
Solihull MBC,Resources,Children & Education Services,Brake Bros Foodservice Ltd,18/02/2021,,39.84,Catering Provisions,110000 - Catering
Solihull MBC,Resources,Children & Education Services,Brake Bros Foodservice Ltd,18/02/2021,,51.53,Catering Provisions,110000 - Catering
Solihull MBC,Resources,Children & Education Services,Brake Bros Foodservice Ltd,18/02/2021,,50.17,Catering Provisions,110000 - Catering
Solihull MBC,Resources,Children & Education Services,Brake Bros Foodservice Ltd,18/02/2021,,26.68,Catering Provisions,110000 - Catering
Solihull MBC,Resources,Children & Education Services,Brake Bros Foodservice Ltd,18/02/2021,,11.54,Catering Provisions,110000 - Catering
Solihull MBC,Resources,Children & Education Services,Brake Bros Foodservice Ltd,18/02/2021,,37.03,Catering Provisions,110000 - Catering
Solihull MBC,Resources,Children & Education Services,Brake Bros Foodservice Ltd,18/02/2021,,45.12,Catering Provisions,110000 - Catering
Solihull MBC,Resources,Children & Education Services,Brake Bros Foodservice Ltd,18/02/2021,,75.06,Catering Provisions,110000 - Catering
Solihull MBC,Resources,Children & Education Services,Brake Bros Foodservice Ltd,18/02/2021,,112.46,Catering Provisions,110000 - Catering
Solihull MBC,Resources,Children & Education Services,Brake Bros Foodservice Ltd,18/02/2021,,22.95,Catering Provisions,110000 - Catering
Solihull MBC,Resources,Children & Education Services,Brake Bros Foodservice Ltd,18/02/2021,,26.21,Catering Provisions,110000 - Catering
Solihull MBC,Resources,Children & Education Services,Brake Bros Foodservice Ltd,18/02/2021,,22.68,Catering Provisions,110000 - Catering
Solihull MBC,Resources,Children & Education Services,Brake Bros Foodservice Ltd,18/02/2021,,78.9,Catering Provisions,110000 - Catering
Solihull MBC,Resources,Children & Education Services,Brake Bros Foodservice Ltd,18/02/2021,,81.1,Catering Provisions,110000 - Catering
Solihull MBC,Resources,Children & Education Services,Brake Bros Foodservice Ltd,18/02/2021,,117.77,Catering Provisions,110000 - Catering
Solihull MBC,Resources,Children & Education Services,Brake Bros Foodservice Ltd,18/02/2021,,74.72,Catering Provisions,110000 - Catering
Solihull MBC,Resources,Children & Education Services,Brake Bros Foodservice Ltd,18/02/2021,,74.42,Catering Provisions,110000 - Catering
Solihull MBC,Resources,Children & Education Services,Brake Bros Foodservice Ltd,18/02/2021,,30.77,Catering Provisions,110000 - Catering
Solihull MBC,Resources,Children & Education Services,Brake Bros Foodservice Ltd,18/02/2021,,103.14,Catering Provisions,110000 - Catering
Solihull MBC,Resources,Children & Education Services,Brake Bros Foodservice Ltd,18/02/2021,,34.5,Catering Provisions,110000 - Catering
Solihull MBC,Public Health & Commissioning,Central Services to the Public,Brandscape Limited,01/02/2021,,1334,Grant & Subscription (SCITT),Not Yet Classified
Solihull MBC,Children's Services - DSG Central.,Children & Education Services,Bredon School Limited,17/02/2021,,3556.17,Other Contracted Services,321100 - Social Community Care Supplies & Services - Children
Solihull MBC,Public Health & Commissioning,Central Services to the Public,Brew Twenty Three,17/02/2021,,934,Grant & Subscription (SCITT),Not Yet Classified
Solihull MBC,Children's Services & Skills,Children & Education Services,Bright Horizons Solihull,05/02/2021,,429.28,Clients Expenses,Not Yet Classified
Solihull MBC,Public Health & Commissioning,Central Services to the Public,Brighter Business UK Limited,18/02/2021,,934,Grant & Subscription (SCITT),Not Yet Classified
Solihull MBC,Public Health & Commissioning,Central Services to the Public,Brit Logistics Service Ltd,22/02/2021,,934,Grant & Subscription (SCITT),Not Yet Classified
Solihull MBC,Resources,Central Services to the Public,Britannic Technologies Ltd,02/02/2021,,1503.25,Telephones,Not Yet Classified
Solihull MBC,Adult Social Care,Adult Social Care,British Gas,08/02/2021,,1036.73,Electricity,370000 - Utilities
Solihull MBC,Adult Social Care,Adult Social Care,British Gas,19/02/2021,,966.57,Electricity,370000 - Utilities
Solihull MBC,Adult Social Care,Adult Social Care,British Gas,19/02/2021,,1095.49,Electricity,370000 - Utilities
Solihull MBC,Adult Social Care,Adult Social Care,British Gas,19/02/2021,,1124.17,Electricity,370000 - Utilities
Solihull MBC,Adult Social Care,Adult Social Care,British Gas,03/02/2021,,1262.71,Electricity,370000 - Utilities
Solihull MBC,Adult Social Care,Adult Social Care,British Gas,03/02/2021,,1181.91,Electricity,370000 - Utilities
Solihull MBC,Adult Social Care,Adult Social Care,British Gas,03/02/2021,,1351.48,Electricity,370000 - Utilities
Solihull MBC,Adult Social Care,Adult Social Care,Broadham Care Ltd,25/02/2021,,7947.8,ASC - Residential Care Permanent,Not Yet Classified
Solihull MBC,Children's Services & Skills,Children & Education Services,Bromford Housing Association,10/02/2021,,802.06,Other Fees,Not Yet Classified
Solihull MBC,Adult Social Care,Adult Social Care,Bromford Housing Association Ltd T/A Bromford Housing Group Ltd,11/02/2021,,19690,Block Contracts,321000 - Social Community Care Supplies & Services - Adult
Solihull MBC,Resources - Non Monitored,Central Services to the Public,BT Global Services,23/02/2021,,14694.75,General Creditors,271699 - Information Communication Technology - Telecommunications
Solihull MBC,Resources - Non Monitored,Central Services to the Public,BT Global Services,10/02/2021,,14694.75,General Creditors,271699 - Information Communication Technology - Telecommunications
Solihull MBC,Public Health & Commissioning,Central Services to the Public,Build-A-Bear Workshop UK Ltd,03/02/2021,,3000,Grant & Subscription (SCITT),Not Yet Classified
Solihull MBC,Public Health & Commissioning,Central Services to the Public,Build-A-Bear Workshop UK Ltd,16/02/2021,,9000,Grant & Subscription (SCITT),Not Yet Classified
Solihull MBC,Public Health & Commissioning,Central Services to the Public,Build-A-Bear Workshop UK Ltd,16/02/2021,,536,Grant & Subscription (SCITT),Not Yet Classified
Solihull MBC,Public Health & Commissioning,Central Services to the Public,Build-A-Bear Workshop UK Ltd,16/02/2021,,4500,Grant & Subscription (SCITT),Not Yet Classified
Solihull MBC,Public Health & Commissioning,Central Services to the Public,Bulls Head,03/02/2021,,3000,Grant & Subscription (SCITT),Not Yet Classified
Solihull MBC,Public Health & Commissioning,Central Services to the Public,Bulls Head,16/02/2021,,9000,Grant & Subscription (SCITT),Not Yet Classified
Solihull MBC,Public Health & Commissioning,Central Services to the Public,Bulls Head,16/02/2021,,536,Grant & Subscription (SCITT),Not Yet Classified
Solihull MBC,Public Health & Commissioning,Central Services to the Public,Bulls Head,16/02/2021,,4500,Grant & Subscription (SCITT),Not Yet Classified
Solihull MBC,Adult Social Care,Adult Social Care,Burgess Care Ltd,25/02/2021,,10695.16,ASC - Residential Care Permanent,Not Yet Classified
Solihull MBC,Adult Social Care,Central Services to the Public,Burlington Uniforms Ltd,22/02/2021,,301.33,Clothing & Uniforms,To be classified individually
Solihull MBC,Resources,Central Services to the Public,Business Systems International,17/02/2021,,1084.4,IT Equipment & Software,270000 - Information Communication Technology
Solihull MBC,Children's Services - DSG Central.,Children & Education Services,Busy Little Bees Nursery,11/02/2021,,1117.2,Grant & Subscription (SCITT),321100 - Social Community Care Supplies & Services - Children
Solihull MBC,Children's Services & Skills,Children & Education Services,By The Bridge,12/02/2021,,4895.12,External Fostering,321100 - Social Community Care Supplies & Services - Children
Solihull MBC,Children's Services & Skills,Children & Education Services,By The Bridge,12/02/2021,,3916.08,External Fostering,321100 - Social Community Care Supplies & Services - Children
Solihull MBC,Children's Services & Skills,Children & Education Services,By The Bridge,12/02/2021,,3129,External Fostering,321100 - Social Community Care Supplies & Services - Children
Solihull MBC,Children's Services & Skills,Children & Education Services,By The Bridge,12/02/2021,,3560,External Fostering,321100 - Social Community Care Supplies & Services - Children
Solihull MBC,Children's Services & Skills,Children & Education Services,By The Bridge,12/02/2021,,2874,External Fostering,321100 - Social Community Care Supplies & Services - Children
Solihull MBC,Children's Services & Skills,Children & Education Services,By The Bridge,12/02/2021,,3830.4,External Fostering,321100 - Social Community Care Supplies & Services - Children
Solihull MBC,Children's Services - DSG Central.,Children & Education Services,Bytes Technology Group,09/02/2021,,1674,IT Equipment & Software,171011 - Education - School Services
Solihull MBC,Resources,Children & Education Services,Bytes Technology Group,15/02/2021,,3418.24,IT Equipment & Software,171011 - Education - School Services
Solihull MBC,Resources,Children & Education Services,Bytes Technology Group,15/02/2021,,400.24,IT Equipment & Software,171011 - Education - School Services
Solihull MBC,Resources,Children & Education Services,Bytes Technology Group,15/02/2021,,355.6,IT Equipment & Software,171011 - Education - School Services
Solihull MBC,Resources,Children & Education Services,Bytes Technology Group,15/02/2021,,2971.52,IT Equipment & Software,171011 - Education - School Services
Solihull MBC,Economy and Infrastructure,Environmental and Regulatory Services,C Bastock (Funeral Directors)Ltd,11/02/2021,,295,Materials,120000 - Cemetery & Crematorium 
Solihull MBC,Economy and Infrastructure,Environmental and Regulatory Services,C Bastock (Funeral Directors)Ltd,11/02/2021,,827,Materials,120000 - Cemetery & Crematorium 
Solihull MBC,Economy and Infrastructure,Environmental and Regulatory Services,C Bastock (Funeral Directors)Ltd,11/02/2021,,295,Materials,120000 - Cemetery & Crematorium 
Solihull MBC,Economy and Infrastructure,Environmental and Regulatory Services,C Bastock (Funeral Directors)Ltd,11/02/2021,,796,Materials,120000 - Cemetery & Crematorium 
Solihull MBC,Economy and Infrastructure,Environmental and Regulatory Services,C Bastock (Funeral Directors)Ltd,11/02/2021,,490,Materials,120000 - Cemetery & Crematorium 
Solihull MBC,Economy and Infrastructure,Environmental and Regulatory Services,C Bastock (Funeral Directors)Ltd,11/02/2021,,1352,Materials,120000 - Cemetery & Crematorium 
Solihull MBC,Economy and Infrastructure,Environmental and Regulatory Services,C Bastock (Funeral Directors)Ltd,11/02/2021,,1245,Materials,120000 - Cemetery & Crematorium 
Solihull MBC,Economy and Infrastructure,Environmental and Regulatory Services,C Bastock (Funeral Directors)Ltd,11/02/2021,,1392,Materials,120000 - Cemetery & Crematorium 
Solihull MBC,Economy and Infrastructure,Environmental and Regulatory Services,C Bastock (Funeral Directors)Ltd,11/02/2021,,1555,Materials,120000 - Cemetery & Crematorium 
Solihull MBC,Economy and Infrastructure,Environmental and Regulatory Services,C Bastock (Funeral Directors)Ltd,11/02/2021,,547,Materials,120000 - Cemetery & Crematorium 
Solihull MBC,Economy and Infrastructure,Planning & Development Services,Cadline Ltd,11/02/2021,,355,IT Equipment & Software,Not Yet Classified
Solihull MBC,Public Health & Commissioning,Central Services to the Public,Cafe Azzurro Events Ltd,04/02/2021,,934,Grant & Subscription (SCITT),Not Yet Classified
Solihull MBC,Public Health & Commissioning,Central Services to the Public,Cafe Azzurro Events Ltd,05/02/2021,,934,Grant & Subscription (SCITT),Not Yet Classified
Solihull MBC,Children's Services & Skills,Children & Education Services,Cambian Childcare Ltd,26/02/2021,,18600,Other Contracted Services,Not Yet Classified
Solihull MBC,Children's Services & Skills,Children & Education Services,Cambian Childcare Ltd,05/02/2021,,20592.86,Other Contracted Services,Not Yet Classified
Solihull MBC,Children's Services & Skills,Children & Education Services,Cambian Childcare Ltd,19/02/2021,,-1610,Other Contracted Services,Not Yet Classified
Solihull MBC,Children's Services & Skills,Children & Education Services,Cambian Childcare Ltd,19/02/2021,,6118,Other Contracted Services,Not Yet Classified
Solihull MBC,Children's Services & Skills,Children & Education Services,Cambian Childcare Ltd,19/02/2021,,1610,Other Contracted Services,Not Yet Classified
Solihull MBC,Adult Social Care,Central Services to the Public,Cammax Ltd,19/02/2021,,1560,IT Equipment & Software,Not Yet Classified
Solihull MBC,Public Health & Commissioning,Central Services to the Public,Capellas Ltd,16/02/2021,,2001,Grant & Subscription (SCITT),Not Yet Classified
Solihull MBC,Resources,Central Services to the Public,Capita MITS,09/02/2021,,1570,IT Equipment & Software,Not Yet Classified
Solihull MBC,Resources,Central Services to the Public,Capita Resourcing Ltd,15/02/2021,,263.6,Other Employee Costs,Not Yet Classified
Solihull MBC,Adult Social Care,Adult Social Care,Caradoc House,25/02/2021,,2474.92,ASC - Residential Care Permanent,Not Yet Classified
Solihull MBC,Public Health & Commissioning,Central Services to the Public,Cardaway Limited,03/02/2021,,1334,Grant & Subscription (SCITT),Not Yet Classified
Solihull MBC,Public Health & Commissioning,Central Services to the Public,Cardaway Limited,16/02/2021,,4000,Grant & Subscription (SCITT),Not Yet Classified
Solihull MBC,Public Health & Commissioning,Central Services to the Public,Cardaway Limited,16/02/2021,,2001,Grant & Subscription (SCITT),Not Yet Classified
Solihull MBC,Children's Services & Skills,Children & Education Services,Care 4 Children Residential Services Ltd,19/02/2021,,-21589.06,Other Contracted Services,Not Yet Classified
Solihull MBC,Children's Services & Skills,Children & Education Services,Care 4 Children Residential Services Ltd,12/02/2021,,-5357.14,Other Contracted Services,Not Yet Classified
Solihull MBC,Children's Services & Skills,Children & Education Services,Care 4 Children Residential Services Ltd,12/02/2021,,5357.14,Other Contracted Services,Not Yet Classified
Solihull MBC,Children's Services & Skills,Children & Education Services,Care 4 Children Residential Services Ltd,12/02/2021,,5892.86,Other Contracted Services,Not Yet Classified
Solihull MBC,Children's Services & Skills,Children & Education Services,Care 4 Children Residential Services Ltd,19/02/2021,,21589.06,Other Contracted Services,Not Yet Classified
Solihull MBC,Children's Services & Skills,Children & Education Services,Care 4 Children Residential Services Ltd,19/02/2021,,2750,Other Contracted Services,Not Yet Classified
Solihull MBC,Children's Services & Skills,Children & Education Services,Care 4 Children Residential Services Ltd,19/02/2021,,16800,Other Contracted Services,Not Yet Classified
Solihull MBC,Children's Services & Skills,Children & Education Services,Care 4 Children Residential Services Ltd,05/02/2021,,22142.86,Other Contracted Services,Not Yet Classified
Solihull MBC,Children's Services & Skills,Children & Education Services,Care 4 Children Residential Services Ltd,26/02/2021,,1495.71,Other Contracted Services,Not Yet Classified
Solihull MBC,Children's Services & Skills,Children & Education Services,Care 4 Children Residential Services Ltd,26/02/2021,,1495.71,Other Contracted Services,Not Yet Classified
Solihull MBC,Children's Services & Skills,Children & Education Services,Care 4 Children Residential Services Ltd,26/02/2021,,498.57,Other Contracted Services,Not Yet Classified
Solihull MBC,Children's Services & Skills,Children & Education Services,Care 4 Children Residential Services Ltd,05/02/2021,,19884.29,Other Contracted Services,Not Yet Classified
Solihull MBC,Adult Social Care,Adult Social Care,Care Affair Solihull Ltd,04/02/2021,,565.58,ASC - Domiciliary Care,Not Yet Classified
Solihull MBC,Adult Social Care,Adult Social Care,Care Affair Solihull Ltd,04/02/2021,,565.58,ASC - Domiciliary Care,Not Yet Classified
Solihull MBC,Adult Social Care,Adult Social Care,Care Affair Solihull Ltd,04/02/2021,,655.65,ASC - Domiciliary Care,Not Yet Classified
Solihull MBC,Children's Services - DSG Central.,Children & Education Services,Care First Management Services Ltd,23/02/2021,,5000,Professional Fees,Not Yet Classified
Solihull MBC,Children's Services & Skills,Children & Education Services,Care First Services Ltd,12/02/2021,,1588.57,Supported Lodgings,Not Yet Classified
Solihull MBC,Children's Services & Skills,Children & Education Services,Care First Services Ltd,12/02/2021,,1687.86,Supported Lodgings,Not Yet Classified
Solihull MBC,Children's Services & Skills,Children & Education Services,Care First Services Ltd,12/02/2021,,-1588.57,Supported Lodgings,Not Yet Classified
Solihull MBC,Children's Services & Skills,Children & Education Services,Care Perspectives Ltd,12/02/2021,,13800,Other Contracted Services,Not Yet Classified
Solihull MBC,Children's Services & Skills,Children & Education Services,Care Perspectives Ltd,12/02/2021,,6000,Other Contracted Services,Not Yet Classified
Solihull MBC,Adult Social Care,Adult Social Care,Care Services,03/02/2021,,3613.4,ASC - Supported Living Care Costs,321000 - Social Community Care Supplies & Services - Adult
Solihull MBC,Adult Social Care,Adult Social Care,Care Services,03/02/2021,,1584,ASC - Supported Living Care Costs,321000 - Social Community Care Supplies & Services - Adult
Solihull MBC,Adult Social Care,Adult Social Care,Care Through The Millenium,25/02/2021,,13268.8,ASC - Residential Care Permanent,321000 - Social Community Care Supplies & Services - Adult
Solihull MBC,Adult Social Care,Adult Social Care,Care Through The Millenium,25/02/2021,,7189.56,ASC - Residential Care Permanent,321000 - Social Community Care Supplies & Services - Adult
Solihull MBC,Adult Social Care,Adult Social Care,Care Through The Millenium,25/02/2021,,6606.04,ASC - Residential Care Permanent,321000 - Social Community Care Supplies & Services - Adult
Solihull MBC,Adult Social Care,Adult Social Care,Care Through The Millenium,25/02/2021,,5540.36,ASC - Residential Care Permanent,321000 - Social Community Care Supplies & Services - Adult
Solihull MBC,Adult Social Care,Adult Social Care,Care Through The Millenium,25/02/2021,,13832.28,ASC - Residential Care Permanent,321000 - Social Community Care Supplies & Services - Adult
Solihull MBC,Adult Social Care,Adult Social Care,Care Through The Millenium,25/02/2021,,9369.92,ASC - Residential Care Permanent,321000 - Social Community Care Supplies & Services - Adult
Solihull MBC,Covid-19,Central Services to the Public,Care Through The Millenium,09/02/2021,,2550.07,ASC - Residential Care Permanent,321000 - Social Community Care Supplies & Services - Adult
Solihull MBC,Adult Social Care,Adult Social Care,Care UK Homecare,25/02/2021,,2736.44,ASC - Residential Care Permanent,Not Yet Classified
Solihull MBC,Adult Social Care,Adult Social Care,Care2Home Ltd TA Heritage Healthcare Solihull,12/02/2021,,558.36,ASC - Domiciliary Care,Not Yet Classified
Solihull MBC,Adult Social Care,Adult Social Care,Care2Home Ltd TA Heritage Healthcare Solihull,12/02/2021,,719.1,ASC - Domiciliary Care,Not Yet Classified
Solihull MBC,Adult Social Care,Adult Social Care,Care2Home Ltd TA Heritage Healthcare Solihull,12/02/2021,,465.3,ASC - Out of hospital,Not Yet Classified
Solihull MBC,Adult Social Care,Adult Social Care,Care2Home Ltd TA Heritage Healthcare Solihull,12/02/2021,,1302.84,ASC - Domiciliary Care,Not Yet Classified
Solihull MBC,Adult Social Care,Adult Social Care,Care2Home Ltd TA Heritage Healthcare Solihull,12/02/2021,,1065.96,ASC - Domiciliary Care,Not Yet Classified
Solihull MBC,Adult Social Care,Adult Social Care,Care2Home Ltd TA Heritage Healthcare Solihull,12/02/2021,,1065.96,ASC - Domiciliary Care,Not Yet Classified
Solihull MBC,Adult Social Care,Adult Social Care,Care2Home Ltd TA Heritage Healthcare Solihull,12/02/2021,,473.76,ASC - Domiciliary Care,Not Yet Classified
Solihull MBC,Adult Social Care,Adult Social Care,Care2Home Ltd TA Heritage Healthcare Solihull,12/02/2021,,3147.12,ASC - Domiciliary Care,Not Yet Classified
Solihull MBC,Adult Social Care,Adult Social Care,Care2Home Ltd TA Heritage Healthcare Solihull,12/02/2021,,1065.96,ASC - Domiciliary Care,Not Yet Classified
Solihull MBC,Adult Social Care,Adult Social Care,Care2Home Ltd TA Heritage Healthcare Solihull,12/02/2021,,1065.96,ASC - Domiciliary Care,Not Yet Classified
Solihull MBC,Adult Social Care,Adult Social Care,Care2Home Ltd TA Heritage Healthcare Solihull,12/02/2021,,1184.4,ASC - Domiciliary Care,Not Yet Classified
Solihull MBC,Adult Social Care,Adult Social Care,Care2Home Ltd TA Heritage Healthcare Solihull,12/02/2021,,1184.4,ASC - Domiciliary Care,Not Yet Classified
Solihull MBC,Adult Social Care,Adult Social Care,Care2Home Ltd TA Heritage Healthcare Solihull,12/02/2021,,829.08,ASC - Domiciliary Care,Not Yet Classified
Solihull MBC,Adult Social Care,Adult Social Care,Care2Home Ltd TA Heritage Healthcare Solihull,12/02/2021,,829.08,ASC - Domiciliary Care,Not Yet Classified
Solihull MBC,Adult Social Care,Adult Social Care,Care2Home Ltd TA Heritage Healthcare Solihull,12/02/2021,,414.54,ASC - Domiciliary Care,Not Yet Classified
Solihull MBC,Adult Social Care,Adult Social Care,Care2Home Ltd TA Heritage Healthcare Solihull,12/02/2021,,1065.96,ASC - Domiciliary Care,Not Yet Classified
Solihull MBC,Adult Social Care,Adult Social Care,Care2Home Ltd TA Heritage Healthcare Solihull,12/02/2021,,1065.96,ASC - Domiciliary Care,Not Yet Classified
Solihull MBC,Adult Social Care,Adult Social Care,Care2Home Ltd TA Heritage Healthcare Solihull,12/02/2021,,829.08,ASC - Domiciliary Care,Not Yet Classified
Solihull MBC,Adult Social Care,Adult Social Care,Care2Home Ltd TA Heritage Healthcare Solihull,12/02/2021,,592.2,ASC - Domiciliary Care,Not Yet Classified
Solihull MBC,Adult Social Care,Adult Social Care,Care2Home Ltd TA Heritage Healthcare Solihull,12/02/2021,,1065.96,ASC - Domiciliary Care,Not Yet Classified
Solihull MBC,Adult Social Care,Adult Social Care,Care2Home Ltd TA Heritage Healthcare Solihull,12/02/2021,,1065.96,ASC - Domiciliary Care,Not Yet Classified
Solihull MBC,Adult Social Care,Adult Social Care,Care2Home Ltd TA Heritage Healthcare Solihull,12/02/2021,,1065.96,ASC - Domiciliary Care,Not Yet Classified
Solihull MBC,Adult Social Care,Adult Social Care,Care2Home Ltd TA Heritage Healthcare Solihull,12/02/2021,,1065.96,ASC - Domiciliary Care,Not Yet Classified
Solihull MBC,Adult Social Care,Adult Social Care,Care2Home Ltd TA Heritage Healthcare Solihull,12/02/2021,,642.96,ASC - Domiciliary Care,Not Yet Classified
Solihull MBC,Adult Social Care,Adult Social Care,Care2Home Ltd TA Heritage Healthcare Solihull,12/02/2021,,642.96,ASC - Domiciliary Care,Not Yet Classified
Solihull MBC,Adult Social Care,Adult Social Care,Care2Home Ltd TA Heritage Healthcare Solihull,12/02/2021,,1065.96,ASC - Domiciliary Care,Not Yet Classified
Solihull MBC,Adult Social Care,Adult Social Care,Care2Home Ltd TA Heritage Healthcare Solihull,12/02/2021,,1065.96,ASC - Domiciliary Care,Not Yet Classified
Solihull MBC,Adult Social Care,Adult Social Care,Care2Home Ltd TA Heritage Healthcare Solihull,12/02/2021,,964.44,ASC - Domiciliary Care,Not Yet Classified
Solihull MBC,Adult Social Care,Adult Social Care,Care2Home Ltd TA Heritage Healthcare Solihull,12/02/2021,,1184.4,ASC - Domiciliary Care,Not Yet Classified
Solihull MBC,Adult Social Care,Adult Social Care,Care2Home Ltd TA Heritage Healthcare Solihull,12/02/2021,,1184.4,ASC - Domiciliary Care,Not Yet Classified
Solihull MBC,Adult Social Care,Adult Social Care,Care2Home Ltd TA Heritage Healthcare Solihull,12/02/2021,,1065.96,ASC - Domiciliary Care,Not Yet Classified
Solihull MBC,Adult Social Care,Adult Social Care,Care2Home Ltd TA Heritage Healthcare Solihull,12/02/2021,,1065.96,ASC - Domiciliary Care,Not Yet Classified
Solihull MBC,Adult Social Care,Adult Social Care,Care2Home Ltd TA Heritage Healthcare Solihull,12/02/2021,,960.21,ASC - Domiciliary Care,Not Yet Classified
Solihull MBC,Adult Social Care,Adult Social Care,Care2Home Ltd TA Heritage Healthcare Solihull,12/02/2021,,325.71,ASC - Domiciliary Care,Not Yet Classified
Solihull MBC,Adult Social Care,Adult Social Care,Care2Home Ltd TA Heritage Healthcare Solihull,12/02/2021,,325.71,ASC - Domiciliary Care,Not Yet Classified
Solihull MBC,Adult Social Care,Adult Social Care,Care2Home Ltd TA Heritage Healthcare Solihull,12/02/2021,,592.2,ASC - Domiciliary Care,Not Yet Classified
Solihull MBC,Adult Social Care,Adult Social Care,Care2Home Ltd TA Heritage Healthcare Solihull,12/02/2021,,414.54,ASC - Domiciliary Care,Not Yet Classified
Solihull MBC,Adult Social Care,Adult Social Care,Care2Home Ltd TA Heritage Healthcare Solihull,12/02/2021,,270.72,ASC - Domiciliary Care,Not Yet Classified
Solihull MBC,Adult Social Care,Adult Social Care,Care2Home Ltd TA Heritage Healthcare Solihull,12/02/2021,,1184.4,ASC - Domiciliary Care,Not Yet Classified
Solihull MBC,Adult Social Care,Adult Social Care,Care2Home Ltd TA Heritage Healthcare Solihull,12/02/2021,,1184.4,ASC - Domiciliary Care,Not Yet Classified
Solihull MBC,Adult Social Care,Adult Social Care,Care2Home Ltd TA Heritage Healthcare Solihull,12/02/2021,,1184.4,ASC - Domiciliary Care,Not Yet Classified
Solihull MBC,Adult Social Care,Adult Social Care,Care2Home Ltd TA Heritage Healthcare Solihull,12/02/2021,,1167.48,ASC - Domiciliary Care,Not Yet Classified
Solihull MBC,Adult Social Care,Adult Social Care,Care2Home Ltd TA Heritage Healthcare Solihull,12/02/2021,,609.12,ASC - Domiciliary Care,Not Yet Classified
Solihull MBC,Adult Social Care,Adult Social Care,Care2Home Ltd TA Heritage Healthcare Solihull,12/02/2021,,1269,ASC - Domiciliary Care,Not Yet Classified
Solihull MBC,Adult Social Care,Adult Social Care,Care2Home Ltd TA Heritage Healthcare Solihull,12/02/2021,,1065.96,ASC - Domiciliary Care,Not Yet Classified
Solihull MBC,Adult Social Care,Adult Social Care,Care2Home Ltd TA Heritage Healthcare Solihull,12/02/2021,,423,ASC - Out of hospital,Not Yet Classified
Solihull MBC,Adult Social Care,Adult Social Care,Care2Home Ltd TA Heritage Healthcare Solihull,12/02/2021,,621.81,ASC - Domiciliary Care,Not Yet Classified
Solihull MBC,Adult Social Care,Adult Social Care,Care2Home Ltd TA Heritage Healthcare Solihull,12/02/2021,,621.81,ASC - Domiciliary Care,Not Yet Classified
Solihull MBC,Adult Social Care,Adult Social Care,Care2Home Ltd TA Heritage Healthcare Solihull,12/02/2021,,266.49,ASC - Out of hospital,Not Yet Classified
Solihull MBC,Adult Social Care,Adult Social Care,Care2Home Ltd TA Heritage Healthcare Solihull,12/02/2021,,266.49,ASC - Out of hospital,Not Yet Classified
Solihull MBC,Adult Social Care,Adult Social Care,Care2Home Ltd TA Heritage Healthcare Solihull,12/02/2021,,841.77,ASC - Domiciliary Care,Not Yet Classified
Solihull MBC,Adult Social Care,Adult Social Care,Care2Home Ltd TA Heritage Healthcare Solihull,12/02/2021,,841.77,ASC - Domiciliary Care,Not Yet Classified
Solihull MBC,Adult Social Care,Adult Social Care,Care2Home Ltd TA Heritage Healthcare Solihull,12/02/2021,,304.56,ASC - Domiciliary Care,Not Yet Classified
Solihull MBC,Adult Social Care,Adult Social Care,Care2Home Ltd TA Heritage Healthcare Solihull,12/02/2021,,1302.84,ASC - Domiciliary Care,Not Yet Classified
Solihull MBC,Adult Social Care,Adult Social Care,Care2Home Ltd TA Heritage Healthcare Solihull,12/02/2021,,270.72,ASC - Domiciliary Care,Not Yet Classified
Solihull MBC,Adult Social Care,Adult Social Care,Care2Home Ltd TA Heritage Healthcare Solihull,12/02/2021,,744.48,ASC - Domiciliary Care,Not Yet Classified
Solihull MBC,Adult Social Care,Adult Social Care,Care2Home Ltd TA Heritage Healthcare Solihull,12/02/2021,,456.84,ASC - Domiciliary Care,Not Yet Classified
Solihull MBC,Adult Social Care,Adult Social Care,Care2Home Ltd TA Heritage Healthcare Solihull,12/02/2021,,1150.56,ASC - Domiciliary Care,Not Yet Classified
Solihull MBC,Adult Social Care,Adult Social Care,Caretech Community Services,25/02/2021,,7955.36,ASC - Residential Care Permanent,321000 - Social Community Care Supplies & Services - Adult
Solihull MBC,Adult Social Care,Adult Social Care,Caretech Community Services,25/02/2021,,7955.36,ASC - Residential Care Permanent,321000 - Social Community Care Supplies & Services - Adult
Solihull MBC,Adult Social Care,Adult Social Care,Caretech Community Services,25/02/2021,,7955.36,ASC - Residential Care Permanent,321000 - Social Community Care Supplies & Services - Adult
Solihull MBC,Adult Social Care,Adult Social Care,Caretech Community Services,25/02/2021,,7955.36,ASC - Residential Care Permanent,321000 - Social Community Care Supplies & Services - Adult
Solihull MBC,Adult Social Care,Adult Social Care,Caretech Community Services,25/02/2021,,7955.36,ASC - Residential Care Permanent,321000 - Social Community Care Supplies & Services - Adult
Solihull MBC,Adult Social Care,Adult Social Care,Caretech Community Services,25/02/2021,,7955.36,ASC - Residential Care Permanent,321000 - Social Community Care Supplies & Services - Adult
Solihull MBC,Adult Social Care,Adult Social Care,Caretech Community Services,25/02/2021,,7955.36,ASC - Residential Care Permanent,321000 - Social Community Care Supplies & Services - Adult
Solihull MBC,Adult Social Care,Adult Social Care,Caretech Community Services,25/02/2021,,8782.2,ASC - Residential Care Permanent,321000 - Social Community Care Supplies & Services - Adult
Solihull MBC,Adult Social Care,Adult Social Care,Caretech Community Services,25/02/2021,,7955.36,ASC - Residential Care Permanent,321000 - Social Community Care Supplies & Services - Adult
Solihull MBC,Adult Social Care,Adult Social Care,Caretech Community Services,25/02/2021,,7955.36,ASC - Residential Care Permanent,321000 - Social Community Care Supplies & Services - Adult
Solihull MBC,Adult Social Care,Adult Social Care,Caretech Community Services,25/02/2021,,7955.36,ASC - Residential Care Permanent,321000 - Social Community Care Supplies & Services - Adult
Solihull MBC,Adult Social Care,Adult Social Care,Caretech Community Services,25/02/2021,,7955.36,ASC - Residential Care Permanent,321000 - Social Community Care Supplies & Services - Adult
Solihull MBC,Adult Social Care,Adult Social Care,Caretech Community Services,25/02/2021,,7955.36,ASC - Residential Care Permanent,321000 - Social Community Care Supplies & Services - Adult
Solihull MBC,Adult Social Care,Adult Social Care,Caretech Community Services,25/02/2021,,7955.36,ASC - Residential Care Permanent,321000 - Social Community Care Supplies & Services - Adult
Solihull MBC,Adult Social Care,Adult Social Care,Caretech Community Services,25/02/2021,,7955.36,ASC - Residential Care Permanent,321000 - Social Community Care Supplies & Services - Adult
Solihull MBC,Adult Social Care,Adult Social Care,Caretech Community Services,25/02/2021,,7955.36,ASC - Residential Care Permanent,321000 - Social Community Care Supplies & Services - Adult
Solihull MBC,Covid-19,Central Services to the Public,Caretech Community Services,09/02/2021,,10200.3,ASC - Residential Care Permanent,321000 - Social Community Care Supplies & Services - Adult
Solihull MBC,Children's Services & Skills,Children & Education Services,Caring Thoughts For Future Steps,05/02/2021,,3580,Supported Lodgings,Not Yet Classified
Solihull MBC,Public Health & Commissioning,Central Services to the Public,Carluccios Uk Ltd,19/02/2021,,3000,Grant & Subscription (SCITT),Not Yet Classified
Solihull MBC,Public Health & Commissioning,Central Services to the Public,Carluccios Uk Ltd,10/02/2021,,2100,Grant & Subscription (SCITT),Not Yet Classified
Solihull MBC,Children's Services & Skills,Children & Education Services,Carter Brown Associates,10/02/2021,,1915.2,Professional Fees,Not Yet Classified
Solihull MBC,Children's Services & Skills,Children & Education Services,Carter Brown Associates,10/02/2021,,250,Professional Fees,Not Yet Classified
Solihull MBC,Children's Services & Skills,Children & Education Services,Carter Brown Associates,10/02/2021,,655.2,Professional Fees,Not Yet Classified
Solihull MBC,Adult Social Care,Adult Social Care,CAS Learning Disabilities Midlands,25/02/2021,,13203.4,ASC - Residential Care Permanent,Not Yet Classified
Solihull MBC,Public Health & Commissioning,Central Services to the Public,Cas/Brom Mens Club,01/02/2021,,1334,Grant & Subscription (SCITT),Not Yet Classified
Solihull MBC,Adult Social Care,Adult Social Care,Castle Froma,25/02/2021,,6843.43,ASC - Nursing Care Respite,Not Yet Classified
Solihull MBC,Adult Social Care,Adult Social Care,Castle Froma,25/02/2021,,1996,ASC - Nursing Care Respite,Not Yet Classified
Solihull MBC,Adult Social Care,Adult Social Care,Castle Froma,25/02/2021,,6796,ASC - Nursing Care Respite,Not Yet Classified
Solihull MBC,Adult Social Care,Adult Social Care,Castle Froma,25/02/2021,,5363.4,ASC - Residential Care Permanent,Not Yet Classified
Solihull MBC,Children's Services & Skills,Children & Education Services,Castle Homes Care Ltd,05/02/2021,,17679.28,Other Contracted Services,Not Yet Classified
Solihull MBC,Children's Services - DSG Central.,Children & Education Services,Castlewood School,10/02/2021,,1350,Other Contracted Services,Not Yet Classified
Solihull MBC,Public Health & Commissioning,Central Services to the Public,Catalyst Supplies Ltd,11/02/2021,,2001,Grant & Subscription (SCITT),Not Yet Classified
Solihull MBC,Children's Services & Skills,Children & Education Services,Cater Walsh Reporting Ltd,10/02/2021,,261.25,Professional Fees,Not Yet Classified
Solihull MBC,Children's Services & Skills,Children & Education Services,Cater Walsh Reporting Ltd,02/02/2021,,1116.59,Professional Fees,Not Yet Classified
Solihull MBC,Children's Services & Skills,Children & Education Services,Cater Walsh Reporting Ltd,10/02/2021,,357.77,Professional Fees,Not Yet Classified
Solihull MBC,Children's Services & Skills,Children & Education Services,Cater Walsh Reporting Ltd,10/02/2021,,847.5,Professional Fees,Not Yet Classified
Solihull MBC,Public Health & Commissioning,Central Services to the Public,Catercater Ltd,11/02/2021,,3000,Grant & Subscription (SCITT),Not Yet Classified
Solihull MBC,Resources,Children & Education Services,CCS Media Ltd,04/02/2021,,554.86,IT Equipment & Software,171100 - Education - Supplies
Solihull MBC,Resources,Children & Education Services,CCS Media Ltd,04/02/2021,,1131,IT Equipment & Software,171100 - Education - Supplies
Solihull MBC,Resources,Children & Education Services,CCS Media Ltd,12/02/2021,,277.43,IT Equipment & Software,171100 - Education - Supplies
Solihull MBC,Resources,Children & Education Services,CCS Media Ltd,18/02/2021,,68,IT Equipment & Software,171100 - Education - Supplies
Solihull MBC,Resources,Children & Education Services,CCS Media Ltd,18/02/2021,,91.06,IT Equipment & Software,171100 - Education - Supplies
Solihull MBC,Resources,Children & Education Services,CCS Media Ltd,18/02/2021,,277.43,IT Equipment & Software,171100 - Education - Supplies
Solihull MBC,Resources,Children & Education Services,CCS Media Ltd,18/02/2021,,698.8,IT Equipment & Software,171100 - Education - Supplies
Solihull MBC,Resources,Children & Education Services,CCS Media Ltd,18/02/2021,,666.3,IT Equipment & Software,171100 - Education - Supplies
Solihull MBC,Resources,Children & Education Services,CCS Media Ltd,18/02/2021,,1570.8,IT Equipment & Software,171100 - Education - Supplies
Solihull MBC,Resources,Children & Education Services,CCS Media Ltd,23/02/2021,,-1570.8,IT Equipment & Software,171100 - Education - Supplies
Solihull MBC,Adult Social Care,Adult Social Care,Cedar Lodge Nursing Home,25/02/2021,,1546.03,ASC - Nursing Care Respite,Not Yet Classified
Solihull MBC,Adult Social Care,Adult Social Care,Cedar Lodge Nursing Home,25/02/2021,,7214.8,ASC - Nursing Care Respite,Not Yet Classified
Solihull MBC,Adult Social Care,Adult Social Care,Cedar Lodge Nursing Home,25/02/2021,,-2731.68,ASC - Nursing Care Permanent,Not Yet Classified
Solihull MBC,Adult Social Care,Adult Social Care,Cedar Lodge Nursing Home,25/02/2021,,-1268.28,ASC - Nursing Care Permanent,Not Yet Classified
Solihull MBC,Adult Social Care,Adult Social Care,Cedar Lodge Nursing Home,25/02/2021,,2731.68,ASC - Nursing Care Permanent,Not Yet Classified
Solihull MBC,Adult Social Care,Adult Social Care,Cedar Lodge Nursing Home,25/02/2021,,2052.75,ASC - Nursing Care Respite,Not Yet Classified
Solihull MBC,Adult Social Care,Adult Social Care,Cedar Lodge Nursing Home,25/02/2021,,2503.2,ASC - Nursing Care Permanent,Not Yet Classified
Solihull MBC,Adult Social Care,Adult Social Care,Cefndy Healthcare,08/02/2021,,1346.6,Furniture & Equipment,Not Yet Classified
Solihull MBC,Children's Services & Skills,Children & Education Services,Cellmark Diagnostics,19/02/2021,,404,Professional Fees,Not Yet Classified
Solihull MBC,Public Health & Commissioning,Central Services to the Public,Central Bodycraft Holding Company Ltd,08/02/2021,,4000,Grant & Subscription (SCITT),Not Yet Classified
Solihull MBC,Public Health & Commissioning,Central Services to the Public,Central Bodycraft Holding Company Ltd,08/02/2021,,2001,Grant & Subscription (SCITT),Not Yet Classified
Solihull MBC,Public Health & Commissioning,Central Services to the Public,Central Coffee Ltd T/A Costa,01/02/2021,,2000,Grant & Subscription (SCITT),Not Yet Classified
Solihull MBC,Public Health & Commissioning,Central Services to the Public,Central Coffee Ltd T/A Costa,08/02/2021,,6000,Grant & Subscription (SCITT),Not Yet Classified
Solihull MBC,Public Health & Commissioning,Central Services to the Public,Central Coffee Ltd T/A Costa,08/02/2021,,357,Grant & Subscription (SCITT),Not Yet Classified
Solihull MBC,Public Health & Commissioning,Central Services to the Public,Central Coffee Ltd T/A Costa,08/02/2021,,3000,Grant & Subscription (SCITT),Not Yet Classified
Solihull MBC,Public Health & Commissioning,Central Services to the Public,Central Education Group Ltd,22/02/2021,,934,Grant & Subscription (SCITT),Not Yet Classified
Solihull MBC,Public Health & Commissioning,Central Services to the Public,Centre Of England Arts Centre Ltd,01/02/2021,,1334,Grant & Subscription (SCITT),Not Yet Classified
Solihull MBC,Public Health & Commissioning,Central Services to the Public,Centre Of England Arts Centre Ltd,08/02/2021,,4000,Grant & Subscription (SCITT),Not Yet Classified
Solihull MBC,Public Health & Commissioning,Central Services to the Public,Centre Of England Arts Centre Ltd,08/02/2021,,2001,Grant & Subscription (SCITT),Not Yet Classified
Solihull MBC,Children's Services & Skills,Children & Education Services,Centrex Cars,23/02/2021,,1381.05,Transport-Contract Hire,Not Yet Classified
Solihull MBC,Children's Services & Skills,Children & Education Services,Centrex Cars,23/02/2021,,1161.3,Transport-Contract Hire,Not Yet Classified
Solihull MBC,Children's Services & Skills,Children & Education Services,Centrex Cars,23/02/2021,,731.25,Transport-Contract Hire,Not Yet Classified
Solihull MBC,Children's Services & Skills,Children & Education Services,Centrex Cars,23/02/2021,,828.75,Transport-Contract Hire,Not Yet Classified
Solihull MBC,Children's Services & Skills,Children & Education Services,Centrex Cars,23/02/2021,,900,Transport-Contract Hire,Not Yet Classified
Solihull MBC,Adult Social Care,Adult Social Care,Charmend Ltd T/A Aldridge Court Nursing Home,25/02/2021,,4031.44,ASC - Nursing Care Permanent,Not Yet Classified
Solihull MBC,Adult Social Care,Adult Social Care,Charter Office Equipment Ltd,01/02/2021,,309,Furniture & Equipment,210000 - Furniture & Soft Furnishings
Solihull MBC,Adult Social Care,Adult Social Care,Charter Office Equipment Ltd,01/02/2021,,338,Furniture & Equipment,210000 - Furniture & Soft Furnishings
Solihull MBC,Adult Social Care,Cultural & Related Services,Charter Office Equipment Ltd,01/02/2021,,480,Furniture & Equipment,210000 - Furniture & Soft Furnishings
Solihull MBC,Children's Services - DSG Central.,Children & Education Services,Cherwell Packaging Ltd,08/02/2021,,305.16,Cleaning,171100 - Education - Supplies
